{"text_format":"1","workbook":"xlsx","n_sheets":11,"sheets":["使用方法","(入力例 本店)入力シート","(入力例 支店)入力シート","変更入力シート","【1】変更届➀","【2】変更届②","【3】入会誓約書","【4】個人情報","【5】保証協会変更届","【6】連帯保証書","【7】誓約書(全宅保)"],"not_rendered":{"charts":0,"images":3,"macros":1,"external_links":0,"defined_names":10,"comments":7,"pivot_tables":0},"unopened":[],"bounds":{"document_bytes":16777216,"sheet_cells":100000,"rows_first":2000,"rows_last":500,"rows_between":2000,"halvings":0,"cell_chars":16384,"cell_head_chars":4096},"cells_cut":0,"cells_raw":0,"read":"whole","date_system":"1900"}

{"sheet":"使用方法","index":0,"n_rows":46,"n_cols":13,"rows_kept":46,"cut":false,"hidden":false,"merged":[[0,0,0,22],[1,0,1,1],[6,0,6,1],[6,2,6,8],[45,0,45,1],[40,0,40,3],[41,0,41,3],[42,0,42,3],[35,2,35,7],[36,2,36,7],[37,2,37,7],[21,0,21,1],[26,1,27,1],[30,1,32,1],[3,1,3,6],[3,12,3,17]]}
["静岡県宅建協会　変更届出書　提出について"]
["（１）",null,"宅建協会への変更届出に必要な書類は、下記リンク先の一覧説明書を参照ください。"]
["【法人用】",null,null,null,null,null,null,null,null,null,null,"【個人事業主用】"]
[null,"https://onl.bz/eja3TFR",null,null,null,null,null,null,null,null,null,null,"https://onl.bz/J6a2WyA"]
[]
[]
["（２）",null,"「変更入力シート」",null,null,null,null,null,null,"へ必要事項を入力してください。"]
[null,"・","届出が必要な変更項目は、９種類です。"]
[null,"①","商号"]
[null,"②","事務所情報"]
[null,"③","代表者(支店等の代表者・政令使用人含む)"]
[null,"④","筆頭の専任取引士"]
[null,"⑤","筆頭以外の専任取引士"]
[null,"⑥","住所変更（本店と支店の代表者、専任取引士のみ）"]
[null,"⑦","氏名変更（従業者含む）"]
[null,"⑧","新たに従事するもの"]
[null,"⑨","従事しなくなった者"]
[null,"・","入力必須項目は全て入力してください。"]
[null,"・","変更事項がある場合、その項目のみ「変更前」と「変更後」を入力してください。"]
[]
[]
["（３）",null,"下記のパターン別に、所属支部へ必要書類を提出してください。"]
[null,"①","【提出書類が押印不要な書類のみ＋追加提出書類がない場合】"]
[null,"⇒","入力済みの本EXCELデータをメールに添付して送付してください。"]
[]
[null,"②","【提出書類が押印不要な書類のみ＋追加提出書類がある場合】"]
[null,"⇒","入力済みの本EXCELデータをメールに添付して送付してください。"]
[null,null,"追加提出書類（商業登記簿謄本等）は郵送か所属支部へ持参してください。"]
[]
[null,"③","【提出書類に押印が必要な書類が含まれている場合】"]
[null,"⇒","入力済みの本EXCELデータをメールに添付して送付してください。"]
[null,null,"押印が必要な書類は印刷して押印。郵送か所属支部へ持参してください。"]
[null,null,"追加提出書類（商業登記簿謄本等）は郵送か所属支部へ持参してください。"]
[]
[null,"※","押印が必要な書類一覧"]
[null,null,"【３】入会誓約書"]
[null,null,"【６】連帯保証書"]
[null,null,"【７】誓約書（全宅保）"]
[]
["【提出先 E-mailアドレス】"]
["（東部支部）",null,null,null,"：","toubu2@shizuoka-takken.or.jp"]
["（中部支部）",null,null,null,"：","chubu@shizuoka-takken.or.jp"]
["（西部支部）",null,null,null,"：","seibu@shizuoka-takken.or.jp"]
[]
[]
["（４）",null,"書類内容不備や確認等があれば、所属支部職員よりご連絡させて頂きます。"]

{"sheet":"(入力例 本店)入力シート","index":1,"n_rows":139,"n_cols":79,"rows_kept":139,"cut":false,"hidden":false,"merged":[[137,46,138,49],[137,50,138,59],[138,16,138,32],[136,27,136,28],[136,29,136,30],[136,31,136,32],[137,6,138,15],[137,16,137,21],[137,22,137,32],[136,3,138,5],[136,6,136,15],[136,16,136,20],[136,21,136,22],[136,23,136,24],[136,25,136,26],[133,3,135,5],[137,33,138,38],[137,39,138,45],[133,31,133,32],[134,6,135,15],[134,16,134,21],[134,22,134,32],[134,33,135,38],[134,39,135,45],[131,6,132,15],[131,16,131,21],[131,22,131,32],[131,33,132,38],[131,39,132,45],[131,46,132,49],[131,50,132,59],[132,16,132,32],[133,6,133,15],[133,16,133,20],[133,21,133,22],[133,23,133,24],[133,25,133,26],[133,27,133,28],[127,49,127,50],[127,51,127,54],[127,55,127,59],[128,16,128,21],[128,22,128,23],[134,46,135,49],[134,50,135,59],[135,16,135,32],[130,31,130,32],[127,34,127,39],[127,41,127,42],[128,32,128,33],[128,34,128,35],[128,36,128,43],[128,56,128,57],[130,0,138,2],[130,3,132,5],[130,6,130,15],[130,16,130,20],[130,21,130,22],[130,23,130,24],[130,25,130,26],[130,27,130,28],[130,29,130,30],[128,44,128,45],[128,46,128,47],[128,48,128,49],[128,50,128,51],[128,52,128,53],[128,54,128,55],[127,6,128,15],[133,29,133,30],[127,43,127,48],[126,34,126,35],[126,36,126,39],[126,40,126,42],[126,43,126,44],[126,46,126,50],[126,51,126,59],[124,51,125,59],[125,16,125,32],[126,6,126,15],[126,16,126,18],[126,19,126,21],[126,22,126,23],[126,24,126,25],[126,26,126,28],[126,29,126,30],[126,31,126,33],[124,6,125,15],[124,16,124,21],[124,22,124,32],[124,33,125,38],[124,39,125,45],[124,46,125,50],[123,3,128,5],[123,6,123,15],[123,16,123,20],[123,21,123,22],[123,23,123,24],[123,25,123,26],[123,27,123,28],[123,29,123,30],[123,31,123,32],[128,24,128,25],[128,26,128,27],[128,28,128,29],[128,30,128,31],[127,16,127,21],[127,22,127,26],[127,27,127,32],[121,55,121,59],[122,16,122,21],[122,22,122,23],[122,24,122,25],[122,26,122,27],[122,28,122,29],[122,30,122,31],[122,32,122,33],[122,34,122,35],[122,36,122,43],[122,56,122,57],[122,44,122,45],[122,46,122,47],[122,48,122,49],[122,50,122,51],[122,52,122,53],[122,54,122,55],[121,6,122,15],[121,16,121,21],[121,22,121,26],[121,27,121,32],[121,34,121,39],[121,41,121,42],[121,43,121,48],[121,49,121,50],[121,51,121,54],[118,51,119,59],[119,16,119,32],[120,6,120,15],[120,16,120,18],[120,19,120,21],[120,22,120,23],[120,24,120,25],[120,26,120,28],[120,29,120,30],[120,51,120,59],[120,31,120,33],[120,34,120,35],[120,36,120,39],[120,40,120,42],[120,43,120,44],[120,46,120,50],[117,31,117,32],[118,6,119,15],[118,16,118,21],[118,22,118,32],[118,33,119,38],[118,39,119,45],[116,54,116,55],[116,56,116,57],[117,3,122,5],[117,6,117,15],[117,16,117,20],[117,21,117,22],[117,23,117,24],[117,25,117,26],[117,27,117,28],[117,29,117,30],[116,36,116,43],[116,44,116,45],[116,46,116,47],[116,48,116,49],[116,50,116,51],[116,52,116,53],[111,3,116,5],[118,46,119,50],[115,51,115,54],[115,55,115,59],[116,16,116,21],[116,22,116,23],[116,24,116,25],[116,26,116,27],[116,28,116,29],[116,30,116,31],[116,32,116,33],[116,34,116,35],[115,6,116,15],[115,16,115,21],[115,22,115,26],[115,27,115,32],[115,34,115,39],[115,41,115,42],[115,43,115,48],[115,49,115,50],[114,29,114,30],[114,31,114,33],[114,34,114,35],[114,36,114,39],[114,40,114,42],[114,43,114,44],[112,39,113,45],[112,46,113,50],[112,51,113,59],[113,16,113,32],[114,6,114,15],[114,16,114,18],[114,19,114,21],[114,22,114,23],[114,24,114,25],[114,26,114,28],[114,46,114,50],[114,51,114,59],[111,29,111,30],[111,31,111,32],[112,6,113,15],[112,16,112,21],[112,22,112,32],[112,33,113,38],[110,52,110,53],[110,54,110,55],[110,56,110,57],[111,6,111,15],[111,16,111,20],[111,21,111,22],[111,23,111,24],[111,25,111,26],[111,27,111,28],[110,34,110,35],[110,36,110,43],[110,44,110,45],[110,46,110,47],[110,48,110,49],[110,50,110,51],[110,22,110,23],[110,24,110,25],[110,26,110,27],[108,26,108,28],[108,29,108,30],[110,28,110,29],[110,30,110,31],[110,32,110,33],[108,51,108,59],[109,6,110,15],[109,16,109,21],[109,22,109,26],[109,27,109,32],[109,34,109,39],[109,41,109,42],[109,43,109,48],[109,49,109,50],[110,16,110,21],[108,31,108,33],[108,34,108,35],[108,36,108,39],[108,40,108,42],[108,43,108,44],[108,46,108,50],[105,31,105,32],[106,6,107,15],[106,16,106,21],[106,22,106,32],[106,33,107,38],[106,39,107,45],[103,16,103,59],[105,0,128,2],[105,3,110,5],[105,6,105,15],[105,16,105,20],[105,21,105,22],[105,23,105,24],[105,25,105,26],[105,27,105,28],[105,29,105,30],[106,46,107,50],[106,51,107,59],[107,16,107,32],[108,6,108,15],[108,16,108,18],[108,19,108,21],[108,22,108,23],[108,24,108,25],[99,27,99,28],[99,29,99,30],[99,31,99,32],[100,3,101,5],[100,6,101,15],[100,16,100,21],[100,22,100,59],[101,16,101,59],[99,0,103,2],[99,3,99,15],[99,16,99,20],[99,21,99,22],[99,23,99,24],[99,25,99,26],[102,3,103,5],[102,6,103,15],[102,16,102,21],[102,22,102,59],[93,3,97,5],[93,6,93,15],[93,16,93,37],[96,6,96,15],[96,16,96,19],[96,21,96,24],[96,26,96,29],[96,30,97,30],[96,31,97,59],[97,6,97,15],[97,16,97,19],[97,21,97,24],[97,26,97,29],[93,38,93,44],[93,45,93,52],[94,6,94,15],[94,16,94,19],[94,21,94,26],[95,6,95,15],[95,16,95,59],[89,52,89,53],[89,54,89,55],[89,56,89,57],[92,0,97,2],[92,3,92,15],[92,16,92,20],[92,21,92,22],[92,23,92,24],[92,25,92,26],[89,32,89,33],[89,34,89,35],[89,36,89,43],[89,44,89,45],[89,46,89,47],[89,48,89,49],[89,16,89,21],[89,22,89,23],[89,24,89,25],[89,26,89,27],[89,28,89,29],[89,30,89,31],[92,27,92,28],[92,29,92,30],[92,31,92,32],[88,6,89,15],[88,16,88,21],[88,22,88,26],[88,27,88,32],[88,34,88,39],[88,41,88,42],[88,43,88,48],[88,49,88,50],[89,50,89,51],[86,21,86,24],[86,26,86,29],[87,6,87,15],[87,16,87,21],[87,22,87,31],[87,32,87,41],[84,6,84,15],[84,16,84,59],[85,6,85,15],[85,16,85,19],[85,21,85,24],[85,26,85,29],[85,30,86,30],[85,31,86,59],[86,6,86,15],[86,16,86,19],[87,42,87,51],[87,52,87,59],[83,6,83,15],[83,16,83,19],[83,21,83,26],[82,24,82,25],[82,26,82,28],[82,29,82,30],[82,31,82,33],[82,34,82,35],[82,36,82,39],[79,16,79,18],[79,19,79,21],[79,22,79,23],[79,24,79,25],[79,26,79,28],[82,40,82,42],[82,43,82,44],[82,45,82,51],[82,52,82,59],[76,50,76,51],[76,52,76,53],[76,54,76,55],[76,56,76,57],[76,58,76,59],[77,3,79,5],[77,6,78,15],[77,16,77,21],[77,22,77,59],[78,16,78,59],[76,27,76,28],[76,29,76,30],[76,31,76,32],[76,33,76,42],[76,43,76,47],[76,48,76,49],[79,52,79,59],[79,29,79,30],[79,31,79,33],[79,34,79,35],[79,36,79,39],[79,40,79,44],[79,45,79,51],[79,6,79,15],[76,0,89,2],[76,3,76,15],[76,16,76,20],[76,21,76,22],[76,23,76,24],[76,25,76,26],[74,32,74,33],[74,34,74,35],[74,36,74,43],[74,16,74,21],[74,22,74,23],[74,24,74,25],[74,26,74,27],[74,28,74,29],[74,30,74,31],[80,3,89,5],[80,6,81,15],[80,16,80,21],[80,22,80,59],[81,16,81,59],[82,6,82,15],[82,16,82,18],[82,19,82,21],[82,22,82,23],[71,16,71,19],[72,42,72,51],[72,52,72,59],[73,6,74,15],[73,16,73,21],[73,22,73,26],[73,27,73,32],[73,34,73,39],[73,41,73,42],[73,43,73,48],[73,49,73,50],[74,50,74,51],[74,52,74,53],[74,54,74,55],[74,56,74,57],[74,44,74,45],[74,46,74,47],[74,48,74,49],[64,19,64,21],[64,22,64,23],[64,24,64,25],[64,26,64,28],[67,40,67,42],[67,43,67,44],[67,45,67,51],[67,52,67,59],[68,6,68,15],[68,16,68,19],[68,21,68,26],[67,24,67,25],[67,26,67,28],[67,29,67,30],[67,31,67,33],[67,34,67,35],[67,36,67,39],[65,3,74,5],[65,6,66,15],[65,16,65,21],[65,22,65,59],[66,16,66,59],[67,6,67,15],[67,16,67,18],[67,19,67,21],[67,22,67,23],[71,21,71,24],[71,26,71,29],[72,6,72,15],[72,16,72,21],[72,22,72,31],[72,32,72,41],[69,6,69,15],[69,16,69,59],[70,6,70,15],[70,16,70,19],[70,21,70,24],[70,26,70,29],[70,30,71,30],[70,31,71,59],[71,6,71,15],[61,52,61,53],[61,54,61,55],[61,56,61,57],[61,58,61,59],[62,3,64,5],[62,6,63,15],[62,16,62,21],[62,22,62,59],[63,16,63,59],[61,27,61,28],[61,29,61,30],[61,31,61,32],[61,33,61,42],[61,43,61,47],[61,48,61,49],[64,52,64,59],[64,29,64,30],[64,31,64,33],[64,34,64,35],[64,36,64,39],[64,40,64,44],[64,45,64,51],[64,6,64,15],[64,16,64,18],[59,52,59,53],[59,54,59,55],[59,56,59,57],[61,0,74,2],[61,3,61,15],[61,16,61,20],[61,21,61,22],[61,23,61,24],[61,25,61,26],[59,32,59,33],[59,34,59,35],[59,36,59,43],[59,44,59,45],[59,46,59,47],[59,48,59,49],[59,16,59,21],[59,22,59,23],[59,24,59,25],[59,26,59,27],[59,28,59,29],[59,30,59,31],[50,3,59,5],[50,6,51,15],[61,50,61,51],[58,6,59,15],[58,16,58,21],[58,22,58,26],[58,27,58,32],[58,34,58,39],[58,41,58,42],[58,43,58,48],[58,49,58,50],[59,50,59,51],[56,21,56,24],[56,26,56,29],[57,6,57,15],[57,16,57,21],[57,22,57,31],[57,32,57,41],[54,6,54,15],[54,16,54,59],[55,6,55,15],[55,16,55,19],[55,21,55,24],[55,26,55,29],[55,30,56,30],[55,31,56,59],[56,6,56,15],[56,16,56,19],[57,42,57,51],[57,52,57,59],[52,43,52,44],[52,45,52,51],[52,52,52,59],[53,6,53,15],[53,16,53,19],[53,21,53,26],[52,26,52,28],[52,29,52,30],[52,31,52,33],[52,34,52,35],[52,36,52,39],[52,40,52,42],[49,31,49,33],[49,34,49,35],[49,36,49,39],[49,40,49,44],[49,45,49,51],[49,52,49,59],[49,16,49,18],[49,19,49,21],[49,22,49,23],[49,24,49,25],[49,26,49,28],[49,29,49,30],[46,54,46,55],[46,56,46,57],[46,58,46,59],[47,0,59,2],[47,3,49,5],[47,6,48,15],[47,16,47,21],[47,22,47,59],[48,16,48,59],[49,6,49,15],[46,31,46,32],[46,33,46,42],[46,43,46,47],[46,48,46,49],[46,50,46,51],[46,52,46,53],[50,16,50,21],[50,22,50,59],[51,16,51,59],[52,6,52,15],[52,16,52,18],[52,19,52,21],[52,22,52,23],[52,24,52,25],[41,16,41,25],[41,26,41,36],[41,38,41,48],[46,3,46,15],[46,16,46,20],[46,21,46,22],[46,23,46,24],[46,25,46,26],[46,27,46,28],[46,29,46,30],[31,29,31,30],[31,31,31,32],[39,16,39,25],[39,26,39,29],[39,31,39,34],[39,36,39,39],[40,16,40,25],[40,26,40,36],[40,38,40,48],[36,31,36,36],[37,16,37,25],[37,26,37,59],[38,16,38,25],[38,26,38,29],[38,31,38,34],[38,36,38,39],[32,3,35,15],[32,16,32,25],[32,26,32,29],[32,31,32,36],[33,16,33,25],[33,26,33,59],[34,16,34,25],[31,0,41,2],[31,3,31,15],[31,16,31,20],[31,21,31,22],[31,23,31,24],[31,25,31,26],[34,26,34,29],[36,3,41,15],[36,16,36,25],[36,26,36,29],[34,31,34,34],[34,36,34,39],[35,16,35,25],[35,26,35,29],[35,31,35,34],[35,36,35,39],[31,27,31,28],[27,36,27,59],[28,3,29,15],[28,16,28,19],[28,20,28,35],[28,36,28,39],[28,40,28,59],[29,16,29,35],[29,36,29,59],[25,27,25,28],[25,29,25,30],[25,31,25,32],[25,36,25,59],[26,3,27,15],[26,16,26,19],[26,20,26,35],[26,36,26,39],[26,40,26,59],[27,16,27,35],[25,0,29,2],[25,3,25,15],[25,16,25,20],[25,21,25,22],[25,23,25,24],[25,25,25,26],[21,0,21,1],[21,2,21,15],[21,16,21,17],[21,18,21,31],[21,32,21,33],[21,34,21,55],[20,0,20,1],[20,2,20,15],[20,16,20,17],[20,18,20,30],[20,32,20,33],[20,34,20,58],[15,58,16,59],[19,0,19,1],[19,2,19,15],[19,16,19,17],[19,18,19,25],[19,32,19,33],[19,34,19,58],[15,16,16,26],[15,27,16,29],[15,30,16,35],[15,36,16,37],[15,38,16,51],[15,52,16,57],[13,42,13,45],[3,29,3,30],[7,0,7,7],[8,0,16,2],[8,3,16,5],[8,6,8,15],[8,16,8,59],[9,6,9,15],[10,39,10,49],[10,50,10,59],[11,6,12,15],[11,16,12,21],[11,22,12,32],[11,33,12,59],[9,16,9,20],[9,22,9,23],[9,25,9,26],[9,27,9,31],[9,32,9,33],[10,6,10,15],[10,16,10,38],[13,47,13,50],[14,6,14,15],[14,16,14,59],[15,6,16,15],[0,0,0,59],[2,0,2,7],[2,8,2,12],[2,13,2,14],[2,15,2,16],[2,17,2,18],[2,19,2,20],[2,21,2,22],[2,23,2,24],[2,29,2,33],[2,34,2,38],[2,39,2,43],[2,44,2,48],[13,6,13,15],[13,16,13,19],[13,21,13,26],[13,27,13,36],[13,37,13,40]]}
["※「入力例（本店の場合）」　入力シート【変更届出用】"]
[]
["申請日",null,null,null,null,null,null,null,"令和",null,null,null,null,4,null,"年",null,10,null,"月",null,5,null,"日",null,null,null,null,null,"東部",null,null,null,null,"支部",null,null,null,null,"富士",null,null,null,null,"地区",null,null,null,null,null,null,null,null,null,null,null,null,null,null,null,null,null,"東部",null,null,null,"下田",null,null,null,"22静岡県",null,null,null,null,null,null,null,"入力セル"]
[null,null,null,null,null,null,null,null,null,null,null,null,null,null,null,null,null,null,null,null,null,null,null,null,null,null,null,null,null,"↑",null,"変更する店舗の所属する支部・地区を選択。",null,null,null,null,null,null,null,null,null,null,null,null,null,null,null,null,null,null,null,null,null,null,null,null,null,null,null,null,null,null,"中部",null,null,null,"伊東",null,null,null,"01北海道",null,null,null,null,null,null,null,"選択セル"]
["【入力方法の説明】",null,null,null,null,null,null,null,null,null,null,null,null,null,null,null,null,null,null,null,null,null,null,null,null,null,null,null,null,null,null,null,null,null,null,null,null,null,null,null,null,null,null,null,null,null,null,null,null,null,null,null,null,null,null,null,null,null,null,null,null,null,"西部",null,null,null,"熱海",null,null,null,"02青森県"]
["・","入力必須項目は全て入力してください。",null,null,null,null,null,null,null,null,null,null,null,null,null,null,null,null,null,null,null,null,null,null,null,null,null,null,null,null,null,null,null,null,null,null,null,null,null,null,null,null,null,null,null,null,null,null,null,null,null,null,null,null,null,null,null,null,null,null,null,null,null,null,null,null,"三島",null,null,null,"03岩手県"]
["・","変更事項がある場合、その項目のみ「変更前」と「変更後」を入力してください。",null,null,null,null,null,null,null,null,null,null,null,null,null,null,null,null,null,null,null,null,null,null,null,null,null,null,null,null,null,null,null,null,null,null,null,null,null,null,null,null,null,null,null,null,null,null,null,null,null,null,null,null,null,null,null,null,null,null,null,null,null,null,null,null,"沼津",null,null,null,"04宮城県"]
[null,null,null,null,null,null,null,null,null,null,null,null,null,null,null,null,null,null,null,null,null,null,null,null,null,null,null,null,null,null,null,null,null,null,null,null,null,null,null,null,null,null,null,null,null,null,null,null,null,null,null,null,null,null,null,null,null,null,null,null,null,null,null,null,null,null,"駿東",null,null,null,"05秋田県"]
["入力必須",null,null,"変更がある項目は\n「変更後」を入力",null,null,"本店商号又は名称",null,null,null,null,null,null,null,null,null,"株式会社静岡富士宅建不動産",null,null,null,null,null,null,null,null,null,null,null,null,null,null,null,null,null,null,null,null,null,null,null,null,null,null,null,null,null,null,null,null,null,null,null,null,null,null,null,null,null,null,null,null,null,null,null,null,null,"富士",null,null,null,"06山形県"]
[null,null,null,null,null,null,"免許番号",null,null,null,null,null,null,null,null,null,"知事",null,null,null,null,"(",1,null,")","第",null,18000,null,null,null,null,"号",null,null,null,null,null,null,null,null,null,null,null,null,null,null,null,null,null,null,null,null,null,null,null,null,null,null,null,null,null,null,"知事",null,null,"清水",null,null,null,"07福島県"]
[null,null,null,null,null,null,"本店の代表者氏名",null,null,null,null,null,null,null,null,null,"富士　太郎",null,null,null,null,null,null,null,null,null,null,null,null,null,null,null,null,null,null,null,null,null,null,"本店代表者役職",null,null,null,null,null,null,null,null,null,null,"代表取締役",null,null,null,null,null,null,null,null,null,null,null,null,"大臣",null,null,"静岡",null,null,null,"08茨城県"]
[null,null,null,null,null,null,"変更対象",null,null,null,null,null,null,null,null,null,"正会員",null,null,null,null,null,"※準会員の場合、\n右に支店等名称を記載",null,null,null,null,null,null,null,null,null,null,null,null,null,null,null,null,null,null,null,null,null,null,null,null,null,null,null,null,null,null,null,null,null,null,null,null,null,null,null,null,null,null,null,"しだはい",null,null,null,"09栃木県"]
[null,null,null,null,null,null,null,null,null,null,null,null,null,null,null,null,null,null,null,null,null,null,null,null,null,null,null,null,null,null,null,null,null,null,null,null,null,null,null,null,null,null,null,null,null,null,null,null,null,null,null,null,null,null,null,null,null,null,null,null,null,null,null,"男",null,null,"中遠",null,null,null,"10群馬県"]
[null,null,null,null,null,null,"郵便番号",null,null,null,null,null,null,null,null,null,"417",null,null,null,"-","0801",null,null,null,null,null,"電話番号",null,null,null,null,null,null,null,null,null,"0545",null,null,null,"-","11",null,null,null,"-","2222",null,null,null,null,null,null,null,null,null,null,null,null,null,null,null,"女",null,null,"浜松",null,null,null,"11埼玉県"]
[null,null,null,null,null,null,"住所",null,null,null,null,null,null,null,null,null,"富士市入山瀬100-100",null,null,null,null,null,null,null,null,null,null,null,null,null,null,null,null,null,null,null,null,null,null,null,null,null,null,null,null,null,null,null,null,null,null,null,null,null,null,null,null,null,null,null,null,null,null,null,null,null,null,null,null,null,"12千葉県"]
[null,null,null,null,null,null,"従業者数\n(変更後の事務所内)",null,null,null,null,null,null,null,null,null,"宅建業に従事する者",null,null,null,null,null,null,null,null,null,null,"総数",null,null,8,null,null,null,null,null,"名",null,"うち専任宅地建物取引士",null,null,null,null,null,null,null,null,null,null,null,null,null,3,null,null,null,null,null,"名",null,null,null,null,null,null,null,"正会員",null,null,null,"13東京都"]
[null,null,null,null,null,null,null,null,null,null,null,null,null,null,null,null,null,null,null,null,null,null,null,null,null,null,null,null,null,null,null,null,null,null,null,null,null,null,null,null,null,null,null,null,null,null,null,null,null,null,null,null,null,null,null,null,null,null,null,null,null,null,null,"昭和",null,null,"準会員",null,null,null,"14神奈川県",null,null,null,"IP型","正会員"]
[null,null,null,null,null,null,null,null,null,null,null,null,null,null,null,null,null,null,null,null,null,null,null,null,null,null,null,null,null,null,null,null,null,null,null,null,null,null,null,null,null,null,null,null,null,null,null,null,null,null,null,null,null,null,null,null,null,null,null,null,null,null,null,"平成",null,null,"賛助会員",null,null,null,"15新潟県",null,null,null,"F型","準会員"]
["変更事項種類（選択すると入力箇所へ飛びます）",null,null,null,null,null,null,null,null,null,null,null,null,null,null,null,null,null,null,null,null,null,null,null,null,null,null,null,null,null,null,null,null,null,null,null,null,null,null,null,null,null,null,null,null,null,null,null,null,null,null,null,null,null,null,null,null,null,null,null,null,null,null,"令和",null,null,null,null,null,null,"16富山県",null,null,null,"F型+IP型"]
["➀",null,"商号",null,null,null,null,null,null,null,null,null,null,null,null,null,"②",null,"事務所情報",null,null,null,null,null,null,null,null,null,null,null,null,null,"③",null,"代表者(支店等の代表者・政令使用人含む)",null,null,null,null,null,null,null,null,null,null,null,null,null,null,null,null,null,null,null,null,null,null,null,null,null,null,null,null,null,null,null,null,null,null,null,"17石川県"]
["④",null,"筆頭の専任取引士",null,null,null,null,null,null,null,null,null,null,null,null,null,"⑤",null,"筆頭以外の専任取引士",null,null,null,null,null,null,null,null,null,null,null,null,null,"⑥",null,"住所変更（本店と支店の代表者、専任取引士のみ）",null,null,null,null,null,null,null,null,null,null,null,null,null,null,null,null,null,null,null,null,null,null,null,null,null,null,null,null,"有",null,null,null,null,null,null,"18福井県",null,null,null,"代表取締役","代表者"]
["⑦",null,"氏名変更（従業者含む）",null,null,null,null,null,null,null,null,null,null,null,null,null,"⑧",null,"新たに従事するもの",null,null,null,null,null,null,null,null,null,null,null,null,null,"⑨",null,"従事しなくなった者",null,null,null,null,null,null,null,null,null,null,null,null,null,null,null,null,null,null,null,null,null,null,null,null,null,null,null,null,"無",null,null,null,null,null,null,"19山梨県",null,null,null,"取締役","代表取締役"]
[null,null,null,null,null,null,null,null,null,null,null,null,null,null,null,null,null,null,null,null,null,null,null,null,null,null,null,null,null,null,null,null,null,null,null,null,null,null,null,null,null,null,null,null,null,null,null,null,null,null,null,null,null,null,null,null,null,null,null,null,null,null,null,null,null,null,null,null,null,null,"20長野県",null,null,null,"代表理事","取締役"]
[null,null,null,null,null,null,null,null,null,null,null,null,null,null,null,null,null,null,null,null,null,null,null,null,null,null,null,null,null,null,null,null,null,null,null,null,null,null,null,null,null,null,null,null,null,null,null,null,null,null,null,null,null,null,null,null,null,null,null,null,null,null,null,null,null,null,null,null,null,null,"21岐阜県",null,null,null,"代表社員","代表理事"]
[null,null,null,null,null,null,null,null,null,null,null,null,null,null,null,null,null,null,null,null,null,null,null,null,null,null,null,null,null,null,null,null,null,null,null,null,null,null,null,null,null,null,null,null,null,null,null,null,null,null,null,null,null,null,null,null,null,null,null,null,null,null,null,"独立建物",null,null,null,null,null,null,"23愛知県",null,null,null,"代表執行役","政令使用人"]
["➀商号",null,null,"変更日",null,null,null,null,null,null,null,null,null,null,null,null,"令和",null,null,null,null,"4",null,"年",null,"10",null,"月",null,"1",null,"日",null,null,null,null,"↓支店の場合、ここから支店等名称のみを記載",null,null,null,null,null,null,null,null,null,null,null,null,null,null,null,null,null,null,null,null,null,null,null,null,null,null,"住宅併用",null,null,null,null,null,null,"24三重県",null,null,null,null,"支店長"]
[null,null,null,"変更前",null,null,null,null,null,null,null,null,null,null,null,null,"(ﾌﾘｶﾞﾅ)",null,null,null,"ｶ)ｼｽﾞｵｶﾇﾏﾂﾞﾀｯｹﾝﾌﾄﾞｳｻﾝ",null,null,null,null,null,null,null,null,null,null,null,null,null,null,null,"(ﾌﾘｶﾞﾅ)",null,null,null,null,null,null,null,null,null,null,null,null,null,null,null,null,null,null,null,null,null,null,null,null,null,null,"集合ビル",null,null,null,null,null,null,"25滋賀県",null,null,null,"常勤","事務"]
[null,null,null,null,null,null,null,null,null,null,null,null,null,null,null,null,"株式会社静岡沼津宅建不動産",null,null,null,null,null,null,null,null,null,null,null,null,null,null,null,null,null,null,null,null,null,null,null,null,null,null,null,null,null,null,null,null,null,null,null,null,null,null,null,null,null,null,null,null,null,null,"その他",null,null,null,null,null,null,"26京都府",null,null,null,"非常勤","営業"]
[null,null,null,"変更後",null,null,null,null,null,null,null,null,null,null,null,null,"(ﾌﾘｶﾞﾅ)",null,null,null,"ｶ)ｼｽﾞｵｶﾌｼﾞﾀｯｹﾝﾌﾄﾞｳｻﾝ",null,null,null,null,null,null,null,null,null,null,null,null,null,null,null,"(ﾌﾘｶﾞﾅ)",null,null,null,null,null,null,null,null,null,null,null,null,null,null,null,null,null,null,null,null,null,null,null,null,null,null,null,null,null,null,null,null,null,"27大阪府",null,null,null,null,"営業・事務"]
[null,null,null,null,null,null,null,null,null,null,null,null,null,null,null,null,"株式会社静岡富士宅建不動産",null,null,null,null,null,null,null,null,null,null,null,null,null,null,null,null,null,null,null,null,null,null,null,null,null,null,null,null,null,null,null,null,null,null,null,null,null,null,null,null,null,null,null,null,null,null,"自己(自社)所有",null,null,null,null,null,null,"28兵庫県",null,null,null,null,"その他"]
[null,null,null,null,null,null,null,null,null,null,null,null,null,null,null,null,null,null,null,null,null,null,null,null,null,null,null,null,null,null,null,null,null,null,null,null,null,null,null,null,null,null,null,null,null,null,null,null,null,null,null,null,null,null,null,null,null,null,null,null,null,null,null,"賃貸",null,null,null,null,null,null,"29奈良県"]
["②事務所情報",null,null,"変更日",null,null,null,null,null,null,null,null,null,null,null,null,"令和",null,null,null,null,"4",null,"年",null,"10",null,"月",null,"1",null,"日",null,null,null,null,null,null,null,null,null,null,null,null,null,null,null,null,null,null,null,null,null,null,null,null,null,null,null,null,null,null,null,"その他",null,null,null,null,null,null,"30和歌山県"]
[null,null,null,"変更前",null,null,null,null,null,null,null,null,null,null,null,null,"郵便番号",null,null,null,null,null,null,null,null,null,"410",null,null,null,"-","0311",null,null,null,null,null,null,null,null,null,null,null,null,null,null,null,null,null,null,null,null,null,null,null,null,null,null,null,null,null,null,null,null,null,null,null,null,null,null,"31鳥取県"]
[null,null,null,null,null,null,null,null,null,null,null,null,null,null,null,null,"住所",null,null,null,null,null,null,null,null,null,"沼津市原町200-200",null,null,null,null,null,null,null,null,null,null,null,null,null,null,null,null,null,null,null,null,null,null,null,null,null,null,null,null,null,null,null,null,null,null,null,null,"専任","◎",null,null,null,null,null,"32島根県"]
[null,null,null,null,null,null,null,null,null,null,null,null,null,null,null,null,"電話番号",null,null,null,null,null,null,null,null,null,"055",null,null,null,"-","999",null,null,null,"-","0000",null,null,null,null,null,null,null,null,null,null,null,null,null,null,null,null,null,null,null,null,null,null,null,null,null,null,"その他の取引士","〇",null,null,null,null,null,"33岡山県",null,null,null,"現住所"]
[null,null,null,null,null,null,null,null,null,null,null,null,null,null,null,null,"FAX番号",null,null,null,null,null,null,null,null,null,"055",null,null,null,"-","999",null,null,null,"-","9999",null,null,null,null,null,null,null,null,null,null,null,null,null,null,null,null,null,null,null,null,null,null,null,null,null,null,null,null,null,null,null,null,null,"34広島県",null,null,null,"勤務先"]
[null,null,null,"変更後",null,null,null,null,null,null,null,null,null,null,null,null,"郵便番号",null,null,null,null,null,null,null,null,null,"417",null,null,null,"-","0801",null,null,null,null,null,null,null,null,null,null,null,null,null,null,null,null,null,null,null,null,null,null,null,null,null,null,null,null,null,null,null,null,null,null,null,null,null,null,"35山口県"]
[null,null,null,null,null,null,null,null,null,null,null,null,null,null,null,null,"住所",null,null,null,null,null,null,null,null,null,"富士市入山瀬100-100",null,null,null,null,null,null,null,null,null,null,null,null,null,null,null,null,null,null,null,null,null,null,null,null,null,null,null,null,null,null,null,null,null,null,null,null,null,null,null,null,null,null,null,"36徳島県"]
[null,null,null,null,null,null,null,null,null,null,null,null,null,null,null,null,"電話番号",null,null,null,null,null,null,null,null,null,"0545",null,null,null,"-","11",null,null,null,"-","2222",null,null,null,null,null,null,null,null,null,null,null,null,null,null,null,null,null,null,null,null,null,null,null,null,null,null,null,null,null,null,null,null,null,"37香川県"]
[null,null,null,null,null,null,null,null,null,null,null,null,null,null,null,null,"FAX番号",null,null,null,null,null,null,null,null,null,"0545",null,null,null,"-","11",null,null,null,"-","3333",null,null,null,null,null,null,null,null,null,null,null,null,null,null,null,null,null,null,null,null,null,null,null,null,null,null,"営業",null,null,null,null,null,null,"38愛媛県"]
[null,null,null,null,null,null,null,null,null,null,null,null,null,null,null,null,"事務所形態",null,null,null,null,null,null,null,null,null,"独立建物",null,null,null,null,null,null,null,null,null,null,"(",null,null,null,null,null,null,null,null,null,null,null,")",null,null,null,null,null,null,null,null,null,null,null,null,null,"事務",null,null,null,null,null,null,"39高知県"]
[null,null,null,null,null,null,null,null,null,null,null,null,null,null,null,null,"使用権原",null,null,null,null,null,null,null,null,null,"賃貸",null,null,null,null,null,null,null,null,null,null,"(",null,null,null,null,null,null,null,null,null,null,null,")",null,null,null,null,null,null,null,null,null,null,null,null,null,null,null,null,null,null,null,null,"40福岡県"]
[null,null,null,null,null,null,null,null,null,null,null,null,null,null,null,null,null,null,null,null,null,null,null,null,null,null,null,null,null,null,null,null,null,null,null,null,null,null,null,null,null,null,null,null,null,null,null,null,null,null,null,null,null,null,null,null,null,null,null,null,null,null,null,"代表取締役",null,null,null,null,null,null,"41佐賀県"]
[null,null,null,null,null,null,null,null,null,null,null,null,null,null,null,null,null,null,null,null,null,null,null,null,null,null,null,null,null,null,null,null,null,null,null,null,null,null,null,null,null,null,null,null,null,null,null,null,null,null,null,null,null,null,null,null,null,null,null,null,null,null,null,"取締役",null,null,null,null,null,null,"42長崎県"]
[null,null,null,null,null,null,null,null,null,null,null,null,null,null,null,null,null,null,null,null,null,null,null,null,null,null,null,null,null,null,null,null,null,null,null,null,null,null,null,null,null,null,null,null,null,null,null,null,null,null,null,null,null,null,null,null,null,null,null,null,null,null,null,"政令使用人",null,null,null,null,null,null,"43熊本県"]
[null,null,null,null,null,null,null,null,null,null,null,null,null,null,null,null,null,null,null,null,null,null,null,null,null,null,null,null,null,null,null,null,null,null,null,null,null,null,null,null,null,null,null,null,null,null,null,null,null,null,null,null,null,null,null,null,null,null,null,null,null,null,null,"支店長等",null,null,null,null,null,null,"44大分県"]
[null,null,null,"従事しなくなった日",null,null,null,null,null,null,null,null,null,null,null,null,"令和",null,null,null,null,"4",null,"年",null,"9",null,"月",null,"25",null,"日",null,"従事した日",null,null,null,null,null,null,null,null,null,"令和",null,null,null,null,"4",null,"年",null,"9",null,"月",null,"25",null,"日",null,null,null,null,"従業員",null,null,null,null,null,null,"45宮崎県"]
["③代表者(支店等の代表者・\n政令使用人含む)",null,null,"変更前",null,null,"氏名",null,null,null,null,null,null,null,null,null,"（フリガナ）",null,null,null,null,null,"フジエダ　ジロウ",null,null,null,null,null,null,null,null,null,null,null,null,null,null,null,null,null,null,null,null,null,null,null,null,null,null,null,null,null,null,null,null,null,null,null,null,null,null,null,null,null,null,null,null,null,null,null,"46鹿児島県"]
[null,null,null,null,null,null,null,null,null,null,null,null,null,null,null,null,"藤枝　次郎",null,null,null,null,null,null,null,null,null,null,null,null,null,null,null,null,null,null,null,null,null,null,null,null,null,null,null,null,null,null,null,null,null,null,null,null,null,null,null,null,null,null,null,null,null,null,"専任取引士",null,null,null,null,null,null,"47沖縄県"]
[null,null,null,null,null,null,"生年月日",null,null,null,null,null,null,null,null,null,"和暦",null,null,"昭和",null,null,"50",null,"年",null,"７",null,null,"月",null,"20",null,null,"日",null,"性別",null,null,null,"男",null,null,null,null,null,null,null,null,null,null,null,null,null,null,null,null,null,null,null,null,null,null,"非専任取引士"]
[null,null,null,"変更後",null,null,"氏名",null,null,null,null,null,null,null,null,null,"（フリガナ）",null,null,null,null,null,"フジ　タロウ",null,null,null,null,null,null,null,null,null,null,null,null,null,null,null,null,null,null,null,null,null,null,null,null,null,null,null,null,null,null,null,null,null,null,null,null,null,null,null,null,"営業"]
[null,null,null,null,null,null,null,null,null,null,null,null,null,null,null,null,"富士　太郎",null,null,null,null,null,null,null,null,null,null,null,null,null,null,null,null,null,null,null,null,null,null,null,null,null,null,null,null,null,null,null,null,null,null,null,null,null,null,null,null,null,null,null,null,null,null,"事務"]
[null,null,null,null,null,null,"生年月日",null,null,null,null,null,null,null,null,null,"和暦",null,null,"昭和",null,null,"40",null,"年",null,"8",null,null,"月",null,"4",null,null,"日",null,null,null,null,null,null,null,null,null,null,"勤務体系",null,null,null,null,null,null,"常勤",null,null,null,null,null,null,null,null,null,null,"その他"]
[null,null,null,null,null,null,"郵便番号",null,null,null,null,null,null,null,null,null,"417",null,null,null,"ー","0001"]
[null,null,null,null,null,null,"住所",null,null,null,null,null,null,null,null,null,"富士市大淵1-1-1",null,null,null,null,null,null,null,null,null,null,null,null,null,null,null,null,null,null,null,null,null,null,null,null,null,null,null,null,null,null,null,null,null,null,null,null,null,null,null,null,null,null,null,null,null,null,"代表者等"]
[null,null,null,null,null,null,"電話番号※注記有",null,null,null,null,null,null,null,null,null,"0545",null,null,null,"-","35",null,null,null,"-","1111",null,null,null,"※","携帯電話のみの場合、上段の電話番号欄に携帯番号を入力してください。",null,null,null,null,null,null,null,null,null,null,null,null,null,null,null,null,null,null,null,null,null,null,null,null,null,null,null,null,null,null,null,"専任取引士"]
[null,null,null,null,null,null,"携帯番号",null,null,null,null,null,null,null,null,null,"090",null,null,null,"-","1234",null,null,null,"-","5678",null,null,null,null,null,null,null,null,null,null,null,null,null,null,null,null,null,null,null,null,null,null,null,null,null,null,null,null,null,null,null,null,null,null,null,null,"代表兼専任"]
[null,null,null,null,null,null,"性別",null,null,null,null,null,null,null,null,null,"男",null,null,null,null,null,"役職",null,null,null,null,null,null,null,null,null,"代表取締役"]
[null,null,null,null,null,null,"※宅建士情報\n(取引士でない場合取引士証有無のみ選択)",null,null,null,null,null,null,null,null,null,"取引士証有無",null,null,null,null,null,"有",null,null,null,null,"登録番号",null,null,null,null,null,"(","22静岡県",null,null,null,null,null,")","第",null,"00001",null,null,null,null,null,"号"]
[null,null,null,null,null,null,null,null,null,null,null,null,null,null,null,null,"登録日",null,null,null,null,null,"昭和",null,"60",null,"年",null,"5",null,"月",null,"10",null,"日",null,"有効期限",null,null,null,null,null,null,null,"令和",null,"7",null,"年",null,"5",null,"月",null,"9",null,"日"]
[]
["④筆頭の専任取引士",null,null,"従事しなくなった日",null,null,null,null,null,null,null,null,null,null,null,null,"令和",null,null,null,null,"4",null,"年",null,"9",null,"月",null,"29",null,"日",null,"従事した日",null,null,null,null,null,null,null,null,null,"令和",null,null,null,null,"4",null,"年",null,"9",null,"月",null,"25",null,"日"]
[null,null,null,"変更前",null,null,"氏名",null,null,null,null,null,null,null,null,null,"（フリガナ）",null,null,null,null,null,"キクガワ　ミキ"]
[null,null,null,null,null,null,null,null,null,null,null,null,null,null,null,null,"菊川　美樹"]
[null,null,null,null,null,null,"生年月日",null,null,null,null,null,null,null,null,null,"和暦",null,null,"昭和",null,null,"51",null,"年",null,"6",null,null,"月",null,"9",null,null,"日",null,"性別",null,null,null,"女"]
[null,null,null,"変更後",null,null,"氏名",null,null,null,null,null,null,null,null,null,"（フリガナ）",null,null,null,null,null,"イワタ　ナナ"]
[null,null,null,null,null,null,null,null,null,null,null,null,null,null,null,null,"磐田　奈々"]
[null,null,null,null,null,null,"生年月日",null,null,null,null,null,null,null,null,null,"和暦",null,null,"平成",null,null,"8",null,"年",null,"10",null,null,"月",null,"24",null,null,"日",null,"年齢",null,null,null,"27",null,null,"歳",null,"勤務体系",null,null,null,null,null,null,"常勤"]
[null,null,null,null,null,null,"郵便番号",null,null,null,null,null,null,null,null,null,"420",null,null,null,"ー","0820"]
[null,null,null,null,null,null,"住所",null,null,null,null,null,null,null,null,null,"静岡市葵区鷹匠2-2-2"]
[null,null,null,null,null,null,"電話番号※注記有",null,null,null,null,null,null,null,null,null,"054",null,null,null,"-","246",null,null,null,"-","0001",null,null,null,"※","携帯電話のみの場合、上段の電話番号欄に携帯番号を入力してください。"]
[null,null,null,null,null,null,"携帯番号",null,null,null,null,null,null,null,null,null,"090",null,null,null,"-","0001",null,null,null,"-","0003"]
[null,null,null,null,null,null,"性別",null,null,null,null,null,null,null,null,null,"女",null,null,null,null,null,"役職",null,null,null,null,null,null,null,null,null,"従業員"]
[null,null,null,null,null,null,"取引士情報",null,null,null,null,null,null,null,null,null,"取引士証有無",null,null,null,null,null,"有",null,null,null,null,"登録番号",null,null,null,null,null,"(","22静岡県",null,null,null,null,null,")","第",null,"123456",null,null,null,null,null,"号"]
[null,null,null,null,null,null,null,null,null,null,null,null,null,null,null,null,"登録日",null,null,null,null,null,"令和",null,"1",null,"年",null,"2",null,"月",null,"10",null,"日",null,"有効期限",null,null,null,null,null,null,null,"令和",null,"6",null,"年",null,"2",null,"月",null,"9",null,"日"]
[]
["⑤筆頭以外の専任取引士",null,null,"従事しなくなった日",null,null,null,null,null,null,null,null,null,null,null,null,"令和",null,null,null,null,"4",null,"年",null,"10",null,"月",null,"2",null,"日",null,"従事した日",null,null,null,null,null,null,null,null,null,"令和",null,null,null,null,"4",null,"年",null,"10",null,"月",null,"2",null,"日"]
[null,null,null,"変更前",null,null,"氏名",null,null,null,null,null,null,null,null,null,"（フリガナ）",null,null,null,null,null,"ミシマ　ユウキ"]
[null,null,null,null,null,null,null,null,null,null,null,null,null,null,null,null,"三島　祐樹"]
[null,null,null,null,null,null,"生年月日",null,null,null,null,null,null,null,null,null,"和暦",null,null,"平成",null,null,"2",null,"年",null,"4",null,null,"月",null,"20",null,null,"日",null,"性別",null,null,null,"男"]
[null,null,null,"変更後",null,null,"氏名",null,null,null,null,null,null,null,null,null,"（フリガナ）",null,null,null,null,null,"シミズ　コウタ"]
[null,null,null,null,null,null,null,null,null,null,null,null,null,null,null,null,"清水　康太"]
[null,null,null,null,null,null,"生年月日",null,null,null,null,null,null,null,null,null,"和暦",null,null,"平成",null,null,"5",null,"年",null,"8",null,null,"月",null,"17",null,null,"日",null,"年齢",null,null,null,"29",null,null,"歳",null,"勤務体系",null,null,null,null,null,null,"常勤"]
[null,null,null,null,null,null,"郵便番号",null,null,null,null,null,null,null,null,null,"410",null,null,null,"ー","1127"]
[null,null,null,null,null,null,"住所",null,null,null,null,null,null,null,null,null,"裾野市平松1000-1000"]
[null,null,null,null,null,null,"電話番号※注記有",null,null,null,null,null,null,null,null,null,"055",null,null,null,"-","900",null,null,null,"-","0001",null,null,null,"※","携帯電話のみの場合、上段の電話番号欄に携帯番号を入力してください。"]
[null,null,null,null,null,null,"携帯番号",null,null,null,null,null,null,null,null,null,"080",null,null,null,"-","0003",null,null,null,"-","0004"]
[null,null,null,null,null,null,"性別",null,null,null,null,null,null,null,null,null,"男",null,null,null,null,null,"役職",null,null,null,null,null,null,null,null,null,"従業員"]
[null,null,null,null,null,null,"取引士情報",null,null,null,null,null,null,null,null,null,"取引士証有無",null,null,null,null,null,"有",null,null,null,null,"登録番号",null,null,null,null,null,"(","23愛知県",null,null,null,null,null,")","第",null,"30000",null,null,null,null,null,"号"]
[null,null,null,null,null,null,null,null,null,null,null,null,null,null,null,null,"登録日",null,null,null,null,null,"平成",null,"30",null,"年",null,"12",null,"月",null,"5",null,"日",null,"有効期限",null,null,null,null,null,null,null,"令和",null,"5",null,"年",null,"12",null,"月",null,"4",null,"日"]
[]
[]
["⑥住所変更",null,null,"変更日",null,null,null,null,null,null,null,null,null,null,null,null,"令和",null,null,null,null,"4",null,"年",null,"9",null,"月",null,"25",null,"日"]
[null,null,null,"変更後",null,null,"対象者氏名",null,null,null,null,null,null,null,null,null,"富士　太郎",null,null,null,null,null,null,null,null,null,null,null,null,null,null,null,null,null,null,null,null,null,"職務",null,null,null,null,null,null,"代表者等"]
[null,null,null,null,null,null,"郵便番号",null,null,null,null,null,null,null,null,null,"420",null,null,null,"ー","0820"]
[null,null,null,null,null,null,"住所",null,null,null,null,null,null,null,null,null,"静岡市葵区鷹匠2-2-2"]
[null,null,null,null,null,null,"電話番号※注記有",null,null,null,null,null,null,null,null,null,"054",null,null,null,"-","246",null,null,null,"-","0001",null,null,null,"※","携帯電話のみの場合、上段の電話番号欄に携帯番号を入力してください。"]
[null,null,null,null,null,null,"携帯番号",null,null,null,null,null,null,null,null,null,"090",null,null,null,"-","0001",null,null,null,"-","0003"]
[]
["⑦氏名変更",null,null,"変更日",null,null,null,null,null,null,null,null,null,null,null,null,"令和",null,null,null,null,"4",null,"年",null,"10",null,"月",null,"3",null,"日"]
[null,null,null,"変更\n前",null,null,"氏名",null,null,null,null,null,null,null,null,null,"（フリガナ）",null,null,null,null,null,"シマダ　タカユキ"]
[null,null,null,null,null,null,null,null,null,null,null,null,null,null,null,null,"島田　孝之"]
[null,null,null,"変更\n後",null,null,"氏名",null,null,null,null,null,null,null,null,null,"（フリガナ）",null,null,null,null,null,"ヤイヅ　タカユキ"]
[null,null,null,null,null,null,null,null,null,null,null,null,null,null,null,null,"焼津　孝之"]
[]
["⑧新たに従事する者",null,null,"➀",null,null,"従事した日",null,null,null,null,null,null,null,null,null,"令和",null,null,null,null,"4",null,"年",null,"9",null,"月",null,"17",null,"日"]
[null,null,null,null,null,null,"氏名",null,null,null,null,null,null,null,null,null,"（フリガナ）",null,null,null,null,null,"イワタ　ナナ",null,null,null,null,null,null,null,null,null,null,"従業者番号",null,null,null,null,null,"220922",null,null,null,null,null,null,"職務",null,null,null,null,"営業"]
[null,null,null,null,null,null,null,null,null,null,null,null,null,null,null,null,"磐田　奈々"]
[null,null,null,null,null,null,"生年月日",null,null,null,null,null,null,null,null,null,"和暦",null,null,"平成",null,null,"8",null,"年",null,"10",null,null,"月",null,"24",null,null,"日",null,"年齢",null,null,null,"27",null,null,"歳",null,null,"性別",null,null,null,null,"女"]
[null,null,null,null,null,null,"※宅建士情報\n(取引士でない場合取引士証有無のみ選択)",null,null,null,null,null,null,null,null,null,"取引士証有無",null,null,null,null,null,"有",null,null,null,null,"登録番号",null,null,null,null,null,"(","22静岡県",null,null,null,null,null,")","第",null,"123456",null,null,null,null,null,"号"]
[null,null,null,null,null,null,null,null,null,null,null,null,null,null,null,null,"登録日",null,null,null,null,null,"令和",null,"1",null,"年",null,"2",null,"月",null,"10",null,"日",null,"有効期限",null,null,null,null,null,null,null,"令和",null,"6",null,"年",null,"2",null,"月",null,"9",null,"日"]
[null,null,null,"②",null,null,"従事した日",null,null,null,null,null,null,null,null,null,"令和",null,null,null,null,"4",null,"年",null,"9",null,"月",null,"17",null,"日"]
[null,null,null,null,null,null,"氏名",null,null,null,null,null,null,null,null,null,"（フリガナ）",null,null,null,null,null,"フジノミヤ　ケイ",null,null,null,null,null,null,null,null,null,null,"従業者番号",null,null,null,null,null,"220923",null,null,null,null,null,null,"職務",null,null,null,null,"営業"]
[null,null,null,null,null,null,null,null,null,null,null,null,null,null,null,null,"富士宮　圭"]
[null,null,null,null,null,null,"生年月日",null,null,null,null,null,null,null,null,null,"和暦",null,null,"平成",null,null,"7",null,"年",null,"12",null,null,"月",null,"29",null,null,"日",null,"年齢",null,null,null,"28",null,null,"歳",null,null,"性別",null,null,null,null,"男"]
[null,null,null,null,null,null,"※宅建士情報\n(取引士でない場合取引士証有無のみ選択)",null,null,null,null,null,null,null,null,null,"取引士証有無",null,null,null,null,null,"無",null,null,null,null,"登録番号",null,null,null,null,null,"(",null,null,null,null,null,null,")","第",null,null,null,null,null,null,null,"号",null,"専任か"]
[null,null,null,null,null,null,null,null,null,null,null,null,null,null,null,null,"登録日",null,null,null,null,null,null,null,null,null,"年",null,null,null,"月",null,null,null,"日",null,"有効期限",null,null,null,null,null,null,null,null,null,null,null,"年",null,null,null,"月",null,null,null,"日"]
[null,null,null,"③",null,null,"従事した日",null,null,null,null,null,null,null,null,null,"令和",null,null,null,null,"4",null,"年",null,"9",null,"月",null,"20",null,"日",null,null,null,null,null,null,null,null,null,null,null,null,null,null,null,null,null,null,null,null,null,null,null,null,null,null,null,null,null,null,null,"専任"]
[null,null,null,null,null,null,"氏名",null,null,null,null,null,null,null,null,null,"（フリガナ）",null,null,null,null,null,"ナガイズミ　ショウタ",null,null,null,null,null,null,null,null,null,null,"従業者番号",null,null,null,null,null,"220924",null,null,null,null,null,null,"職務",null,null,null,null,"営業",null,null,null,null,null,null,null,null,null,null,null,"非専任"]
[null,null,null,null,null,null,null,null,null,null,null,null,null,null,null,null,"長泉　翔太"]
[null,null,null,null,null,null,"生年月日",null,null,null,null,null,null,null,null,null,"和暦",null,null,"昭和",null,null,"60",null,"年",null,"7",null,null,"月",null,"24",null,null,"日",null,"年齢",null,null,null,"37",null,null,"歳",null,null,"性別",null,null,null,null,"男"]
[null,null,null,null,null,null,"※宅建士情報\n(取引士でない場合取引士証有無のみ選択)",null,null,null,null,null,null,null,null,null,"取引士証有無",null,null,null,null,null,"有",null,null,null,null,"登録番号",null,null,null,null,null,"(","22静岡県",null,null,null,null,null,")","第",null,"234567",null,null,null,null,null,"号",null,"専任か",null,null,null,"非専任"]
[null,null,null,null,null,null,null,null,null,null,null,null,null,null,null,null,"登録日",null,null,null,null,null,"平成",null,"26",null,"年",null,"6",null,"月",null,"1",null,"日",null,"有効期限",null,null,null,null,null,null,null,"令和",null,"6",null,"年",null,"5",null,"月",null,"31",null,"日"]
[null,null,null,"④",null,null,"従事した日",null,null,null,null,null,null,null,null,null,"令和",null,null,null,null,"4",null,"年",null,"9",null,"月",null,"25",null,"日"]
[null,null,null,null,null,null,"氏名",null,null,null,null,null,null,null,null,null,"（フリガナ）",null,null,null,null,null,"コサイ　マイ",null,null,null,null,null,null,null,null,null,null,"従業者番号",null,null,null,null,null,"220925",null,null,null,null,null,null,"職務",null,null,null,null,"事務"]
[null,null,null,null,null,null,null,null,null,null,null,null,null,null,null,null,"湖西　舞"]
[null,null,null,null,null,null,"生年月日",null,null,null,null,null,null,null,null,null,"和暦",null,null,"昭和",null,null,"50",null,"年",null,"8",null,null,"月",null,"11",null,null,"日",null,"年齢",null,null,null,"47",null,null,"歳",null,null,"性別",null,null,null,null,"女"]
[null,null,null,null,null,null,"※宅建士情報\n(取引士でない場合取引士証有無のみ選択)",null,null,null,null,null,null,null,null,null,"取引士証有無",null,null,null,null,null,"無",null,null,null,null,"登録番号",null,null,null,null,null,"(",null,null,null,null,null,null,")","第",null,null,null,null,null,null,null,"号",null,"専任か"]
[null,null,null,null,null,null,null,null,null,null,null,null,null,null,null,null,"登録日",null,null,null,null,null,null,null,null,null,"年",null,null,null,"月",null,null,null,"日",null,"有効期限",null,null,null,null,null,null,null,null,null,null,null,"年",null,null,null,"月",null,null,null,"日"]
[]
["⑨従事しなくなった者",null,null,"➀",null,null,"従事しなくなった日",null,null,null,null,null,null,null,null,null,"令和",null,null,null,null,"4",null,"年",null,"9",null,"月",null,"25",null,"日"]
[null,null,null,null,null,null,"氏名",null,null,null,null,null,null,null,null,null,"（フリガナ）",null,null,null,null,null,"フジエダ　ジロウ",null,null,null,null,null,null,null,null,null,null,"従業者番号",null,null,null,null,null,"180101",null,null,null,null,null,null,"職務",null,null,null,"代表取締役"]
[null,null,null,null,null,null,null,null,null,null,null,null,null,null,null,null,"藤枝　次郎"]
[null,null,null,"②",null,null,"従事しなくなった日",null,null,null,null,null,null,null,null,null,"令和",null,null,null,null,"4",null,"年",null,"9",null,"月",null,"29",null,"日"]
[null,null,null,null,null,null,"氏名",null,null,null,null,null,null,null,null,null,"（フリガナ）",null,null,null,null,null,"キクガワ　ミキ",null,null,null,null,null,null,null,null,null,null,"従業者番号",null,null,null,null,null,"200609",null,null,null,null,null,null,"職務",null,null,null,"営業"]
[null,null,null,null,null,null,null,null,null,null,null,null,null,null,null,null,"菊川　美樹"]
[null,null,null,"③",null,null,"従事しなくなった日",null,null,null,null,null,null,null,null,null,"令和",null,null,null,null,"4",null,"年",null,"9",null,"月",null,"30",null,"日"]
[null,null,null,null,null,null,"氏名",null,null,null,null,null,null,null,null,null,"（フリガナ）",null,null,null,null,null,"シモダ　エリ",null,null,null,null,null,null,null,null,null,null,"従業者番号",null,null,null,null,null,"210314",null,null,null,null,null,null,"職務",null,null,null,"事務"]
[null,null,null,null,null,null,null,null,null,null,null,null,null,null,null,null,"下田　絵梨"]

{"sheet":"(入力例 支店)入力シート","index":2,"n_rows":139,"n_cols":79,"rows_kept":139,"cut":false,"hidden":false,"merged":[[137,46,138,49],[137,50,138,59],[138,16,138,32],[136,27,136,28],[136,29,136,30],[136,31,136,32],[137,6,138,15],[137,16,137,21],[137,22,137,32],[136,3,138,5],[136,6,136,15],[136,16,136,20],[136,21,136,22],[136,23,136,24],[136,25,136,26],[133,3,135,5],[137,33,138,38],[137,39,138,45],[133,31,133,32],[134,6,135,15],[134,16,134,21],[134,22,134,32],[134,33,135,38],[134,39,135,45],[131,6,132,15],[131,16,131,21],[131,22,131,32],[131,33,132,38],[131,39,132,45],[131,46,132,49],[131,50,132,59],[132,16,132,32],[133,6,133,15],[133,16,133,20],[133,21,133,22],[133,23,133,24],[133,25,133,26],[133,27,133,28],[127,49,127,50],[127,51,127,54],[127,55,127,59],[128,16,128,21],[128,22,128,23],[134,46,135,49],[134,50,135,59],[135,16,135,32],[130,31,130,32],[127,34,127,39],[127,41,127,42],[128,32,128,33],[128,34,128,35],[128,36,128,43],[128,56,128,57],[130,0,138,2],[130,3,132,5],[130,6,130,15],[130,16,130,20],[130,21,130,22],[130,23,130,24],[130,25,130,26],[130,27,130,28],[130,29,130,30],[128,44,128,45],[128,46,128,47],[128,48,128,49],[128,50,128,51],[128,52,128,53],[128,54,128,55],[127,6,128,15],[133,29,133,30],[127,43,127,48],[126,34,126,35],[126,36,126,39],[126,40,126,42],[126,43,126,44],[126,46,126,50],[126,51,126,59],[124,51,125,59],[125,16,125,32],[126,6,126,15],[126,16,126,18],[126,19,126,21],[126,22,126,23],[126,24,126,25],[126,26,126,28],[126,29,126,30],[126,31,126,33],[124,6,125,15],[124,16,124,21],[124,22,124,32],[124,33,125,38],[124,39,125,45],[124,46,125,50],[123,3,128,5],[123,6,123,15],[123,16,123,20],[123,21,123,22],[123,23,123,24],[123,25,123,26],[123,27,123,28],[123,29,123,30],[123,31,123,32],[128,24,128,25],[128,26,128,27],[128,28,128,29],[128,30,128,31],[127,16,127,21],[127,22,127,26],[127,27,127,32],[121,55,121,59],[122,16,122,21],[122,22,122,23],[122,24,122,25],[122,26,122,27],[122,28,122,29],[122,30,122,31],[122,32,122,33],[122,34,122,35],[122,36,122,43],[122,56,122,57],[122,44,122,45],[122,46,122,47],[122,48,122,49],[122,50,122,51],[122,52,122,53],[122,54,122,55],[121,6,122,15],[121,16,121,21],[121,22,121,26],[121,27,121,32],[121,34,121,39],[121,41,121,42],[121,43,121,48],[121,49,121,50],[121,51,121,54],[118,51,119,59],[119,16,119,32],[120,6,120,15],[120,16,120,18],[120,19,120,21],[120,22,120,23],[120,24,120,25],[120,26,120,28],[120,29,120,30],[120,51,120,59],[120,31,120,33],[120,34,120,35],[120,36,120,39],[120,40,120,42],[120,43,120,44],[120,46,120,50],[117,31,117,32],[118,6,119,15],[118,16,118,21],[118,22,118,32],[118,33,119,38],[118,39,119,45],[116,54,116,55],[116,56,116,57],[117,3,122,5],[117,6,117,15],[117,16,117,20],[117,21,117,22],[117,23,117,24],[117,25,117,26],[117,27,117,28],[117,29,117,30],[116,36,116,43],[116,44,116,45],[116,46,116,47],[116,48,116,49],[116,50,116,51],[116,52,116,53],[111,3,116,5],[118,46,119,50],[115,51,115,54],[115,55,115,59],[116,16,116,21],[116,22,116,23],[116,24,116,25],[116,26,116,27],[116,28,116,29],[116,30,116,31],[116,32,116,33],[116,34,116,35],[115,6,116,15],[115,16,115,21],[115,22,115,26],[115,27,115,32],[115,34,115,39],[115,41,115,42],[115,43,115,48],[115,49,115,50],[114,29,114,30],[114,31,114,33],[114,34,114,35],[114,36,114,39],[114,40,114,42],[114,43,114,44],[112,39,113,45],[112,46,113,50],[112,51,113,59],[113,16,113,32],[114,6,114,15],[114,16,114,18],[114,19,114,21],[114,22,114,23],[114,24,114,25],[114,26,114,28],[114,46,114,50],[114,51,114,59],[111,29,111,30],[111,31,111,32],[112,6,113,15],[112,16,112,21],[112,22,112,32],[112,33,113,38],[110,52,110,53],[110,54,110,55],[110,56,110,57],[111,6,111,15],[111,16,111,20],[111,21,111,22],[111,23,111,24],[111,25,111,26],[111,27,111,28],[110,34,110,35],[110,36,110,43],[110,44,110,45],[110,46,110,47],[110,48,110,49],[110,50,110,51],[110,22,110,23],[110,24,110,25],[110,26,110,27],[108,26,108,28],[108,29,108,30],[110,28,110,29],[110,30,110,31],[110,32,110,33],[108,51,108,59],[109,6,110,15],[109,16,109,21],[109,22,109,26],[109,27,109,32],[109,34,109,39],[109,41,109,42],[109,43,109,48],[109,49,109,50],[110,16,110,21],[108,31,108,33],[108,34,108,35],[108,36,108,39],[108,40,108,42],[108,43,108,44],[108,46,108,50],[105,31,105,32],[106,6,107,15],[106,16,106,21],[106,22,106,32],[106,33,107,38],[106,39,107,45],[103,16,103,59],[105,0,128,2],[105,3,110,5],[105,6,105,15],[105,16,105,20],[105,21,105,22],[105,23,105,24],[105,25,105,26],[105,27,105,28],[105,29,105,30],[106,46,107,50],[106,51,107,59],[107,16,107,32],[108,6,108,15],[108,16,108,18],[108,19,108,21],[108,22,108,23],[108,24,108,25],[99,27,99,28],[99,29,99,30],[99,31,99,32],[100,3,101,5],[100,6,101,15],[100,16,100,21],[100,22,100,59],[101,16,101,59],[99,0,103,2],[99,3,99,15],[99,16,99,20],[99,21,99,22],[99,23,99,24],[99,25,99,26],[102,3,103,5],[102,6,103,15],[102,16,102,21],[102,22,102,59],[93,3,97,5],[93,6,93,15],[93,16,93,37],[96,6,96,15],[96,16,96,19],[96,21,96,24],[96,26,96,29],[96,30,97,30],[96,31,97,59],[97,6,97,15],[97,16,97,19],[97,21,97,24],[97,26,97,29],[93,38,93,44],[93,45,93,52],[94,6,94,15],[94,16,94,19],[94,21,94,26],[95,6,95,15],[95,16,95,59],[89,52,89,53],[89,54,89,55],[89,56,89,57],[92,0,97,2],[92,3,92,15],[92,16,92,20],[92,21,92,22],[92,23,92,24],[92,25,92,26],[89,32,89,33],[89,34,89,35],[89,36,89,43],[89,44,89,45],[89,46,89,47],[89,48,89,49],[89,16,89,21],[89,22,89,23],[89,24,89,25],[89,26,89,27],[89,28,89,29],[89,30,89,31],[92,27,92,28],[92,29,92,30],[92,31,92,32],[88,6,89,15],[88,16,88,21],[88,22,88,26],[88,27,88,32],[88,34,88,39],[88,41,88,42],[88,43,88,48],[88,49,88,50],[89,50,89,51],[86,21,86,24],[86,26,86,29],[87,6,87,15],[87,16,87,21],[87,22,87,31],[87,32,87,41],[84,6,84,15],[84,16,84,59],[85,6,85,15],[85,16,85,19],[85,21,85,24],[85,26,85,29],[85,30,86,30],[85,31,86,59],[86,6,86,15],[86,16,86,19],[87,42,87,51],[87,52,87,59],[83,6,83,15],[83,16,83,19],[83,21,83,26],[82,24,82,25],[82,26,82,28],[82,29,82,30],[82,31,82,33],[82,34,82,35],[82,36,82,39],[79,16,79,18],[79,19,79,21],[79,22,79,23],[79,24,79,25],[79,26,79,28],[82,40,82,42],[82,43,82,44],[82,45,82,51],[82,52,82,59],[76,50,76,51],[76,52,76,53],[76,54,76,55],[76,56,76,57],[76,58,76,59],[77,3,79,5],[77,6,78,15],[77,16,77,21],[77,22,77,59],[78,16,78,59],[76,27,76,28],[76,29,76,30],[76,31,76,32],[76,33,76,42],[76,43,76,47],[76,48,76,49],[79,52,79,59],[79,29,79,30],[79,31,79,33],[79,34,79,35],[79,36,79,39],[79,40,79,44],[79,45,79,51],[79,6,79,15],[76,0,89,2],[76,3,76,15],[76,16,76,20],[76,21,76,22],[76,23,76,24],[76,25,76,26],[74,32,74,33],[74,34,74,35],[74,36,74,43],[74,16,74,21],[74,22,74,23],[74,24,74,25],[74,26,74,27],[74,28,74,29],[74,30,74,31],[80,3,89,5],[80,6,81,15],[80,16,80,21],[80,22,80,59],[81,16,81,59],[82,6,82,15],[82,16,82,18],[82,19,82,21],[82,22,82,23],[71,16,71,19],[72,42,72,51],[72,52,72,59],[73,6,74,15],[73,16,73,21],[73,22,73,26],[73,27,73,32],[73,34,73,39],[73,41,73,42],[73,43,73,48],[73,49,73,50],[74,50,74,51],[74,52,74,53],[74,54,74,55],[74,56,74,57],[74,44,74,45],[74,46,74,47],[74,48,74,49],[64,19,64,21],[64,22,64,23],[64,24,64,25],[64,26,64,28],[67,40,67,42],[67,43,67,44],[67,45,67,51],[67,52,67,59],[68,6,68,15],[68,16,68,19],[68,21,68,26],[67,24,67,25],[67,26,67,28],[67,29,67,30],[67,31,67,33],[67,34,67,35],[67,36,67,39],[65,3,74,5],[65,6,66,15],[65,16,65,21],[65,22,65,59],[66,16,66,59],[67,6,67,15],[67,16,67,18],[67,19,67,21],[67,22,67,23],[71,21,71,24],[71,26,71,29],[72,6,72,15],[72,16,72,21],[72,22,72,31],[72,32,72,41],[69,6,69,15],[69,16,69,59],[70,6,70,15],[70,16,70,19],[70,21,70,24],[70,26,70,29],[70,30,71,30],[70,31,71,59],[71,6,71,15],[61,52,61,53],[61,54,61,55],[61,56,61,57],[61,58,61,59],[62,3,64,5],[62,6,63,15],[62,16,62,21],[62,22,62,59],[63,16,63,59],[61,27,61,28],[61,29,61,30],[61,31,61,32],[61,33,61,42],[61,43,61,47],[61,48,61,49],[64,52,64,59],[64,29,64,30],[64,31,64,33],[64,34,64,35],[64,36,64,39],[64,40,64,44],[64,45,64,51],[64,6,64,15],[64,16,64,18],[59,52,59,53],[59,54,59,55],[59,56,59,57],[61,0,74,2],[61,3,61,15],[61,16,61,20],[61,21,61,22],[61,23,61,24],[61,25,61,26],[59,32,59,33],[59,34,59,35],[59,36,59,43],[59,44,59,45],[59,46,59,47],[59,48,59,49],[59,16,59,21],[59,22,59,23],[59,24,59,25],[59,26,59,27],[59,28,59,29],[59,30,59,31],[50,3,59,5],[50,6,51,15],[61,50,61,51],[58,6,59,15],[58,16,58,21],[58,22,58,26],[58,27,58,32],[58,34,58,39],[58,41,58,42],[58,43,58,48],[58,49,58,50],[59,50,59,51],[56,21,56,24],[56,26,56,29],[57,6,57,15],[57,16,57,21],[57,22,57,31],[57,32,57,41],[54,6,54,15],[54,16,54,59],[55,6,55,15],[55,16,55,19],[55,21,55,24],[55,26,55,29],[55,30,56,30],[55,31,56,59],[56,6,56,15],[56,16,56,19],[57,42,57,51],[57,52,57,59],[52,43,52,44],[52,45,52,51],[52,52,52,59],[53,6,53,15],[53,16,53,19],[53,21,53,26],[52,26,52,28],[52,29,52,30],[52,31,52,33],[52,34,52,35],[52,36,52,39],[52,40,52,42],[49,31,49,33],[49,34,49,35],[49,36,49,39],[49,40,49,44],[49,45,49,51],[49,52,49,59],[49,16,49,18],[49,19,49,21],[49,22,49,23],[49,24,49,25],[49,26,49,28],[49,29,49,30],[46,54,46,55],[46,56,46,57],[46,58,46,59],[47,0,59,2],[47,3,49,5],[47,6,48,15],[47,16,47,21],[47,22,47,59],[48,16,48,59],[49,6,49,15],[46,31,46,32],[46,33,46,42],[46,43,46,47],[46,48,46,49],[46,50,46,51],[46,52,46,53],[50,16,50,21],[50,22,50,59],[51,16,51,59],[52,6,52,15],[52,16,52,18],[52,19,52,21],[52,22,52,23],[52,24,52,25],[41,16,41,25],[41,26,41,36],[41,38,41,48],[46,3,46,15],[46,16,46,20],[46,21,46,22],[46,23,46,24],[46,25,46,26],[46,27,46,28],[46,29,46,30],[31,29,31,30],[31,31,31,32],[39,16,39,25],[39,26,39,29],[39,31,39,34],[39,36,39,39],[40,16,40,25],[40,26,40,36],[40,38,40,48],[36,31,36,36],[37,16,37,25],[37,26,37,59],[38,16,38,25],[38,26,38,29],[38,31,38,34],[38,36,38,39],[32,3,35,15],[32,16,32,25],[32,26,32,29],[32,31,32,36],[33,16,33,25],[33,26,33,59],[34,16,34,25],[31,0,41,2],[31,3,31,15],[31,16,31,20],[31,21,31,22],[31,23,31,24],[31,25,31,26],[34,26,34,29],[36,3,41,15],[36,16,36,25],[36,26,36,29],[34,31,34,34],[34,36,34,39],[35,16,35,25],[35,26,35,29],[35,31,35,34],[35,36,35,39],[31,27,31,28],[27,36,27,59],[28,3,29,15],[28,16,28,19],[28,20,28,35],[28,36,28,39],[28,40,28,59],[29,16,29,35],[29,36,29,59],[25,27,25,28],[25,29,25,30],[25,31,25,32],[25,36,25,59],[26,3,27,15],[26,16,26,19],[26,20,26,35],[26,36,26,39],[26,40,26,59],[27,16,27,35],[25,0,29,2],[25,3,25,15],[25,16,25,20],[25,21,25,22],[25,23,25,24],[25,25,25,26],[21,0,21,1],[21,2,21,15],[21,16,21,17],[21,18,21,31],[21,32,21,33],[21,34,21,55],[20,0,20,1],[20,2,20,15],[20,16,20,17],[20,18,20,30],[20,32,20,33],[20,34,20,58],[15,58,16,59],[19,0,19,1],[19,2,19,15],[19,16,19,17],[19,18,19,25],[19,32,19,33],[19,34,19,58],[15,16,16,26],[15,27,16,29],[15,30,16,35],[15,36,16,37],[15,38,16,51],[15,52,16,57],[13,42,13,45],[3,29,3,30],[7,0,7,7],[8,0,16,2],[8,3,16,5],[8,6,8,15],[8,16,8,59],[9,6,9,15],[10,39,10,49],[10,50,10,59],[11,6,12,15],[11,16,12,21],[11,22,12,32],[11,33,12,59],[9,16,9,20],[9,22,9,23],[9,25,9,26],[9,27,9,31],[9,32,9,33],[10,6,10,15],[10,16,10,38],[13,47,13,50],[14,6,14,15],[14,16,14,59],[15,6,16,15],[0,0,0,59],[2,0,2,7],[2,8,2,12],[2,13,2,14],[2,15,2,16],[2,17,2,18],[2,19,2,20],[2,21,2,22],[2,23,2,24],[2,29,2,33],[2,34,2,38],[2,39,2,43],[2,44,2,48],[13,6,13,15],[13,16,13,19],[13,21,13,26],[13,27,13,36],[13,37,13,40]]}
["※「入力例（支店の場合）」　入力シート【変更届出用】"]
[]
["申請日",null,null,null,null,null,null,null,"令和",null,null,null,null,4,null,"年",null,10,null,"月",null,5,null,"日",null,null,null,null,null,"西部",null,null,null,null,"支部",null,null,null,null,"浜松",null,null,null,null,"地区",null,null,null,null,null,null,null,null,null,null,null,null,null,null,null,null,null,"東部",null,null,null,"下田",null,null,null,"22静岡県",null,null,null,null,null,null,null,"入力セル"]
[null,null,null,null,null,null,null,null,null,null,null,null,null,null,null,null,null,null,null,null,null,null,null,null,null,null,null,null,null,"↑",null,"変更する店舗の所属する支部・地区を選択。",null,null,null,null,null,null,null,null,null,null,null,null,null,null,null,null,null,null,null,null,null,null,null,null,null,null,null,null,null,null,"中部",null,null,null,"伊東",null,null,null,"01北海道",null,null,null,null,null,null,null,"選択セル"]
["【入力方法の説明】",null,null,null,null,null,null,null,null,null,null,null,null,null,null,null,null,null,null,null,null,null,null,null,null,null,null,null,null,null,null,null,null,null,null,null,null,null,null,null,null,null,null,null,null,null,null,null,null,null,null,null,null,null,null,null,null,null,null,null,null,null,"西部",null,null,null,"熱海",null,null,null,"02青森県"]
["・","入力必須項目は全て入力してください。",null,null,null,null,null,null,null,null,null,null,null,null,null,null,null,null,null,null,null,null,null,null,null,null,null,null,null,null,null,null,null,null,null,null,null,null,null,null,null,null,null,null,null,null,null,null,null,null,null,null,null,null,null,null,null,null,null,null,null,null,null,null,null,null,"三島",null,null,null,"03岩手県"]
["・","変更事項がある場合、その項目のみ「変更前」と「変更後」を入力してください。",null,null,null,null,null,null,null,null,null,null,null,null,null,null,null,null,null,null,null,null,null,null,null,null,null,null,null,null,null,null,null,null,null,null,null,null,null,null,null,null,null,null,null,null,null,null,null,null,null,null,null,null,null,null,null,null,null,null,null,null,null,null,null,null,"沼津",null,null,null,"04宮城県"]
[null,null,null,null,null,null,null,null,null,null,null,null,null,null,null,null,null,null,null,null,null,null,null,null,null,null,null,null,null,null,null,null,null,null,null,null,null,null,null,null,null,null,null,null,null,null,null,null,null,null,null,null,null,null,null,null,null,null,null,null,null,null,null,null,null,null,"駿東",null,null,null,"05秋田県"]
["入力必須",null,null,"変更がある項目は\n「変更後」を入力",null,null,"本店商号又は名称",null,null,null,null,null,null,null,null,null,"株式会社静岡富士宅建不動産",null,null,null,null,null,null,null,null,null,null,null,null,null,null,null,null,null,null,null,null,null,null,null,null,null,null,null,null,null,null,null,null,null,null,null,null,null,null,null,null,null,null,null,null,null,null,null,null,null,"富士",null,null,null,"06山形県"]
[null,null,null,null,null,null,"免許番号",null,null,null,null,null,null,null,null,null,"知事",null,null,null,null,"(",1,null,")","第",null,18000,null,null,null,null,"号",null,null,null,null,null,null,null,null,null,null,null,null,null,null,null,null,null,null,null,null,null,null,null,null,null,null,null,null,null,null,"知事",null,null,"清水",null,null,null,"07福島県"]
[null,null,null,null,null,null,"本店の代表者氏名",null,null,null,null,null,null,null,null,null,"富士　太郎",null,null,null,null,null,null,null,null,null,null,null,null,null,null,null,null,null,null,null,null,null,null,"本店代表者役職",null,null,null,null,null,null,null,null,null,null,"代表取締役",null,null,null,null,null,null,null,null,null,null,null,null,"大臣",null,null,"静岡",null,null,null,"08茨城県"]
[null,null,null,null,null,null,"変更対象",null,null,null,null,null,null,null,null,null,"準会員",null,null,null,null,null,"※準会員の場合、\n右に支店等名称を記載",null,null,null,null,null,null,null,null,null,null,"浜松支店",null,null,null,null,null,null,null,null,null,null,null,null,null,null,null,null,null,null,null,null,null,null,null,null,null,null,null,null,null,null,null,null,"しだはい",null,null,null,"09栃木県"]
[null,null,null,null,null,null,null,null,null,null,null,null,null,null,null,null,null,null,null,null,null,null,null,null,null,null,null,null,null,null,null,null,null,null,null,null,null,null,null,null,null,null,null,null,null,null,null,null,null,null,null,null,null,null,null,null,null,null,null,null,null,null,null,"男",null,null,"中遠",null,null,null,"10群馬県"]
[null,null,null,null,null,null,"郵便番号",null,null,null,null,null,null,null,null,null,"430",null,null,null,"-","0901",null,null,null,null,null,"電話番号",null,null,null,null,null,null,null,null,null,"053",null,null,null,"-","475",null,null,null,"-","0000",null,null,null,null,null,null,null,null,null,null,null,null,null,null,null,"女",null,null,"浜松",null,null,null,"11埼玉県"]
[null,null,null,null,null,null,"住所",null,null,null,null,null,null,null,null,null,"浜松市中区曳馬1-1-1-1-1",null,null,null,null,null,null,null,null,null,null,null,null,null,null,null,null,null,null,null,null,null,null,null,null,null,null,null,null,null,null,null,null,null,null,null,null,null,null,null,null,null,null,null,null,null,null,null,null,null,null,null,null,null,"12千葉県"]
[null,null,null,null,null,null,"従業者数\n(変更後の事務所内)",null,null,null,null,null,null,null,null,null,"宅建業に従事する者",null,null,null,null,null,null,null,null,null,null,"総数",null,null,7,null,null,null,null,null,"名",null,"うち専任宅地建物取引士",null,null,null,null,null,null,null,null,null,null,null,null,null,2,null,null,null,null,null,"名",null,null,null,null,null,null,null,"正会員",null,null,null,"13東京都"]
[null,null,null,null,null,null,null,null,null,null,null,null,null,null,null,null,null,null,null,null,null,null,null,null,null,null,null,null,null,null,null,null,null,null,null,null,null,null,null,null,null,null,null,null,null,null,null,null,null,null,null,null,null,null,null,null,null,null,null,null,null,null,null,"昭和",null,null,"準会員",null,null,null,"14神奈川県",null,null,null,"IP型","正会員"]
[null,null,null,null,null,null,null,null,null,null,null,null,null,null,null,null,null,null,null,null,null,null,null,null,null,null,null,null,null,null,null,null,null,null,null,null,null,null,null,null,null,null,null,null,null,null,null,null,null,null,null,null,null,null,null,null,null,null,null,null,null,null,null,"平成",null,null,"賛助会員",null,null,null,"15新潟県",null,null,null,"F型","準会員"]
["変更事項種類（選択すると入力箇所へ飛びます）",null,null,null,null,null,null,null,null,null,null,null,null,null,null,null,null,null,null,null,null,null,null,null,null,null,null,null,null,null,null,null,null,null,null,null,null,null,null,null,null,null,null,null,null,null,null,null,null,null,null,null,null,null,null,null,null,null,null,null,null,null,null,"令和",null,null,null,null,null,null,"16富山県",null,null,null,"F型+IP型"]
["➀",null,"商号",null,null,null,null,null,null,null,null,null,null,null,null,null,"②",null,"事務所情報",null,null,null,null,null,null,null,null,null,null,null,null,null,"③",null,"代表者(支店等の代表者・政令使用人含む)",null,null,null,null,null,null,null,null,null,null,null,null,null,null,null,null,null,null,null,null,null,null,null,null,null,null,null,null,null,null,null,null,null,null,null,"17石川県"]
["④",null,"筆頭の専任取引士",null,null,null,null,null,null,null,null,null,null,null,null,null,"⑤",null,"筆頭以外の専任取引士",null,null,null,null,null,null,null,null,null,null,null,null,null,"⑥",null,"住所変更（本店と支店の代表者、専任取引士のみ）",null,null,null,null,null,null,null,null,null,null,null,null,null,null,null,null,null,null,null,null,null,null,null,null,null,null,null,null,"有",null,null,null,null,null,null,"18福井県",null,null,null,"代表取締役","代表者"]
["⑦",null,"氏名変更（従業者含む）",null,null,null,null,null,null,null,null,null,null,null,null,null,"⑧",null,"新たに従事するもの",null,null,null,null,null,null,null,null,null,null,null,null,null,"⑨",null,"従事しなくなった者",null,null,null,null,null,null,null,null,null,null,null,null,null,null,null,null,null,null,null,null,null,null,null,null,null,null,null,null,"無",null,null,null,null,null,null,"19山梨県",null,null,null,"取締役","代表取締役"]
[null,null,null,null,null,null,null,null,null,null,null,null,null,null,null,null,null,null,null,null,null,null,null,null,null,null,null,null,null,null,null,null,null,null,null,null,null,null,null,null,null,null,null,null,null,null,null,null,null,null,null,null,null,null,null,null,null,null,null,null,null,null,null,null,null,null,null,null,null,null,"20長野県",null,null,null,"代表理事","取締役"]
[null,null,null,null,null,null,null,null,null,null,null,null,null,null,null,null,null,null,null,null,null,null,null,null,null,null,null,null,null,null,null,null,null,null,null,null,null,null,null,null,null,null,null,null,null,null,null,null,null,null,null,null,null,null,null,null,null,null,null,null,null,null,null,null,null,null,null,null,null,null,"21岐阜県",null,null,null,"代表社員","代表理事"]
[null,null,null,null,null,null,null,null,null,null,null,null,null,null,null,null,null,null,null,null,null,null,null,null,null,null,null,null,null,null,null,null,null,null,null,null,null,null,null,null,null,null,null,null,null,null,null,null,null,null,null,null,null,null,null,null,null,null,null,null,null,null,null,"独立建物",null,null,null,null,null,null,"23愛知県",null,null,null,"代表執行役","政令使用人"]
["➀商号",null,null,"変更日",null,null,null,null,null,null,null,null,null,null,null,null,"令和",null,null,null,null,"4",null,"年",null,"10",null,"月",null,"1",null,"日",null,null,null,null,"↓支店の場合、ここから支店等名称のみを記載",null,null,null,null,null,null,null,null,null,null,null,null,null,null,null,null,null,null,null,null,null,null,null,null,null,null,"住宅併用",null,null,null,null,null,null,"24三重県",null,null,null,null,"支店長"]
[null,null,null,"変更前",null,null,null,null,null,null,null,null,null,null,null,null,"(ﾌﾘｶﾞﾅ)",null,null,null,null,null,null,null,null,null,null,null,null,null,null,null,null,null,null,null,"(ﾌﾘｶﾞﾅ)",null,null,null,"ハママツチュウオウシテン",null,null,null,null,null,null,null,null,null,null,null,null,null,null,null,null,null,null,null,null,null,null,"集合ビル",null,null,null,null,null,null,"25滋賀県",null,null,null,"常勤","事務"]
[null,null,null,null,null,null,null,null,null,null,null,null,null,null,null,null,null,null,null,null,null,null,null,null,null,null,null,null,null,null,null,null,null,null,null,null,"浜松中央支店",null,null,null,null,null,null,null,null,null,null,null,null,null,null,null,null,null,null,null,null,null,null,null,null,null,null,"その他",null,null,null,null,null,null,"26京都府",null,null,null,"非常勤","営業"]
[null,null,null,"変更後",null,null,null,null,null,null,null,null,null,null,null,null,"(ﾌﾘｶﾞﾅ)",null,null,null,null,null,null,null,null,null,null,null,null,null,null,null,null,null,null,null,"(ﾌﾘｶﾞﾅ)",null,null,null,"ハママツシテン",null,null,null,null,null,null,null,null,null,null,null,null,null,null,null,null,null,null,null,null,null,null,null,null,null,null,null,null,null,"27大阪府",null,null,null,null,"営業・事務"]
[null,null,null,null,null,null,null,null,null,null,null,null,null,null,null,null,null,null,null,null,null,null,null,null,null,null,null,null,null,null,null,null,null,null,null,null,"浜松支店",null,null,null,null,null,null,null,null,null,null,null,null,null,null,null,null,null,null,null,null,null,null,null,null,null,null,"自己(自社)所有",null,null,null,null,null,null,"28兵庫県",null,null,null,null,"その他"]
[null,null,null,null,null,null,null,null,null,null,null,null,null,null,null,null,null,null,null,null,null,null,null,null,null,null,null,null,null,null,null,null,null,null,null,null,null,null,null,null,null,null,null,null,null,null,null,null,null,null,null,null,null,null,null,null,null,null,null,null,null,null,null,"賃貸",null,null,null,null,null,null,"29奈良県"]
["②事務所情報",null,null,"変更日",null,null,null,null,null,null,null,null,null,null,null,null,"令和",null,null,null,null,"4",null,"年",null,"10",null,"月",null,"1",null,"日",null,null,null,null,null,null,null,null,null,null,null,null,null,null,null,null,null,null,null,null,null,null,null,null,null,null,null,null,null,null,null,"その他",null,null,null,null,null,null,"30和歌山県"]
[null,null,null,"変更前",null,null,null,null,null,null,null,null,null,null,null,null,"郵便番号",null,null,null,null,null,null,null,null,null,"430",null,null,null,"-","0853",null,null,null,null,null,null,null,null,null,null,null,null,null,null,null,null,null,null,null,null,null,null,null,null,null,null,null,null,null,null,null,null,null,null,null,null,null,null,"31鳥取県"]
[null,null,null,null,null,null,null,null,null,null,null,null,null,null,null,null,"住所",null,null,null,null,null,null,null,null,null,"浜松市東区有玉2-2-2-2-2",null,null,null,null,null,null,null,null,null,null,null,null,null,null,null,null,null,null,null,null,null,null,null,null,null,null,null,null,null,null,null,null,null,null,null,null,"専任","◎",null,null,null,null,null,"32島根県"]
[null,null,null,null,null,null,null,null,null,null,null,null,null,null,null,null,"電話番号",null,null,null,null,null,null,null,null,null,"053",null,null,null,"-","000",null,null,null,"-","0001",null,null,null,null,null,null,null,null,null,null,null,null,null,null,null,null,null,null,null,null,null,null,null,null,null,null,"その他の取引士","〇",null,null,null,null,null,"33岡山県",null,null,null,"現住所"]
[null,null,null,null,null,null,null,null,null,null,null,null,null,null,null,null,"FAX番号",null,null,null,null,null,null,null,null,null,"053",null,null,null,"-","000",null,null,null,"-","0002",null,null,null,null,null,null,null,null,null,null,null,null,null,null,null,null,null,null,null,null,null,null,null,null,null,null,null,null,null,null,null,null,null,"34広島県",null,null,null,"勤務先"]
[null,null,null,"変更後",null,null,null,null,null,null,null,null,null,null,null,null,"郵便番号",null,null,null,null,null,null,null,null,null,"430",null,null,null,"-","0901",null,null,null,null,null,null,null,null,null,null,null,null,null,null,null,null,null,null,null,null,null,null,null,null,null,null,null,null,null,null,null,null,null,null,null,null,null,null,"35山口県"]
[null,null,null,null,null,null,null,null,null,null,null,null,null,null,null,null,"住所",null,null,null,null,null,null,null,null,null,"浜松市中区曳馬1-1-1-1-1",null,null,null,null,null,null,null,null,null,null,null,null,null,null,null,null,null,null,null,null,null,null,null,null,null,null,null,null,null,null,null,null,null,null,null,null,null,null,null,null,null,null,null,"36徳島県"]
[null,null,null,null,null,null,null,null,null,null,null,null,null,null,null,null,"電話番号",null,null,null,null,null,null,null,null,null,"053",null,null,null,"-","000",null,null,null,"-","0001",null,null,null,null,null,null,null,null,null,null,null,null,null,null,null,null,null,null,null,null,null,null,null,null,null,null,null,null,null,null,null,null,null,"37香川県"]
[null,null,null,null,null,null,null,null,null,null,null,null,null,null,null,null,"FAX番号",null,null,null,null,null,null,null,null,null,"053",null,null,null,"-","000",null,null,null,"-","0002",null,null,null,null,null,null,null,null,null,null,null,null,null,null,null,null,null,null,null,null,null,null,null,null,null,null,"営業",null,null,null,null,null,null,"38愛媛県"]
[null,null,null,null,null,null,null,null,null,null,null,null,null,null,null,null,"事務所形態",null,null,null,null,null,null,null,null,null,"独立建物",null,null,null,null,null,null,null,null,null,null,"(",null,null,null,null,null,null,null,null,null,null,null,")",null,null,null,null,null,null,null,null,null,null,null,null,null,"事務",null,null,null,null,null,null,"39高知県"]
[null,null,null,null,null,null,null,null,null,null,null,null,null,null,null,null,"使用権原",null,null,null,null,null,null,null,null,null,"自己(自社)所有",null,null,null,null,null,null,null,null,null,null,"(",null,null,null,null,null,null,null,null,null,null,null,")",null,null,null,null,null,null,null,null,null,null,null,null,null,null,null,null,null,null,null,null,"40福岡県"]
[null,null,null,null,null,null,null,null,null,null,null,null,null,null,null,null,null,null,null,null,null,null,null,null,null,null,null,null,null,null,null,null,null,null,null,null,null,null,null,null,null,null,null,null,null,null,null,null,null,null,null,null,null,null,null,null,null,null,null,null,null,null,null,"代表取締役",null,null,null,null,null,null,"41佐賀県"]
[null,null,null,null,null,null,null,null,null,null,null,null,null,null,null,null,null,null,null,null,null,null,null,null,null,null,null,null,null,null,null,null,null,null,null,null,null,null,null,null,null,null,null,null,null,null,null,null,null,null,null,null,null,null,null,null,null,null,null,null,null,null,null,"取締役",null,null,null,null,null,null,"42長崎県"]
[null,null,null,null,null,null,null,null,null,null,null,null,null,null,null,null,null,null,null,null,null,null,null,null,null,null,null,null,null,null,null,null,null,null,null,null,null,null,null,null,null,null,null,null,null,null,null,null,null,null,null,null,null,null,null,null,null,null,null,null,null,null,null,"政令使用人",null,null,null,null,null,null,"43熊本県"]
[null,null,null,null,null,null,null,null,null,null,null,null,null,null,null,null,null,null,null,null,null,null,null,null,null,null,null,null,null,null,null,null,null,null,null,null,null,null,null,null,null,null,null,null,null,null,null,null,null,null,null,null,null,null,null,null,null,null,null,null,null,null,null,"支店長等",null,null,null,null,null,null,"44大分県"]
[null,null,null,"従事しなくなった日",null,null,null,null,null,null,null,null,null,null,null,null,"令和",null,null,null,null,"4",null,"年",null,"9",null,"月",null,"25",null,"日",null,"従事した日",null,null,null,null,null,null,null,null,null,"令和",null,null,null,null,"4",null,"年",null,"9",null,"月",null,"25",null,"日",null,null,null,null,"従業員",null,null,null,null,null,null,"45宮崎県"]
["③代表者(支店等の代表者・\n政令使用人含む)",null,null,"変更前",null,null,"氏名",null,null,null,null,null,null,null,null,null,"（フリガナ）",null,null,null,null,null,"カケガワ　ユウト",null,null,null,null,null,null,null,null,null,null,null,null,null,null,null,null,null,null,null,null,null,null,null,null,null,null,null,null,null,null,null,null,null,null,null,null,null,null,null,null,null,null,null,null,null,null,null,"46鹿児島県"]
[null,null,null,null,null,null,null,null,null,null,null,null,null,null,null,null,"掛川　悠斗",null,null,null,null,null,null,null,null,null,null,null,null,null,null,null,null,null,null,null,null,null,null,null,null,null,null,null,null,null,null,null,null,null,null,null,null,null,null,null,null,null,null,null,null,null,null,"専任取引士",null,null,null,null,null,null,"47沖縄県"]
[null,null,null,null,null,null,"生年月日",null,null,null,null,null,null,null,null,null,"和暦",null,null,"昭和",null,null,"50",null,"年",null,"７",null,null,"月",null,"20",null,null,"日",null,"性別",null,null,null,"男",null,null,null,null,null,null,null,null,null,null,null,null,null,null,null,null,null,null,null,null,null,null,"非専任取引士"]
[null,null,null,"変更後",null,null,"氏名",null,null,null,null,null,null,null,null,null,"（フリガナ）",null,null,null,null,null,"イトウ　マサミ",null,null,null,null,null,null,null,null,null,null,null,null,null,null,null,null,null,null,null,null,null,null,null,null,null,null,null,null,null,null,null,null,null,null,null,null,null,null,null,null,"営業"]
[null,null,null,null,null,null,null,null,null,null,null,null,null,null,null,null,"伊東　正美",null,null,null,null,null,null,null,null,null,null,null,null,null,null,null,null,null,null,null,null,null,null,null,null,null,null,null,null,null,null,null,null,null,null,null,null,null,null,null,null,null,null,null,null,null,null,"事務"]
[null,null,null,null,null,null,"生年月日",null,null,null,null,null,null,null,null,null,"和暦",null,null,"昭和",null,null,"40",null,"年",null,"8",null,null,"月",null,"4",null,null,"日",null,null,null,null,null,null,null,null,null,null,"勤務体系",null,null,null,null,null,null,"常勤",null,null,null,null,null,null,null,null,null,null,"その他"]
[null,null,null,null,null,null,"郵便番号",null,null,null,null,null,null,null,null,null,"417",null,null,null,"ー","0001"]
[null,null,null,null,null,null,"住所",null,null,null,null,null,null,null,null,null,"富士市大淵1-1-1",null,null,null,null,null,null,null,null,null,null,null,null,null,null,null,null,null,null,null,null,null,null,null,null,null,null,null,null,null,null,null,null,null,null,null,null,null,null,null,null,null,null,null,null,null,null,"代表者等"]
[null,null,null,null,null,null,"電話番号※注記有",null,null,null,null,null,null,null,null,null,"0545",null,null,null,"-","35",null,null,null,"-","1111",null,null,null,"※","携帯電話のみの場合、上段の電話番号欄に携帯番号を入力してください。",null,null,null,null,null,null,null,null,null,null,null,null,null,null,null,null,null,null,null,null,null,null,null,null,null,null,null,null,null,null,null,"専任取引士"]
[null,null,null,null,null,null,"携帯番号",null,null,null,null,null,null,null,null,null,"090",null,null,null,"-","1234",null,null,null,"-","5678",null,null,null,null,null,null,null,null,null,null,null,null,null,null,null,null,null,null,null,null,null,null,null,null,null,null,null,null,null,null,null,null,null,null,null,null,"代表兼専任"]
[null,null,null,null,null,null,"性別",null,null,null,null,null,null,null,null,null,"男",null,null,null,null,null,"役職",null,null,null,null,null,null,null,null,null,"政令使用人"]
[null,null,null,null,null,null,"※宅建士情報\n(取引士でない場合取引士証有無のみ選択)",null,null,null,null,null,null,null,null,null,"取引士証有無",null,null,null,null,null,"有",null,null,null,null,"登録番号",null,null,null,null,null,"(","22静岡県",null,null,null,null,null,")","第",null,"00001",null,null,null,null,null,"号"]
[null,null,null,null,null,null,null,null,null,null,null,null,null,null,null,null,"登録日",null,null,null,null,null,"昭和",null,"60",null,"年",null,"5",null,"月",null,"10",null,"日",null,"有効期限",null,null,null,null,null,null,null,"令和",null,"7",null,"年",null,"5",null,"月",null,"9",null,"日"]
[]
["④筆頭の専任取引士",null,null,"従事しなくなった日",null,null,null,null,null,null,null,null,null,null,null,null,"令和",null,null,null,null,"4",null,"年",null,"9",null,"月",null,"29",null,"日",null,"従事した日",null,null,null,null,null,null,null,null,null,"令和",null,null,null,null,"4",null,"年",null,"9",null,"月",null,"25",null,"日"]
[null,null,null,"変更前",null,null,"氏名",null,null,null,null,null,null,null,null,null,"（フリガナ）",null,null,null,null,null,"キクガワ　ミキ"]
[null,null,null,null,null,null,null,null,null,null,null,null,null,null,null,null,"菊川　美樹"]
[null,null,null,null,null,null,"生年月日",null,null,null,null,null,null,null,null,null,"和暦",null,null,"昭和",null,null,"51",null,"年",null,"6",null,null,"月",null,"9",null,null,"日",null,"性別",null,null,null,"女"]
[null,null,null,"変更後",null,null,"氏名",null,null,null,null,null,null,null,null,null,"（フリガナ）",null,null,null,null,null,"イワタ　ナナ"]
[null,null,null,null,null,null,null,null,null,null,null,null,null,null,null,null,"磐田　奈々"]
[null,null,null,null,null,null,"生年月日",null,null,null,null,null,null,null,null,null,"和暦",null,null,"平成",null,null,"8",null,"年",null,"10",null,null,"月",null,"24",null,null,"日",null,"年齢",null,null,null,"27",null,null,"歳",null,"勤務体系",null,null,null,null,null,null,"常勤"]
[null,null,null,null,null,null,"郵便番号",null,null,null,null,null,null,null,null,null,"420",null,null,null,"ー","0820"]
[null,null,null,null,null,null,"住所",null,null,null,null,null,null,null,null,null,"静岡市葵区鷹匠2-2-2"]
[null,null,null,null,null,null,"電話番号※注記有",null,null,null,null,null,null,null,null,null,"054",null,null,null,"-","246",null,null,null,"-","0001",null,null,null,"※","携帯電話のみの場合、上段の電話番号欄に携帯番号を入力してください。"]
[null,null,null,null,null,null,"携帯番号",null,null,null,null,null,null,null,null,null,"090",null,null,null,"-","0001",null,null,null,"-","0003"]
[null,null,null,null,null,null,"性別",null,null,null,null,null,null,null,null,null,"女",null,null,null,null,null,"役職",null,null,null,null,null,null,null,null,null,"従業員"]
[null,null,null,null,null,null,"取引士情報",null,null,null,null,null,null,null,null,null,"取引士証有無",null,null,null,null,null,"有",null,null,null,null,"登録番号",null,null,null,null,null,"(","22静岡県",null,null,null,null,null,")","第",null,"123456",null,null,null,null,null,"号"]
[null,null,null,null,null,null,null,null,null,null,null,null,null,null,null,null,"登録日",null,null,null,null,null,"令和",null,"1",null,"年",null,"2",null,"月",null,"10",null,"日",null,"有効期限",null,null,null,null,null,null,null,"令和",null,"6",null,"年",null,"2",null,"月",null,"9",null,"日"]
[]
["⑤筆頭以外の専任取引士",null,null,"従事しなくなった日",null,null,null,null,null,null,null,null,null,null,null,null,"令和",null,null,null,null,"4",null,"年",null,"10",null,"月",null,"2",null,"日",null,"従事した日",null,null,null,null,null,null,null,null,null,"令和",null,null,null,null,"4",null,"年",null,"10",null,"月",null,"2",null,"日"]
[null,null,null,"変更前",null,null,"氏名",null,null,null,null,null,null,null,null,null,"（フリガナ）",null,null,null,null,null,"ミシマ　ユウキ"]
[null,null,null,null,null,null,null,null,null,null,null,null,null,null,null,null,"三島　祐樹"]
[null,null,null,null,null,null,"生年月日",null,null,null,null,null,null,null,null,null,"和暦",null,null,"平成",null,null,"2",null,"年",null,"4",null,null,"月",null,"20",null,null,"日",null,"性別",null,null,null,"男"]
[null,null,null,"変更後",null,null,"氏名",null,null,null,null,null,null,null,null,null,"（フリガナ）",null,null,null,null,null,"シミズ　コウタ"]
[null,null,null,null,null,null,null,null,null,null,null,null,null,null,null,null,"清水　康太"]
[null,null,null,null,null,null,"生年月日",null,null,null,null,null,null,null,null,null,"和暦",null,null,"平成",null,null,"5",null,"年",null,"8",null,null,"月",null,"17",null,null,"日",null,"年齢",null,null,null,"29",null,null,"歳",null,"勤務体系",null,null,null,null,null,null,"常勤"]
[null,null,null,null,null,null,"郵便番号",null,null,null,null,null,null,null,null,null,"410",null,null,null,"ー","1127"]
[null,null,null,null,null,null,"住所",null,null,null,null,null,null,null,null,null,"裾野市平松1000-1000"]
[null,null,null,null,null,null,"電話番号※注記有",null,null,null,null,null,null,null,null,null,"055",null,null,null,"-","900",null,null,null,"-","0001",null,null,null,"※","携帯電話のみの場合、上段の電話番号欄に携帯番号を入力してください。"]
[null,null,null,null,null,null,"携帯番号",null,null,null,null,null,null,null,null,null,"080",null,null,null,"-","0003",null,null,null,"-","0004"]
[null,null,null,null,null,null,"性別",null,null,null,null,null,null,null,null,null,"男",null,null,null,null,null,"役職",null,null,null,null,null,null,null,null,null,"従業員"]
[null,null,null,null,null,null,"取引士情報",null,null,null,null,null,null,null,null,null,"取引士証有無",null,null,null,null,null,"有",null,null,null,null,"登録番号",null,null,null,null,null,"(","23愛知県",null,null,null,null,null,")","第",null,"80000",null,null,null,null,null,"号"]
[null,null,null,null,null,null,null,null,null,null,null,null,null,null,null,null,"登録日",null,null,null,null,null,"平成",null,"30",null,"年",null,"12",null,"月",null,"5",null,"日",null,"有効期限",null,null,null,null,null,null,null,"令和",null,"5",null,"年",null,"12",null,"月",null,"4",null,"日"]
[]
[]
["⑥住所変更",null,null,"変更日",null,null,null,null,null,null,null,null,null,null,null,null,"令和",null,null,null,null,"4",null,"年",null,"9",null,"月",null,"25",null,"日"]
[null,null,null,"変更後",null,null,"対象者氏名",null,null,null,null,null,null,null,null,null,"伊東　正美",null,null,null,null,null,null,null,null,null,null,null,null,null,null,null,null,null,null,null,null,null,"職務",null,null,null,null,null,null,"代表者等"]
[null,null,null,null,null,null,"郵便番号",null,null,null,null,null,null,null,null,null,"417",null,null,null,"ー","0001"]
[null,null,null,null,null,null,"住所",null,null,null,null,null,null,null,null,null,"富士市大淵1-1-1"]
[null,null,null,null,null,null,"電話番号※注記有",null,null,null,null,null,null,null,null,null,"0545",null,null,null,"-","35",null,null,null,"-","1111",null,null,null,"※","携帯電話のみの場合、上段の電話番号欄に携帯番号を入力してください。"]
[null,null,null,null,null,null,"携帯番号",null,null,null,null,null,null,null,null,null,"090",null,null,null,"-","1234",null,null,null,"-","5678"]
[]
["⑦氏名変更",null,null,"変更日",null,null,null,null,null,null,null,null,null,null,null,null,"令和",null,null,null,null,"4",null,"年",null,"10",null,"月",null,"3",null,"日"]
[null,null,null,"変更\n前",null,null,"氏名",null,null,null,null,null,null,null,null,null,"（フリガナ）",null,null,null,null,null,"シマダ　タカユキ"]
[null,null,null,null,null,null,null,null,null,null,null,null,null,null,null,null,"島田　孝之"]
[null,null,null,"変更\n後",null,null,"氏名",null,null,null,null,null,null,null,null,null,"（フリガナ）",null,null,null,null,null,"ヤイヅ　タカユキ"]
[null,null,null,null,null,null,null,null,null,null,null,null,null,null,null,null,"焼津　孝之"]
[]
["⑧新たに従事する者",null,null,"➀",null,null,"従事した日",null,null,null,null,null,null,null,null,null,"令和",null,null,null,null,"4",null,"年",null,"9",null,"月",null,"17",null,"日"]
[null,null,null,null,null,null,"氏名",null,null,null,null,null,null,null,null,null,"（フリガナ）",null,null,null,null,null,"イワタ　ナナ",null,null,null,null,null,null,null,null,null,null,"従業者番号",null,null,null,null,null,"2209B22",null,null,null,null,null,null,"職務",null,null,null,null,"営業"]
[null,null,null,null,null,null,null,null,null,null,null,null,null,null,null,null,"磐田　奈々"]
[null,null,null,null,null,null,"生年月日",null,null,null,null,null,null,null,null,null,"和暦",null,null,"平成",null,null,"8",null,"年",null,"10",null,null,"月",null,"24",null,null,"日",null,"年齢",null,null,null,"27",null,null,"歳",null,null,"性別",null,null,null,null,"女"]
[null,null,null,null,null,null,"※宅建士情報\n(取引士でない場合取引士証有無のみ選択)",null,null,null,null,null,null,null,null,null,"取引士証有無",null,null,null,null,null,"有",null,null,null,null,"登録番号",null,null,null,null,null,"(","22静岡県",null,null,null,null,null,")","第",null,"123456",null,null,null,null,null,"号"]
[null,null,null,null,null,null,null,null,null,null,null,null,null,null,null,null,"登録日",null,null,null,null,null,"令和",null,"1",null,"年",null,"2",null,"月",null,"10",null,"日",null,"有効期限",null,null,null,null,null,null,null,"令和",null,"6",null,"年",null,"2",null,"月",null,"9",null,"日"]
[null,null,null,"②",null,null,"従事した日",null,null,null,null,null,null,null,null,null,"令和",null,null,null,null,"4",null,"年",null,"9",null,"月",null,"17",null,"日"]
[null,null,null,null,null,null,"氏名",null,null,null,null,null,null,null,null,null,"（フリガナ）",null,null,null,null,null,"フジノミヤ　ケイ",null,null,null,null,null,null,null,null,null,null,"従業者番号",null,null,null,null,null,"2209B23",null,null,null,null,null,null,"職務",null,null,null,null,"営業"]
[null,null,null,null,null,null,null,null,null,null,null,null,null,null,null,null,"富士宮　圭"]
[null,null,null,null,null,null,"生年月日",null,null,null,null,null,null,null,null,null,"和暦",null,null,"平成",null,null,"7",null,"年",null,"12",null,null,"月",null,"29",null,null,"日",null,"年齢",null,null,null,"28",null,null,"歳",null,null,"性別",null,null,null,null,"男"]
[null,null,null,null,null,null,"※宅建士情報\n(取引士でない場合取引士証有無のみ選択)",null,null,null,null,null,null,null,null,null,"取引士証有無",null,null,null,null,null,"無",null,null,null,null,"登録番号",null,null,null,null,null,"(",null,null,null,null,null,null,")","第",null,null,null,null,null,null,null,"号",null,"専任か"]
[null,null,null,null,null,null,null,null,null,null,null,null,null,null,null,null,"登録日",null,null,null,null,null,null,null,null,null,"年",null,null,null,"月",null,null,null,"日",null,"有効期限",null,null,null,null,null,null,null,null,null,null,null,"年",null,null,null,"月",null,null,null,"日"]
[null,null,null,"③",null,null,"従事した日",null,null,null,null,null,null,null,null,null,"令和",null,null,null,null,"4",null,"年",null,"9",null,"月",null,"20",null,"日",null,null,null,null,null,null,null,null,null,null,null,null,null,null,null,null,null,null,null,null,null,null,null,null,null,null,null,null,null,null,null,"専任"]
[null,null,null,null,null,null,"氏名",null,null,null,null,null,null,null,null,null,"（フリガナ）",null,null,null,null,null,"ナガイズミ　ショウタ",null,null,null,null,null,null,null,null,null,null,"従業者番号",null,null,null,null,null,"2209B24",null,null,null,null,null,null,"職務",null,null,null,null,"営業",null,null,null,null,null,null,null,null,null,null,null,"非専任"]
[null,null,null,null,null,null,null,null,null,null,null,null,null,null,null,null,"長泉　翔太"]
[null,null,null,null,null,null,"生年月日",null,null,null,null,null,null,null,null,null,"和暦",null,null,"昭和",null,null,"60",null,"年",null,"7",null,null,"月",null,"24",null,null,"日",null,"年齢",null,null,null,"37",null,null,"歳",null,null,"性別",null,null,null,null,"男"]
[null,null,null,null,null,null,"※宅建士情報\n(取引士でない場合取引士証有無のみ選択)",null,null,null,null,null,null,null,null,null,"取引士証有無",null,null,null,null,null,"有",null,null,null,null,"登録番号",null,null,null,null,null,"(","22静岡県",null,null,null,null,null,")","第",null,"234567",null,null,null,null,null,"号",null,"専任か",null,null,null,"非専任"]
[null,null,null,null,null,null,null,null,null,null,null,null,null,null,null,null,"登録日",null,null,null,null,null,"平成",null,"26",null,"年",null,"6",null,"月",null,"1",null,"日",null,"有効期限",null,null,null,null,null,null,null,"令和",null,"6",null,"年",null,"5",null,"月",null,"31",null,"日"]
[null,null,null,"④",null,null,"従事した日",null,null,null,null,null,null,null,null,null,"令和",null,null,null,null,"4",null,"年",null,"9",null,"月",null,"25",null,"日"]
[null,null,null,null,null,null,"氏名",null,null,null,null,null,null,null,null,null,"（フリガナ）",null,null,null,null,null,"コサイ　マイ",null,null,null,null,null,null,null,null,null,null,"従業者番号",null,null,null,null,null,"2209B25",null,null,null,null,null,null,"職務",null,null,null,null,"事務"]
[null,null,null,null,null,null,null,null,null,null,null,null,null,null,null,null,"湖西　舞"]
[null,null,null,null,null,null,"生年月日",null,null,null,null,null,null,null,null,null,"和暦",null,null,"昭和",null,null,"50",null,"年",null,"8",null,null,"月",null,"11",null,null,"日",null,"年齢",null,null,null,"47",null,null,"歳",null,null,"性別",null,null,null,null,"女"]
[null,null,null,null,null,null,"※宅建士情報\n(取引士でない場合取引士証有無のみ選択)",null,null,null,null,null,null,null,null,null,"取引士証有無",null,null,null,null,null,"無",null,null,null,null,"登録番号",null,null,null,null,null,"(",null,null,null,null,null,null,")","第",null,null,null,null,null,null,null,"号",null,"専任か"]
[null,null,null,null,null,null,null,null,null,null,null,null,null,null,null,null,"登録日",null,null,null,null,null,null,null,null,null,"年",null,null,null,"月",null,null,null,"日",null,"有効期限",null,null,null,null,null,null,null,null,null,null,null,"年",null,null,null,"月",null,null,null,"日"]
[]
["⑨従事しなくなった者",null,null,"➀",null,null,"従事しなくなった日",null,null,null,null,null,null,null,null,null,"令和",null,null,null,null,"4",null,"年",null,"9",null,"月",null,"25",null,"日"]
[null,null,null,null,null,null,"氏名",null,null,null,null,null,null,null,null,null,"（フリガナ）",null,null,null,null,null,"カケガワ　ユウト",null,null,null,null,null,null,null,null,null,null,"従業者番号",null,null,null,null,null,"1801B01",null,null,null,null,null,null,"職務",null,null,null,"政令使用人"]
[null,null,null,null,null,null,null,null,null,null,null,null,null,null,null,null,"掛川　悠斗"]
[null,null,null,"②",null,null,"従事しなくなった日",null,null,null,null,null,null,null,null,null,"令和",null,null,null,null,"4",null,"年",null,"9",null,"月",null,"29",null,"日"]
[null,null,null,null,null,null,"氏名",null,null,null,null,null,null,null,null,null,"（フリガナ）",null,null,null,null,null,"キクガワ　ミキ",null,null,null,null,null,null,null,null,null,null,"従業者番号",null,null,null,null,null,"2006B09",null,null,null,null,null,null,"職務",null,null,null,"営業"]
[null,null,null,null,null,null,null,null,null,null,null,null,null,null,null,null,"菊川　美樹"]
[null,null,null,"③",null,null,"従事しなくなった日",null,null,null,null,null,null,null,null,null,"令和",null,null,null,null,"4",null,"年",null,"9",null,"月",null,"30",null,"日"]
[null,null,null,null,null,null,"氏名",null,null,null,null,null,null,null,null,null,"（フリガナ）",null,null,null,null,null,"シモダ　エリ",null,null,null,null,null,null,null,null,null,null,"従業者番号",null,null,null,null,null,"2103B14",null,null,null,null,null,null,"職務",null,null,null,"事務"]
[null,null,null,null,null,null,null,null,null,null,null,null,null,null,null,null,"下田　絵梨"]

{"sheet":"変更入力シート","index":3,"n_rows":138,"n_cols":79,"rows_kept":138,"cut":false,"hidden":false,"merged":[[105,0,128,2],[21,34,21,55],[26,16,26,19],[26,20,26,35],[27,16,27,35],[25,36,25,59],[27,36,27,59],[26,36,26,39],[26,40,26,59],[28,16,28,19],[28,20,28,35],[28,36,28,39],[28,40,28,59],[29,16,29,35],[29,36,29,59],[126,46,126,50],[126,51,126,59],[126,19,126,21],[126,22,126,23],[127,6,128,15],[127,16,127,21],[127,22,127,26],[127,41,127,42],[127,27,127,32],[128,16,128,21],[128,22,128,23],[128,24,128,25],[128,26,128,27],[128,28,128,29],[128,30,128,31],[128,32,128,33],[128,34,128,35],[128,36,128,43],[127,34,127,39],[127,55,127,59],[128,56,128,57],[122,52,122,53],[122,54,122,55],[122,56,122,57],[124,33,125,38],[123,3,128,5],[123,6,123,15],[123,16,123,20],[123,21,123,22],[123,23,123,24],[123,25,123,26],[123,27,123,28],[123,29,123,30],[123,31,123,32],[124,6,125,15],[124,16,124,21],[124,22,124,32],[124,39,125,45],[124,46,125,50],[124,51,125,59],[125,16,125,32],[126,6,126,15],[128,52,128,53],[127,43,127,48],[127,49,127,50],[128,44,128,45],[128,46,128,47],[128,48,128,49],[128,50,128,51],[127,51,127,54],[128,54,128,55],[120,40,120,42],[120,43,120,44],[120,46,120,50],[121,49,121,50],[122,16,122,21],[122,30,122,31],[122,32,122,33],[122,34,122,35],[122,36,122,43],[122,44,122,45],[122,46,122,47],[122,48,122,49],[122,50,122,51],[120,51,120,59],[120,19,120,21],[120,22,120,23],[120,34,120,35],[120,36,120,39],[121,51,121,54],[121,55,121,59],[126,43,126,44],[121,6,122,15],[121,16,121,21],[121,22,121,26],[121,27,121,32],[121,34,121,39],[121,41,121,42],[121,43,121,48],[126,16,126,18],[126,24,126,25],[126,26,126,28],[126,29,126,30],[126,31,126,33],[126,34,126,35],[126,36,126,39],[126,40,126,42],[116,46,116,47],[116,48,116,49],[116,50,116,51],[116,52,116,53],[116,54,116,55],[116,56,116,57],[118,33,119,38],[118,39,119,45],[118,46,119,50],[118,51,119,59],[116,32,116,33],[116,34,116,35],[116,36,116,43],[116,44,116,45],[117,3,122,5],[117,6,117,15],[117,16,117,20],[117,21,117,22],[117,23,117,24],[117,25,117,26],[117,27,117,28],[117,29,117,30],[117,31,117,32],[118,6,119,15],[118,16,118,21],[118,22,118,32],[120,6,120,15],[120,16,120,18],[120,24,120,25],[120,26,120,28],[120,29,120,30],[120,31,120,33],[119,16,119,32],[122,22,122,23],[122,24,122,25],[122,26,122,27],[122,28,122,29],[115,6,116,15],[115,16,115,21],[115,22,115,26],[115,27,115,32],[114,22,114,23],[116,22,116,23],[116,24,116,25],[116,26,116,27],[116,28,116,29],[116,30,116,31],[116,16,116,21],[114,6,114,15],[114,16,114,18],[92,25,92,26],[92,27,92,28],[106,6,107,15],[106,16,106,21],[106,22,106,32],[110,26,110,27],[110,28,110,29],[110,30,110,31],[110,32,110,33],[109,6,110,15],[110,16,110,21],[109,16,109,21],[109,22,109,26],[109,27,109,32],[108,31,108,33],[105,6,105,15],[99,23,99,24],[102,6,103,15],[102,16,102,21],[102,22,102,59],[103,16,103,59],[99,21,99,22],[110,24,110,25],[110,46,110,47],[110,48,110,49],[110,50,110,51],[110,52,110,53],[105,3,110,5],[108,6,108,15],[108,26,108,28],[114,24,114,25],[114,26,114,28],[114,29,114,30],[114,31,114,33],[114,34,114,35],[114,36,114,39],[114,40,114,42],[114,43,114,44],[114,46,114,50],[114,51,114,59],[111,31,111,32],[114,19,114,21],[111,3,116,5],[111,6,111,15],[111,16,111,20],[109,49,109,50],[110,22,110,23],[112,6,113,15],[112,16,112,21],[112,22,112,32],[109,34,109,39],[115,49,115,50],[106,46,107,50],[108,46,108,50],[108,51,108,59],[99,25,99,26],[99,27,99,28],[99,29,99,30],[99,31,99,32],[105,29,105,30],[106,39,107,45],[105,31,105,32],[108,43,108,44],[107,16,107,32],[108,29,108,30],[108,16,108,18],[108,19,108,21],[108,22,108,23],[108,24,108,25],[112,33,113,38],[112,39,113,45],[92,0,97,2],[96,16,96,19],[96,21,96,24],[96,26,96,29],[96,30,97,30],[96,31,97,59],[97,6,97,15],[97,16,97,19],[97,21,97,24],[97,26,97,29],[93,3,97,5],[93,16,93,37],[93,38,93,44],[93,45,93,52],[95,6,95,15],[96,6,96,15],[94,16,94,19],[94,21,94,26],[92,29,92,30],[92,31,92,32],[92,3,92,15],[92,16,92,20],[92,21,92,22],[92,23,92,24],[133,6,133,15],[133,16,133,20],[133,21,133,22],[133,23,133,24],[130,0,138,2],[21,0,21,1],[21,16,21,17],[21,2,21,15],[21,18,21,31],[68,6,68,15],[69,6,69,15],[69,16,69,59],[83,6,83,15],[84,6,84,15],[93,6,93,15],[94,6,94,15],[99,0,103,2],[99,3,99,15],[99,16,99,20],[100,3,101,5],[102,3,103,5],[100,6,101,15],[100,16,100,21],[100,22,100,59],[134,6,135,15],[134,16,134,21],[134,22,134,32],[134,33,135,38],[134,39,135,45],[95,16,95,59],[136,3,138,5],[136,6,136,15],[136,16,136,20],[136,21,136,22],[136,23,136,24],[136,25,136,26],[136,27,136,28],[136,29,136,30],[136,31,136,32],[137,6,138,15],[137,16,137,21],[137,22,137,32],[137,33,138,38],[137,39,138,45],[137,46,138,49],[137,50,138,59],[138,16,138,32],[133,3,135,5],[134,46,135,49],[134,50,135,59],[135,16,135,32],[130,16,130,20],[130,21,130,22],[130,23,130,24],[130,25,130,26],[130,27,130,28],[130,29,130,30],[130,31,130,32],[133,25,133,26],[133,27,133,28],[133,29,133,30],[133,31,133,32],[115,51,115,54],[115,55,115,59],[105,16,105,20],[105,21,105,22],[106,51,107,59],[110,34,110,35],[110,36,110,43],[110,44,110,45],[108,36,108,39],[106,33,107,38],[108,40,108,42],[108,34,108,35],[105,23,105,24],[105,25,105,26],[105,27,105,28],[112,51,113,59],[113,16,113,32],[110,54,110,55],[110,56,110,57],[111,21,111,22],[111,23,111,24],[111,25,111,26],[111,27,111,28],[111,29,111,30],[79,22,79,23],[79,24,79,25],[76,56,76,57],[76,43,76,47],[76,48,76,49],[79,45,79,51],[72,22,72,31],[130,3,132,5],[131,16,131,21],[131,22,131,32],[132,16,132,32],[131,33,132,38],[131,39,132,45],[131,46,132,49],[131,50,132,59],[130,6,130,15],[131,6,132,15],[115,34,115,39],[115,41,115,42],[115,43,115,48],[109,41,109,42],[109,43,109,48],[112,46,113,50],[101,16,101,59],[71,6,71,15],[71,16,71,19],[71,21,71,24],[71,26,71,29],[73,16,73,21],[73,22,73,26],[73,27,73,32],[73,34,73,39],[72,6,72,15],[59,56,59,57],[52,40,52,42],[57,42,57,51],[57,52,57,59],[79,26,79,28],[79,29,79,30],[79,31,79,33],[79,34,79,35],[76,50,76,51],[76,52,76,53],[76,54,76,55],[79,52,79,59],[26,3,27,15],[28,3,29,15],[31,3,31,15],[49,6,49,15],[49,26,49,28],[47,3,49,5],[46,3,46,15],[47,6,48,15],[47,16,47,21],[47,22,47,59],[31,23,31,24],[31,25,31,26],[31,27,31,28],[31,29,31,30],[31,31,31,32],[33,16,33,25],[49,45,49,51],[46,58,46,59],[46,33,46,42],[46,43,46,47],[49,52,49,59],[34,36,34,39],[19,2,19,15],[41,38,41,48],[34,16,34,25],[35,16,35,25],[34,26,34,29],[34,31,34,34],[21,32,21,33],[33,26,33,59],[39,31,39,34],[36,26,36,29],[36,31,36,36],[37,26,37,59],[38,16,38,25],[38,26,38,29],[38,31,38,34],[38,36,38,39],[39,16,39,25],[39,26,39,29],[36,3,41,15],[40,38,40,48],[25,0,29,2],[31,16,31,20],[31,21,31,22],[25,3,25,15],[88,41,88,42],[88,43,88,48],[88,49,88,50],[82,36,82,39],[76,58,76,59],[32,31,32,36],[70,31,71,59],[61,48,61,49],[61,50,61,51],[61,52,61,53],[61,54,61,55],[61,56,61,57],[46,48,46,49],[46,50,46,51],[46,52,46,53],[46,54,46,55],[46,56,46,57],[54,16,54,59],[52,43,52,44],[52,45,52,51],[52,52,52,59],[36,16,36,25],[77,16,77,21],[77,22,77,59],[88,6,89,15],[88,16,88,21],[88,22,88,26],[88,27,88,32],[88,34,88,39],[89,16,89,21],[89,22,89,23],[89,24,89,25],[89,26,89,27],[61,0,74,2],[76,0,89,2],[76,3,76,15],[76,16,76,20],[76,21,76,22],[76,23,76,24],[76,25,76,26],[76,27,76,28],[76,29,76,30],[67,19,67,21],[67,22,67,23],[61,3,61,15],[61,16,61,20],[61,21,61,22],[61,23,61,24],[61,25,61,26],[61,27,61,28],[61,29,61,30],[77,3,79,5],[77,6,78,15],[79,6,79,15],[79,16,79,18],[79,19,79,21],[80,3,89,5],[62,3,64,5],[65,3,74,5],[65,6,66,15],[65,16,65,21],[65,22,65,59],[66,16,66,59],[67,6,67,15],[67,16,67,18],[67,24,67,25],[67,26,67,28],[67,29,67,30],[67,31,67,33],[67,34,67,35],[67,36,67,39],[67,40,67,42],[67,43,67,44],[70,6,70,15],[70,16,70,19],[73,6,74,15],[68,16,68,19],[68,21,68,26],[64,52,64,59],[67,52,67,59],[72,52,72,59],[47,0,59,2],[57,6,57,15],[57,16,57,21],[57,22,57,31],[57,32,57,41],[58,6,59,15],[59,32,59,33],[59,34,59,35],[59,36,59,43],[50,3,59,5],[50,6,51,15],[50,16,50,21],[50,22,50,59],[51,16,51,59],[58,16,58,21],[52,6,52,15],[52,24,52,25],[53,16,53,19],[53,21,53,26],[54,6,54,15],[53,6,53,15],[59,22,59,23],[59,24,59,25],[59,26,59,27],[46,16,46,20],[48,16,48,59],[46,21,46,22],[62,6,63,15],[62,16,62,21],[62,22,62,59],[63,16,63,59],[64,6,64,15],[64,16,64,18],[64,24,64,25],[64,26,64,28],[64,29,64,30],[64,31,64,33],[64,34,64,35],[64,19,64,21],[64,22,64,23],[64,40,64,44],[64,45,64,51],[61,58,61,59],[59,46,59,47],[59,48,59,49],[59,50,59,51],[59,52,59,53],[59,54,59,55],[55,6,55,15],[55,16,55,19],[55,21,55,24],[55,26,55,29],[55,30,56,30],[55,31,56,59],[56,6,56,15],[56,16,56,19],[56,21,56,24],[56,26,56,29],[19,0,19,1],[19,16,19,17],[2,19,2,20],[2,21,2,22],[2,23,2,24],[2,29,2,33],[2,34,2,38],[2,39,2,43],[3,29,3,30],[11,16,12,21],[11,6,12,15],[11,22,12,32],[9,6,9,15],[9,16,9,20],[7,0,7,7],[10,16,10,38],[10,39,10,49],[13,47,13,50],[14,6,14,15],[14,16,14,59],[8,16,8,59],[15,52,16,57],[15,58,16,59],[15,38,16,51],[8,0,16,2],[8,3,16,5],[13,6,13,15],[13,16,13,19],[13,21,13,26],[13,27,13,36],[13,37,13,40],[13,42,13,45],[0,0,0,59],[2,0,2,7],[2,8,2,12],[2,13,2,14],[2,15,2,16],[2,17,2,18],[2,44,2,48],[15,36,16,37],[10,50,10,59],[10,6,10,15],[11,33,12,59],[8,6,8,15],[15,6,16,15],[15,16,16,26],[15,27,16,29],[15,30,16,35],[9,22,9,23],[9,25,9,26],[9,27,9,31],[9,32,9,33],[19,18,19,25],[19,32,19,33],[19,34,19,58],[41,26,41,36],[39,36,39,39],[35,26,35,29],[35,31,35,34],[35,36,35,39],[20,34,20,58],[25,16,25,20],[46,23,46,24],[20,0,20,1],[20,16,20,17],[20,18,20,30],[20,2,20,15],[20,32,20,33],[25,21,25,22],[25,23,25,24],[25,25,25,26],[25,27,25,28],[25,29,25,30],[25,31,25,32],[31,0,41,2],[37,16,37,25],[32,3,35,15],[32,16,32,25],[32,26,32,29],[41,16,41,25],[40,16,40,25],[40,26,40,36],[46,25,46,26],[46,27,46,28],[46,29,46,30],[46,31,46,32],[49,16,49,18],[49,19,49,21],[49,22,49,23],[49,24,49,25],[49,40,49,44],[61,31,61,32],[61,33,61,42],[61,43,61,47],[52,26,52,28],[52,29,52,30],[52,31,52,33],[52,34,52,35],[52,36,52,39],[52,16,52,18],[52,19,52,21],[52,22,52,23],[58,22,58,26],[58,27,58,32],[58,34,58,39],[49,29,49,30],[49,31,49,33],[49,34,49,35],[49,36,49,39],[72,32,72,41],[72,42,72,51],[70,21,70,24],[70,26,70,29],[70,30,71,30],[64,36,64,39],[58,41,58,42],[58,43,58,48],[58,49,58,50],[59,16,59,21],[59,28,59,29],[59,30,59,31],[59,44,59,45],[72,16,72,21],[67,45,67,51],[82,45,82,51],[80,16,80,21],[80,22,80,59],[81,16,81,59],[82,16,82,18],[82,19,82,21],[82,22,82,23],[82,24,82,25],[74,56,74,57],[74,16,74,21],[74,22,74,23],[74,24,74,25],[74,26,74,27],[74,28,74,29],[74,30,74,31],[74,32,74,33],[74,34,74,35],[74,36,74,43],[78,16,78,59],[76,31,76,32],[76,33,76,42],[82,52,82,59],[79,36,79,39],[79,40,79,44],[87,42,87,51],[87,6,87,15],[74,44,74,45],[74,46,74,47],[74,48,74,49],[74,50,74,51],[74,52,74,53],[74,54,74,55],[73,41,73,42],[73,43,73,48],[73,49,73,50],[80,6,81,15],[85,6,85,15],[82,6,82,15],[82,34,82,35],[86,6,86,15],[86,16,86,19],[86,21,86,24],[86,26,86,29],[82,26,82,28],[82,29,82,30],[82,31,82,33],[83,21,83,26],[87,52,87,59],[83,16,83,19],[82,40,82,42],[82,43,82,44],[89,52,89,53],[89,54,89,55],[89,56,89,57],[89,28,89,29],[89,30,89,31],[89,32,89,33],[89,34,89,35],[89,36,89,43],[89,44,89,45],[89,46,89,47],[89,48,89,49],[89,50,89,51],[84,16,84,59],[85,16,85,19],[85,21,85,24],[85,26,85,29],[85,30,86,30],[85,31,86,59],[87,16,87,21],[87,22,87,31],[87,32,87,41]]}
["入力シート【変更届出用】"]
[]
["申請日",null,null,null,null,null,null,null,"令和",null,null,null,null,null,null,"年",null,null,null,"月",null,null,null,"日",null,null,null,null,null,null,null,null,null,null,"支部",null,null,null,null,null,null,null,null,null,"地区",null,null,null,null,null,null,null,null,null,null,null,null,null,null,null,null,null,"東部",null,null,null,"下田",null,null,null,"22静岡県",null,null,null,null,null,null,null,"入力セル"]
[null,null,null,null,null,null,null,null,null,null,null,null,null,null,null,null,null,null,null,null,null,null,null,null,null,null,null,null,null,"↑",null,"変更する店舗の所属する支部・地区を選択。",null,null,null,null,null,null,null,null,null,null,null,null,null,null,null,null,null,null,null,null,null,null,null,null,null,null,null,null,null,null,"中部",null,null,null,"伊東",null,null,null,"01北海道",null,null,null,null,null,null,null,"選択セル"]
["【入力方法の説明】",null,null,null,null,null,null,null,null,null,null,null,null,null,null,null,null,null,null,null,null,null,null,null,null,null,null,null,null,null,null,null,null,null,null,null,null,null,null,null,null,null,null,null,null,null,null,null,null,null,null,null,null,null,null,null,null,null,null,null,null,null,"西部",null,null,null,"熱海",null,null,null,"02青森県"]
["・","入力必須項目は全て入力してください。",null,null,null,null,null,null,null,null,null,null,null,null,null,null,null,null,null,null,null,null,null,null,null,null,null,null,null,null,null,null,null,null,null,null,null,null,null,null,null,null,null,null,null,null,null,null,null,null,null,null,null,null,null,null,null,null,null,null,null,null,null,null,null,null,"三島",null,null,null,"03岩手県"]
["・","変更事項がある場合、その項目のみ「変更前」と「変更後」を入力してください。",null,null,null,null,null,null,null,null,null,null,null,null,null,null,null,null,null,null,null,null,null,null,null,null,null,null,null,null,null,null,null,null,null,null,null,null,null,null,null,null,null,null,null,null,null,null,null,null,null,null,null,null,null,null,null,null,null,null,null,null,null,null,null,null,"沼津",null,null,null,"04宮城県"]
[null,null,null,null,null,null,null,null,null,null,null,null,null,null,null,null,null,null,null,null,null,null,null,null,null,null,null,null,null,null,null,null,null,null,null,null,null,null,null,null,null,null,null,null,null,null,null,null,null,null,null,null,null,null,null,null,null,null,null,null,null,null,null,null,null,null,"駿東",null,null,null,"05秋田県"]
["入力必須",null,null,"変更がある項目は\n「変更後」を入力",null,null,"本店商号又は名称",null,null,null,null,null,null,null,null,null,null,null,null,null,null,null,null,null,null,null,null,null,null,null,null,null,null,null,null,null,null,null,null,null,null,null,null,null,null,null,null,null,null,null,null,null,null,null,null,null,null,null,null,null,null,null,null,null,null,null,"富士",null,null,null,"06山形県"]
[null,null,null,null,null,null,"免許番号",null,null,null,null,null,null,null,null,null,null,null,null,null,null,"(",null,null,")","第",null,null,null,null,null,null,"号",null,null,null,null,null,null,null,null,null,null,null,null,null,null,null,null,null,null,null,null,null,null,null,null,null,null,null,null,null,null,"知事",null,null,"清水",null,null,null,"07福島県"]
[null,null,null,null,null,null,"本店の代表者氏名",null,null,null,null,null,null,null,null,null,null,null,null,null,null,null,null,null,null,null,null,null,null,null,null,null,null,null,null,null,null,null,null,"本店代表者役職",null,null,null,null,null,null,null,null,null,null,null,null,null,null,null,null,null,null,null,null,null,null,null,"大臣",null,null,"静岡",null,null,null,"08茨城県"]
[null,null,null,null,null,null,"変更対象",null,null,null,null,null,null,null,null,null,null,null,null,null,null,null,"※準会員の場合、\n右に支店等名称を記載",null,null,null,null,null,null,null,null,null,null,null,null,null,null,null,null,null,null,null,null,null,null,null,null,null,null,null,null,null,null,null,null,null,null,null,null,null,null,null,null,null,null,null,"しだはい",null,null,null,"09栃木県"]
[null,null,null,null,null,null,null,null,null,null,null,null,null,null,null,null,null,null,null,null,null,null,null,null,null,null,null,null,null,null,null,null,null,null,null,null,null,null,null,null,null,null,null,null,null,null,null,null,null,null,null,null,null,null,null,null,null,null,null,null,null,null,null,"男",null,null,"中遠",null,null,null,"10群馬県"]
[null,null,null,null,null,null,"郵便番号",null,null,null,null,null,null,null,null,null,null,null,null,null,"-",null,null,null,null,null,null,"電話番号",null,null,null,null,null,null,null,null,null,null,null,null,null,"-",null,null,null,null,"-",null,null,null,null,null,null,null,null,null,null,null,null,null,null,null,null,"女",null,null,"浜松",null,null,null,"11埼玉県"]
[null,null,null,null,null,null,"住所",null,null,null,null,null,null,null,null,null,null,null,null,null,null,null,null,null,null,null,null,null,null,null,null,null,null,null,null,null,null,null,null,null,null,null,null,null,null,null,null,null,null,null,null,null,null,null,null,null,null,null,null,null,null,null,null,null,null,null,null,null,null,null,"12千葉県"]
[null,null,null,null,null,null,"従業者数\n(変更後の事務所内)",null,null,null,null,null,null,null,null,null,"宅建業に従事する者",null,null,null,null,null,null,null,null,null,null,"総数",null,null,null,null,null,null,null,null,"名",null,"うち専任宅地建物取引士",null,null,null,null,null,null,null,null,null,null,null,null,null,null,null,null,null,null,null,"名",null,null,null,null,null,null,null,"正会員",null,null,null,"13東京都"]
[null,null,null,null,null,null,null,null,null,null,null,null,null,null,null,null,null,null,null,null,null,null,null,null,null,null,null,null,null,null,null,null,null,null,null,null,null,null,null,null,null,null,null,null,null,null,null,null,null,null,null,null,null,null,null,null,null,null,null,null,null,null,null,"昭和",null,null,"準会員",null,null,null,"14神奈川県",null,null,null,"IP型","正会員"]
[null,null,null,null,null,null,null,null,null,null,null,null,null,null,null,null,null,null,null,null,null,null,null,null,null,null,null,null,null,null,null,null,null,null,null,null,null,null,null,null,null,null,null,null,null,null,null,null,null,null,null,null,null,null,null,null,null,null,null,null,null,null,null,"平成",null,null,"賛助会員",null,null,null,"15新潟県",null,null,null,"F型","準会員"]
["変更事項種類（選択すると入力箇所へ飛びます）",null,null,null,null,null,null,null,null,null,null,null,null,null,null,null,null,null,null,null,null,null,null,null,null,null,null,null,null,null,null,null,null,null,null,null,null,null,null,null,null,null,null,null,null,null,null,null,null,null,null,null,null,null,null,null,null,null,null,null,null,null,null,"令和",null,null,null,null,null,null,"16富山県",null,null,null,"F型+IP型"]
["➀",null,"商号",null,null,null,null,null,null,null,null,null,null,null,null,null,"②",null,"事務所情報",null,null,null,null,null,null,null,null,null,null,null,null,null,"③",null,"代表者(支店等の代表者・政令使用人含む)",null,null,null,null,null,null,null,null,null,null,null,null,null,null,null,null,null,null,null,null,null,null,null,null,null,null,null,null,null,null,null,null,null,null,null,"17石川県"]
["④",null,"筆頭の専任取引士",null,null,null,null,null,null,null,null,null,null,null,null,null,"⑤",null,"筆頭以外の専任取引士",null,null,null,null,null,null,null,null,null,null,null,null,null,"⑥",null,"住所変更（本店と支店の代表者、専任取引士のみ）",null,null,null,null,null,null,null,null,null,null,null,null,null,null,null,null,null,null,null,null,null,null,null,null,null,null,null,null,"有",null,null,null,null,null,null,"18福井県",null,null,null,"代表取締役","代表者"]
["⑦",null,"氏名変更（従業者含む）",null,null,null,null,null,null,null,null,null,null,null,null,null,"⑧",null,"新たに従事するもの",null,null,null,null,null,null,null,null,null,null,null,null,null,"⑨",null,"従事しなくなった者",null,null,null,null,null,null,null,null,null,null,null,null,null,null,null,null,null,null,null,null,null,null,null,null,null,null,null,null,"無",null,null,null,null,null,null,"19山梨県",null,null,null,"取締役","代表取締役"]
[null,null,null,null,null,null,null,null,null,null,null,null,null,null,null,null,null,null,null,null,null,null,null,null,null,null,null,null,null,null,null,null,null,null,null,null,null,null,null,null,null,null,null,null,null,null,null,null,null,null,null,null,null,null,null,null,null,null,null,null,null,null,null,null,null,null,null,null,null,null,"20長野県",null,null,null,"代表理事","取締役"]
[null,null,null,null,null,null,null,null,null,null,null,null,null,null,null,null,null,null,null,null,null,null,null,null,null,null,null,null,null,null,null,null,null,null,null,null,null,null,null,null,null,null,null,null,null,null,null,null,null,null,null,null,null,null,null,null,null,null,null,null,null,null,null,null,null,null,null,null,null,null,"21岐阜県",null,null,null,"代表社員","代表理事"]
[null,null,null,null,null,null,null,null,null,null,null,null,null,null,null,null,null,null,null,null,null,null,null,null,null,null,null,null,null,null,null,null,null,null,null,null,null,null,null,null,null,null,null,null,null,null,null,null,null,null,null,null,null,null,null,null,null,null,null,null,null,null,null,"独立建物",null,null,null,null,null,null,"23愛知県",null,null,null,"代表執行役","政令使用人"]
["➀商号",null,null,"変更日",null,null,null,null,null,null,null,null,null,null,null,null,"令和",null,null,null,null,null,null,"年",null,null,null,"月",null,null,null,"日",null,null,null,null,"↓支店の場合、ここから支店等名称のみを記載",null,null,null,null,null,null,null,null,null,null,null,null,null,null,null,null,null,null,null,null,null,null,null,null,null,null,"住宅併用",null,null,null,null,null,null,"24三重県",null,null,null,null,"支店長"]
[null,null,null,"変更前",null,null,null,null,null,null,null,null,null,null,null,null,"(ﾌﾘｶﾞﾅ)",null,null,null,null,null,null,null,null,null,null,null,null,null,null,null,null,null,null,null,"(ﾌﾘｶﾞﾅ)",null,null,null,null,null,null,null,null,null,null,null,null,null,null,null,null,null,null,null,null,null,null,null,null,null,null,"集合ビル",null,null,null,null,null,null,"25滋賀県",null,null,null,"常勤","事務"]
[null,null,null,null,null,null,null,null,null,null,null,null,null,null,null,null,null,null,null,null,null,null,null,null,null,null,null,null,null,null,null,null,null,null,null,null,null,null,null,null,null,null,null,null,null,null,null,null,null,null,null,null,null,null,null,null,null,null,null,null,null,null,null,"その他",null,null,null,null,null,null,"26京都府",null,null,null,"非常勤","営業"]
[null,null,null,"変更後",null,null,null,null,null,null,null,null,null,null,null,null,"(ﾌﾘｶﾞﾅ)",null,null,null,null,null,null,null,null,null,null,null,null,null,null,null,null,null,null,null,"(ﾌﾘｶﾞﾅ)",null,null,null,null,null,null,null,null,null,null,null,null,null,null,null,null,null,null,null,null,null,null,null,null,null,null,null,null,null,null,null,null,null,"27大阪府",null,null,null,null,"営業・事務"]
[null,null,null,null,null,null,null,null,null,null,null,null,null,null,null,null,null,null,null,null,null,null,null,null,null,null,null,null,null,null,null,null,null,null,null,null,null,null,null,null,null,null,null,null,null,null,null,null,null,null,null,null,null,null,null,null,null,null,null,null,null,null,null,"自己(自社)所有",null,null,null,null,null,null,"28兵庫県",null,null,null,null,"その他"]
[null,null,null,null,null,null,null,null,null,null,null,null,null,null,null,null,null,null,null,null,null,null,null,null,null,null,null,null,null,null,null,null,null,null,null,null,null,null,null,null,null,null,null,null,null,null,null,null,null,null,null,null,null,null,null,null,null,null,null,null,null,null,null,"賃貸",null,null,null,null,null,null,"29奈良県"]
["②事務所情報",null,null,"変更日",null,null,null,null,null,null,null,null,null,null,null,null,"令和",null,null,null,null,null,null,"年",null,null,null,"月",null,null,null,"日",null,null,null,null,null,null,null,null,null,null,null,null,null,null,null,null,null,null,null,null,null,null,null,null,null,null,null,null,null,null,null,"その他",null,null,null,null,null,null,"30和歌山県"]
[null,null,null,"変更前",null,null,null,null,null,null,null,null,null,null,null,null,"郵便番号",null,null,null,null,null,null,null,null,null,null,null,null,null,"-",null,null,null,null,null,null,null,null,null,null,null,null,null,null,null,null,null,null,null,null,null,null,null,null,null,null,null,null,null,null,null,null,null,null,null,null,null,null,null,"31鳥取県"]
[null,null,null,null,null,null,null,null,null,null,null,null,null,null,null,null,"住所",null,null,null,null,null,null,null,null,null,null,null,null,null,null,null,null,null,null,null,null,null,null,null,null,null,null,null,null,null,null,null,null,null,null,null,null,null,null,null,null,null,null,null,null,null,null,"専任","◎",null,null,null,null,null,"32島根県"]
[null,null,null,null,null,null,null,null,null,null,null,null,null,null,null,null,"電話番号",null,null,null,null,null,null,null,null,null,null,null,null,null,"-",null,null,null,null,"-",null,null,null,null,null,null,null,null,null,null,null,null,null,null,null,null,null,null,null,null,null,null,null,null,null,null,null,"その他の取引士","〇",null,null,null,null,null,"33岡山県",null,null,null,"現住所"]
[null,null,null,null,null,null,null,null,null,null,null,null,null,null,null,null,"FAX番号",null,null,null,null,null,null,null,null,null,null,null,null,null,"-",null,null,null,null,"-",null,null,null,null,null,null,null,null,null,null,null,null,null,null,null,null,null,null,null,null,null,null,null,null,null,null,null,null,null,null,null,null,null,null,"34広島県",null,null,null,"勤務先"]
[null,null,null,"変更後",null,null,null,null,null,null,null,null,null,null,null,null,"郵便番号",null,null,null,null,null,null,null,null,null,null,null,null,null,"-",null,null,null,null,null,null,null,null,null,null,null,null,null,null,null,null,null,null,null,null,null,null,null,null,null,null,null,null,null,null,null,null,null,null,null,null,null,null,null,"35山口県"]
[null,null,null,null,null,null,null,null,null,null,null,null,null,null,null,null,"住所",null,null,null,null,null,null,null,null,null,null,null,null,null,null,null,null,null,null,null,null,null,null,null,null,null,null,null,null,null,null,null,null,null,null,null,null,null,null,null,null,null,null,null,null,null,null,null,null,null,null,null,null,null,"36徳島県"]
[null,null,null,null,null,null,null,null,null,null,null,null,null,null,null,null,"電話番号",null,null,null,null,null,null,null,null,null,null,null,null,null,"-",null,null,null,null,"-",null,null,null,null,null,null,null,null,null,null,null,null,null,null,null,null,null,null,null,null,null,null,null,null,null,null,null,null,null,null,null,null,null,null,"37香川県"]
[null,null,null,null,null,null,null,null,null,null,null,null,null,null,null,null,"FAX番号",null,null,null,null,null,null,null,null,null,null,null,null,null,"-",null,null,null,null,"-",null,null,null,null,null,null,null,null,null,null,null,null,null,null,null,null,null,null,null,null,null,null,null,null,null,null,null,"営業",null,null,null,null,null,null,"38愛媛県"]
[null,null,null,null,null,null,null,null,null,null,null,null,null,null,null,null,"事務所形態",null,null,null,null,null,null,null,null,null,null,null,null,null,null,null,null,null,null,null,null,"(",null,null,null,null,null,null,null,null,null,null,null,")",null,null,null,null,null,null,null,null,null,null,null,null,null,"事務",null,null,null,null,null,null,"39高知県"]
[null,null,null,null,null,null,null,null,null,null,null,null,null,null,null,null,"使用権原",null,null,null,null,null,null,null,null,null,null,null,null,null,null,null,null,null,null,null,null,"(",null,null,null,null,null,null,null,null,null,null,null,")",null,null,null,null,null,null,null,null,null,null,null,null,null,null,null,null,null,null,null,null,"40福岡県"]
[null,null,null,null,null,null,null,null,null,null,null,null,null,null,null,null,null,null,null,null,null,null,null,null,null,null,null,null,null,null,null,null,null,null,null,null,null,null,null,null,null,null,null,null,null,null,null,null,null,null,null,null,null,null,null,null,null,null,null,null,null,null,null,"代表取締役",null,null,null,null,null,null,"41佐賀県"]
[null,null,null,null,null,null,null,null,null,null,null,null,null,null,null,null,null,null,null,null,null,null,null,null,null,null,null,null,null,null,null,null,null,null,null,null,null,null,null,null,null,null,null,null,null,null,null,null,null,null,null,null,null,null,null,null,null,null,null,null,null,null,null,"取締役",null,null,null,null,null,null,"42長崎県"]
[null,null,null,null,null,null,null,null,null,null,null,null,null,null,null,null,null,null,null,null,null,null,null,null,null,null,null,null,null,null,null,null,null,null,null,null,null,null,null,null,null,null,null,null,null,null,null,null,null,null,null,null,null,null,null,null,null,null,null,null,null,null,null,"政令使用人",null,null,null,null,null,null,"43熊本県"]
[null,null,null,null,null,null,null,null,null,null,null,null,null,null,null,null,null,null,null,null,null,null,null,null,null,null,null,null,null,null,null,null,null,null,null,null,null,null,null,null,null,null,null,null,null,null,null,null,null,null,null,null,null,null,null,null,null,null,null,null,null,null,null,"支店長等",null,null,null,null,null,null,"44大分県"]
[null,null,null,"従事しなくなった日",null,null,null,null,null,null,null,null,null,null,null,null,"令和",null,null,null,null,null,null,"年",null,null,null,"月",null,null,null,"日",null,"従事した日",null,null,null,null,null,null,null,null,null,"令和",null,null,null,null,null,null,"年",null,null,null,"月",null,null,null,"日",null,null,null,null,"従業員",null,null,null,null,null,null,"45宮崎県"]
["③代表者(支店等の代表者・\n政令使用人含む)",null,null,"変更前",null,null,"氏名",null,null,null,null,null,null,null,null,null,"（フリガナ）",null,null,null,null,null,null,null,null,null,null,null,null,null,null,null,null,null,null,null,null,null,null,null,null,null,null,null,null,null,null,null,null,null,null,null,null,null,null,null,null,null,null,null,null,null,null,null,null,null,null,null,null,null,"46鹿児島県"]
[null,null,null,null,null,null,null,null,null,null,null,null,null,null,null,null,null,null,null,null,null,null,null,null,null,null,null,null,null,null,null,null,null,null,null,null,null,null,null,null,null,null,null,null,null,null,null,null,null,null,null,null,null,null,null,null,null,null,null,null,null,null,null,"専任取引士",null,null,null,null,null,null,"47沖縄県"]
[null,null,null,null,null,null,"生年月日",null,null,null,null,null,null,null,null,null,"和暦",null,null,null,null,null,null,null,"年",null,null,null,null,"月",null,null,null,null,"日",null,"性別",null,null,null,null,null,null,null,null,null,null,null,null,null,null,null,null,null,null,null,null,null,null,null,null,null,null,"非専任取引士"]
[null,null,null,"変更後",null,null,"氏名",null,null,null,null,null,null,null,null,null,"（フリガナ）",null,null,null,null,null,null,null,null,null,null,null,null,null,null,null,null,null,null,null,null,null,null,null,null,null,null,null,null,null,null,null,null,null,null,null,null,null,null,null,null,null,null,null,null,null,null,"営業"]
[null,null,null,null,null,null,null,null,null,null,null,null,null,null,null,null,null,null,null,null,null,null,null,null,null,null,null,null,null,null,null,null,null,null,null,null,null,null,null,null,null,null,null,null,null,null,null,null,null,null,null,null,null,null,null,null,null,null,null,null,null,null,null,"事務"]
[null,null,null,null,null,null,"生年月日",null,null,null,null,null,null,null,null,null,"和暦",null,null,null,null,null,null,null,"年",null,null,null,null,"月",null,null,null,null,"日",null,null,null,null,null,null,null,null,null,null,"勤務体系",null,null,null,null,null,null,null,null,null,null,null,null,null,null,null,null,null,"その他"]
[null,null,null,null,null,null,"郵便番号",null,null,null,null,null,null,null,null,null,null,null,null,null,"ー"]
[null,null,null,null,null,null,"住所",null,null,null,null,null,null,null,null,null,null,null,null,null,null,null,null,null,null,null,null,null,null,null,null,null,null,null,null,null,null,null,null,null,null,null,null,null,null,null,null,null,null,null,null,null,null,null,null,null,null,null,null,null,null,null,null,"代表者等"]
[null,null,null,null,null,null,"電話番号※注記有",null,null,null,null,null,null,null,null,null,null,null,null,null,"-",null,null,null,null,"-",null,null,null,null,"※","携帯電話のみの場合、上段の電話番号欄に携帯番号を入力してください。",null,null,null,null,null,null,null,null,null,null,null,null,null,null,null,null,null,null,null,null,null,null,null,null,null,null,null,null,null,null,null,"専任取引士"]
[null,null,null,null,null,null,"携帯番号",null,null,null,null,null,null,null,null,null,null,null,null,null,"-",null,null,null,null,"-",null,null,null,null,null,null,null,null,null,null,null,null,null,null,null,null,null,null,null,null,null,null,null,null,null,null,null,null,null,null,null,null,null,null,null,null,null,"代表兼専任"]
[null,null,null,null,null,null,"性別",null,null,null,null,null,null,null,null,null,null,null,null,null,null,null,"役職"]
[null,null,null,null,null,null,"※宅建士情報\n(取引士でない場合取引士証有無のみ選択)",null,null,null,null,null,null,null,null,null,"取引士証有無",null,null,null,null,null,null,null,null,null,null,"登録番号",null,null,null,null,null,"(",null,null,null,null,null,null,")","第",null,null,null,null,null,null,null,"号"]
[null,null,null,null,null,null,null,null,null,null,null,null,null,null,null,null,"登録日",null,null,null,null,null,null,null,null,null,"年",null,null,null,"月",null,null,null,"日",null,"有効期限",null,null,null,null,null,null,null,null,null,null,null,"年",null,null,null,"月",null,null,null,"日"]
[]
["④筆頭の専任取引士",null,null,"従事しなくなった日",null,null,null,null,null,null,null,null,null,null,null,null,"令和",null,null,null,null,null,null,"年",null,null,null,"月",null,null,null,"日",null,"従事した日",null,null,null,null,null,null,null,null,null,"令和",null,null,null,null,null,null,"年",null,null,null,"月",null,null,null,"日"]
[null,null,null,"変更前",null,null,"氏名",null,null,null,null,null,null,null,null,null,"（フリガナ）"]
[]
[null,null,null,null,null,null,"生年月日",null,null,null,null,null,null,null,null,null,"和暦",null,null,null,null,null,null,null,"年",null,null,null,null,"月",null,null,null,null,"日",null,"性別"]
[null,null,null,"変更後",null,null,"氏名",null,null,null,null,null,null,null,null,null,"（フリガナ）"]
[]
[null,null,null,null,null,null,"生年月日",null,null,null,null,null,null,null,null,null,"和暦",null,null,null,null,null,null,null,"年",null,null,null,null,"月",null,null,null,null,"日",null,"年齢",null,null,null,null,null,null,"歳",null,"勤務体系"]
[null,null,null,null,null,null,"郵便番号",null,null,null,null,null,null,null,null,null,null,null,null,null,"ー"]
[null,null,null,null,null,null,"住所"]
[null,null,null,null,null,null,"電話番号※注記有",null,null,null,null,null,null,null,null,null,null,null,null,null,"-",null,null,null,null,"-",null,null,null,null,"※","携帯電話のみの場合、上段の電話番号欄に携帯番号を入力してください。"]
[null,null,null,null,null,null,"携帯番号",null,null,null,null,null,null,null,null,null,null,null,null,null,"-",null,null,null,null,"-"]
[null,null,null,null,null,null,"性別",null,null,null,null,null,null,null,null,null,null,null,null,null,null,null,"役職"]
[null,null,null,null,null,null,"取引士情報",null,null,null,null,null,null,null,null,null,"取引士証有無",null,null,null,null,null,null,null,null,null,null,"登録番号",null,null,null,null,null,"(",null,null,null,null,null,null,")","第",null,null,null,null,null,null,null,"号"]
[null,null,null,null,null,null,null,null,null,null,null,null,null,null,null,null,"登録日",null,null,null,null,null,null,null,null,null,"年",null,null,null,"月",null,null,null,"日",null,"有効期限",null,null,null,null,null,null,null,null,null,null,null,"年",null,null,null,"月",null,null,null,"日"]
[]
["⑤筆頭以外の専任取引士",null,null,"従事しなくなった日",null,null,null,null,null,null,null,null,null,null,null,null,"令和",null,null,null,null,null,null,"年",null,null,null,"月",null,null,null,"日",null,"従事した日",null,null,null,null,null,null,null,null,null,"令和",null,null,null,null,null,null,"年",null,null,null,"月",null,null,null,"日"]
[null,null,null,"変更前",null,null,"氏名",null,null,null,null,null,null,null,null,null,"（フリガナ）"]
[]
[null,null,null,null,null,null,"生年月日",null,null,null,null,null,null,null,null,null,"和暦",null,null,null,null,null,null,null,"年",null,null,null,null,"月",null,null,null,null,"日",null,"性別"]
[null,null,null,"変更後",null,null,"氏名",null,null,null,null,null,null,null,null,null,"（フリガナ）"]
[]
[null,null,null,null,null,null,"生年月日",null,null,null,null,null,null,null,null,null,"和暦",null,null,null,null,null,null,null,"年",null,null,null,null,"月",null,null,null,null,"日",null,"年齢",null,null,null,null,null,null,"歳",null,"勤務体系"]
[null,null,null,null,null,null,"郵便番号",null,null,null,null,null,null,null,null,null,null,null,null,null,"ー"]
[null,null,null,null,null,null,"住所"]
[null,null,null,null,null,null,"電話番号※注記有",null,null,null,null,null,null,null,null,null,null,null,null,null,"-",null,null,null,null,"-",null,null,null,null,"※","携帯電話のみの場合、上段の電話番号欄に携帯番号を入力してください。"]
[null,null,null,null,null,null,"携帯番号",null,null,null,null,null,null,null,null,null,null,null,null,null,"-",null,null,null,null,"-"]
[null,null,null,null,null,null,"性別",null,null,null,null,null,null,null,null,null,null,null,null,null,null,null,"役職"]
[null,null,null,null,null,null,"取引士情報",null,null,null,null,null,null,null,null,null,"取引士証有無",null,null,null,null,null,null,null,null,null,null,"登録番号",null,null,null,null,null,"(",null,null,null,null,null,null,")","第",null,null,null,null,null,null,null,"号"]
[null,null,null,null,null,null,null,null,null,null,null,null,null,null,null,null,"登録日",null,null,null,null,null,null,null,null,null,"年",null,null,null,"月",null,null,null,"日",null,"有効期限",null,null,null,null,null,null,null,null,null,null,null,"年",null,null,null,"月",null,null,null,"日"]
[]
[]
["⑥住所変更",null,null,"変更日",null,null,null,null,null,null,null,null,null,null,null,null,"令和",null,null,null,null,null,null,"年",null,null,null,"月",null,null,null,"日"]
[null,null,null,"変更後",null,null,"対象者氏名",null,null,null,null,null,null,null,null,null,null,null,null,null,null,null,null,null,null,null,null,null,null,null,null,null,null,null,null,null,null,null,"職務"]
[null,null,null,null,null,null,"郵便番号",null,null,null,null,null,null,null,null,null,null,null,null,null,"ー"]
[null,null,null,null,null,null,"住所"]
[null,null,null,null,null,null,"電話番号※注記有",null,null,null,null,null,null,null,null,null,null,null,null,null,"-",null,null,null,null,"-",null,null,null,null,"※","携帯電話のみの場合、上段の電話番号欄に携帯番号を入力してください。"]
[null,null,null,null,null,null,"携帯番号",null,null,null,null,null,null,null,null,null,null,null,null,null,"-",null,null,null,null,"-"]
[]
["⑦氏名変更",null,null,"変更日",null,null,null,null,null,null,null,null,null,null,null,null,"令和",null,null,null,null,null,null,"年",null,null,null,"月",null,null,null,"日"]
[null,null,null,"変更\n前",null,null,"氏名",null,null,null,null,null,null,null,null,null,"（フリガナ）"]
[]
[null,null,null,"変更\n後",null,null,"氏名",null,null,null,null,null,null,null,null,null,"（フリガナ）"]
[]
[]
["⑧新たに従事する者",null,null,"➀",null,null,"従事した日",null,null,null,null,null,null,null,null,null,"令和",null,null,null,null,null,null,"年",null,null,null,"月",null,null,null,"日"]
[null,null,null,null,null,null,"氏名",null,null,null,null,null,null,null,null,null,"（フリガナ）",null,null,null,null,null,null,null,null,null,null,null,null,null,null,null,null,"従業者番号",null,null,null,null,null,null,null,null,null,null,null,null,"職務"]
[]
[null,null,null,null,null,null,"生年月日",null,null,null,null,null,null,null,null,null,"和暦",null,null,null,null,null,null,null,"年",null,null,null,null,"月",null,null,null,null,"日",null,"年齢",null,null,null,null,null,null,"歳",null,null,"性別"]
[null,null,null,null,null,null,"※宅建士情報\n(取引士でない場合取引士証有無のみ選択)",null,null,null,null,null,null,null,null,null,"取引士証有無",null,null,null,null,null,null,null,null,null,null,"登録番号",null,null,null,null,null,"(",null,null,null,null,null,null,")","第",null,null,null,null,null,null,null,"号"]
[null,null,null,null,null,null,null,null,null,null,null,null,null,null,null,null,"登録日",null,null,null,null,null,null,null,null,null,"年",null,null,null,"月",null,null,null,"日",null,"有効期限",null,null,null,null,null,null,null,null,null,null,null,"年",null,null,null,"月",null,null,null,"日"]
[null,null,null,"②",null,null,"従事した日",null,null,null,null,null,null,null,null,null,"令和",null,null,null,null,null,null,"年",null,null,null,"月",null,null,null,"日"]
[null,null,null,null,null,null,"氏名",null,null,null,null,null,null,null,null,null,"（フリガナ）",null,null,null,null,null,null,null,null,null,null,null,null,null,null,null,null,"従業者番号",null,null,null,null,null,null,null,null,null,null,null,null,"職務"]
[]
[null,null,null,null,null,null,"生年月日",null,null,null,null,null,null,null,null,null,"和暦",null,null,null,null,null,null,null,"年",null,null,null,null,"月",null,null,null,null,"日",null,"年齢",null,null,null,null,null,null,"歳",null,null,"性別"]
[null,null,null,null,null,null,"※宅建士情報\n(取引士でない場合取引士証有無のみ選択)",null,null,null,null,null,null,null,null,null,"取引士証有無",null,null,null,null,null,null,null,null,null,null,"登録番号",null,null,null,null,null,"(",null,null,null,null,null,null,")","第",null,null,null,null,null,null,null,"号",null,"専任か"]
[null,null,null,null,null,null,null,null,null,null,null,null,null,null,null,null,"登録日",null,null,null,null,null,null,null,null,null,"年",null,null,null,"月",null,null,null,"日",null,"有効期限",null,null,null,null,null,null,null,null,null,null,null,"年",null,null,null,"月",null,null,null,"日"]
[null,null,null,"③",null,null,"従事した日",null,null,null,null,null,null,null,null,null,"令和",null,null,null,null,null,null,"年",null,null,null,"月",null,null,null,"日",null,null,null,null,null,null,null,null,null,null,null,null,null,null,null,null,null,null,null,null,null,null,null,null,null,null,null,null,null,null,null,"専任"]
[null,null,null,null,null,null,"氏名",null,null,null,null,null,null,null,null,null,"（フリガナ）",null,null,null,null,null,null,null,null,null,null,null,null,null,null,null,null,"従業者番号",null,null,null,null,null,null,null,null,null,null,null,null,"職務",null,null,null,null,null,null,null,null,null,null,null,null,null,null,null,null,"非専任"]
[]
[null,null,null,null,null,null,"生年月日",null,null,null,null,null,null,null,null,null,"和暦",null,null,null,null,null,null,null,"年",null,null,null,null,"月",null,null,null,null,"日",null,"年齢",null,null,null,null,null,null,"歳",null,null,"性別"]
[null,null,null,null,null,null,"※宅建士情報\n(取引士でない場合取引士証有無のみ選択)",null,null,null,null,null,null,null,null,null,"取引士証有無",null,null,null,null,null,null,null,null,null,null,"登録番号",null,null,null,null,null,"(",null,null,null,null,null,null,")","第",null,null,null,null,null,null,null,"号",null,"専任か"]
[null,null,null,null,null,null,null,null,null,null,null,null,null,null,null,null,"登録日",null,null,null,null,null,null,null,null,null,"年",null,null,null,"月",null,null,null,"日",null,"有効期限",null,null,null,null,null,null,null,null,null,null,null,"年",null,null,null,"月",null,null,null,"日"]
[null,null,null,"④",null,null,"従事した日",null,null,null,null,null,null,null,null,null,"令和",null,null,null,null,null,null,"年",null,null,null,"月",null,null,null,"日"]
[null,null,null,null,null,null,"氏名",null,null,null,null,null,null,null,null,null,"（フリガナ）",null,null,null,null,null,null,null,null,null,null,null,null,null,null,null,null,"従業者番号",null,null,null,null,null,null,null,null,null,null,null,null,"職務"]
[]
[null,null,null,null,null,null,"生年月日",null,null,null,null,null,null,null,null,null,"和暦",null,null,null,null,null,null,null,"年",null,null,null,null,"月",null,null,null,null,"日",null,"年齢",null,null,null,null,null,null,"歳",null,null,"性別"]
[null,null,null,null,null,null,"※宅建士情報\n(取引士でない場合取引士証有無のみ選択)",null,null,null,null,null,null,null,null,null,"取引士証有無",null,null,null,null,null,null,null,null,null,null,"登録番号",null,null,null,null,null,"(",null,null,null,null,null,null,")","第",null,null,null,null,null,null,null,"号",null,"専任か"]
[null,null,null,null,null,null,null,null,null,null,null,null,null,null,null,null,"登録日",null,null,null,null,null,null,null,null,null,"年",null,null,null,"月",null,null,null,"日",null,"有効期限",null,null,null,null,null,null,null,null,null,null,null,"年",null,null,null,"月",null,null,null,"日"]
[]
["⑨従事しなくなった者",null,null,"➀",null,null,"従事しなくなった日",null,null,null,null,null,null,null,null,null,"令和",null,null,null,null,null,null,"年",null,null,null,"月",null,null,null,"日"]
[null,null,null,null,null,null,"氏名",null,null,null,null,null,null,null,null,null,"（フリガナ）",null,null,null,null,null,null,null,null,null,null,null,null,null,null,null,null,"従業者番号",null,null,null,null,null,null,null,null,null,null,null,null,"職務"]
[]
[null,null,null,"②",null,null,"従事しなくなった日",null,null,null,null,null,null,null,null,null,"令和",null,null,null,null,null,null,"年",null,null,null,"月",null,null,null,"日"]
[null,null,null,null,null,null,"氏名",null,null,null,null,null,null,null,null,null,"（フリガナ）",null,null,null,null,null,null,null,null,null,null,null,null,null,null,null,null,"従業者番号",null,null,null,null,null,null,null,null,null,null,null,null,"職務"]
[]
[null,null,null,"③",null,null,"従事しなくなった日",null,null,null,null,null,null,null,null,null,"令和",null,null,null,null,null,null,"年",null,null,null,"月",null,null,null,"日"]
[null,null,null,null,null,null,"氏名",null,null,null,null,null,null,null,null,null,"（フリガナ）",null,null,null,null,null,null,null,null,null,null,null,null,null,null,null,null,"従業者番号",null,null,null,null,null,null,null,null,null,null,null,null,"職務"]

{"sheet":"【1】変更届➀","index":4,"n_rows":53,"n_cols":46,"rows_kept":53,"cut":false,"hidden":false,"merged":[[29,39,29,40],[35,39,35,40],[39,39,39,40],[25,42,25,43],[25,44,25,45],[29,42,29,43],[29,44,29,45],[35,42,35,43],[35,44,35,45],[38,38,38,45],[25,39,25,40],[49,0,49,45],[50,0,50,45],[43,30,43,31],[43,32,43,33],[43,34,43,35],[43,6,43,10],[43,11,43,12],[43,14,43,15],[43,16,43,19],[43,20,43,23],[44,6,44,10],[44,26,44,35],[44,16,44,19],[45,16,45,17],[45,18,45,19],[43,24,43,25],[43,26,43,27],[43,28,43,29],[33,0,41,1],[33,2,34,5],[35,2,35,5],[36,2,37,5],[38,2,39,5],[51,0,51,45],[52,0,52,45],[44,36,44,45],[17,44,17,45],[17,42,17,43],[21,44,21,45],[45,20,45,21],[45,22,45,23],[45,24,45,25],[45,26,45,30],[45,31,45,35],[48,0,48,45],[44,11,44,15],[44,20,44,25],[43,0,44,5],[45,0,45,5],[45,6,45,9],[45,10,45,13],[45,14,45,15],[40,2,41,5],[27,16,27,17],[27,8,27,9],[27,10,27,15],[41,8,41,9],[41,10,41,15],[41,16,41,17],[41,32,41,33],[40,6,41,7],[40,8,40,12],[40,14,40,16],[35,28,35,29],[35,30,35,31],[35,32,35,33],[33,6,33,9],[33,10,33,21],[33,22,33,25],[33,26,33,37],[32,2,32,5],[32,6,32,21],[31,11,31,13],[31,15,31,18],[32,22,32,24],[41,34,41,35],[41,36,41,37],[40,40,40,41],[40,42,40,43],[40,44,40,45],[41,18,41,21],[41,22,41,25],[41,26,41,27],[41,28,41,29],[41,30,41,31],[40,28,40,29],[40,30,40,31],[40,32,40,33],[40,34,40,35],[40,36,40,37],[40,38,40,39],[40,18,40,21],[40,22,40,25],[40,26,40,27],[39,22,39,24],[39,26,39,28],[39,30,39,32],[39,34,39,37],[39,42,39,43],[39,44,39,45],[37,22,37,37],[38,6,39,21],[38,22,38,24],[38,26,38,28],[38,30,38,32],[38,34,38,37],[36,6,37,21],[36,22,36,23],[36,24,36,26],[36,28,36,31],[36,38,36,39],[36,40,36,41],[36,42,36,43],[36,44,36,45],[35,34,35,35],[35,36,35,37],[34,38,34,45],[35,6,35,9],[35,10,35,11],[35,12,35,13],[35,14,35,15],[35,16,35,17],[35,18,35,19],[35,20,35,21],[35,22,35,25],[35,26,35,27],[34,6,34,16],[34,17,34,18],[34,19,34,21],[34,22,34,32],[34,33,34,34],[34,35,34,37],[28,0,32,1],[30,38,30,39],[30,40,30,41],[30,42,30,43],[30,44,30,45],[31,23,31,25],[31,27,31,29],[31,31,31,34],[32,25,32,28],[32,29,32,33],[32,34,32,37],[28,22,28,23],[28,24,28,26],[28,28,28,31],[29,22,29,37],[30,23,30,25],[30,27,30,29],[30,31,30,34],[30,2,30,5],[31,2,31,5],[30,7,30,9],[30,11,30,13],[30,15,30,18],[31,7,31,9],[24,38,24,45],[28,2,29,5],[28,6,28,7],[28,8,28,10],[28,12,28,15],[29,6,29,21],[21,20,21,21],[22,6,23,21],[24,6,25,21],[27,34,27,35],[27,36,27,37],[26,6,27,7],[26,34,26,35],[26,40,26,41],[26,38,26,39],[26,36,26,37],[26,44,26,45],[26,42,26,43],[24,34,24,37],[25,26,25,28],[25,30,25,32],[25,34,25,37],[23,22,23,37],[21,42,21,43],[20,38,20,45],[22,38,22,39],[22,40,22,41],[22,42,22,43],[19,10,19,21],[20,6,20,16],[20,17,20,18],[20,19,20,21],[21,6,21,9],[21,10,21,11],[21,12,21,13],[21,14,21,15],[21,16,21,17],[21,18,21,19],[21,22,21,25],[22,22,22,23],[22,24,22,26],[22,28,22,31],[22,44,22,45],[21,39,21,40],[19,0,27,1],[19,2,20,5],[21,2,21,5],[22,2,23,5],[24,2,25,5],[26,2,27,5],[19,6,19,9],[26,30,26,31],[26,32,26,33],[27,22,27,25],[27,26,27,27],[27,28,27,29],[27,30,27,31],[27,32,27,33],[26,14,26,16],[26,18,26,21],[27,18,27,21],[26,22,26,25],[26,26,26,27],[26,28,26,29],[26,8,26,12],[24,26,24,28],[24,30,24,32],[25,22,25,24],[24,22,24,24],[21,36,21,37],[21,34,21,35],[21,32,21,33],[21,30,21,31],[21,28,21,29],[21,26,21,27],[19,22,19,25],[19,26,19,37],[20,22,20,32],[20,33,20,34],[20,35,20,37],[17,39,17,41],[17,22,17,25],[17,26,17,37],[18,22,18,37],[18,38,18,39],[18,40,18,41],[18,42,18,43],[18,44,18,45],[16,0,16,5],[16,6,16,21],[16,22,16,37],[16,38,16,45],[17,0,18,5],[17,6,17,9],[17,10,17,21],[18,6,18,21],[12,0,12,45],[14,0,14,5],[14,6,14,12],[14,26,14,44],[9,29,10,34],[9,35,10,45],[6,25,6,28],[6,21,6,24],[6,44,6,45],[6,39,6,43],[6,37,6,38],[6,34,6,35],[6,29,6,32],[7,29,8,45],[14,14,14,25],[4,44,4,45],[4,42,4,43],[4,40,4,41],[4,36,4,37],[4,34,4,35],[4,31,4,33],[0,42,0,44],[0,38,0,41],[0,35,0,37],[0,31,0,34],[2,1,2,13],[2,15,2,30],[2,37,2,40],[2,41,2,42],[0,9,0,11],[0,13,0,14],[4,26,4,29],[8,21,8,28],[10,21,10,28],[4,38,4,39],[0,0,0,8],[4,0,4,17],[2,31,2,35]]}
["【業協会 変更様式➀】",null,null,null,null,null,null,null,null,"R３",null,null,".",12,null,null,null,null,null,null,null,null,null,null,null,null,null,null,null,null,"[",{"$f":"変更入力シート!AD3","v":0},null,null,null,"支部",null,null,{"$f":"変更入力シート!AN3","v":0},null,null,null,"地区",null,null,"]"]
[]
[null,"会員名簿登載事項",null,null,null,null,null,null,null,null,null,null,null,null,null,"変　　更　　届",null,null,null,null,null,null,null,null,null,null,null,null,null,null,null,"<地区移転>",null,null,null,null,"：",null,null,null,null,"地区",null,">"]
[]
["(公社)静岡県宅地建物取引業協会 会長",null,null,null,null,null,null,null,null,null,null,null,null,null,null,null,null,null,"殿",null,null,null,null,null,null,"［","提出日",null,null,null,"]",{"$f":"変更入力シート!I3","v":"令和"},null,null,{"$f":"変更入力シート!N3","v":0},null,"年",null,{"$f":"変更入力シート!R3","v":0},null,"月",null,{"$f":"変更入力シート!V3","v":0},null,"日"]
[]
[null,null,null,null,null,null,null,null,null,null,null,null,null,null,null,null,null,null,null,null,null,"(届出者）",null,null,null,"免許番号",null,null,null,{"$f":"変更入力シート!Q10","v":0},null,null,null,"(",{"$f":"変更入力シート!W10","v":0},null,")","第",null,{"$f":"変更入力シート!AB10","v":0},null,null,null,null,"号"]
[null,null,null,null,null,null,null,null,null,null,null,null,null,null,null,null,null,null,null,null,null,null,null,null,null,null,null,null,null,{"$f":"変更入力シート!Q9","v":0}]
[null,null,null,null,null,null,null,null,null,null,null,null,null,null,null,null,null,null,null,null,null,"商号又は名称(本店)"]
[null,null,null,null,null,null,null,null,null,null,null,null,null,null,null,null,null,null,null,null,null,null,null,null,null,null,null,null,null,{"$f":"変更入力シート!AY11","v":0},null,null,null,null,null,{"$f":"変更入力シート!Q11","v":0}]
[null,null,null,null,null,null,null,null,null,null,null,null,null,null,null,null,null,null,null,null,null,"代表者氏名(本店)"]
[]
["　この度、下記事項について変更が生じましたので、宅建協会「定款施行細則第５条」の規定により届け出ます。"]
[]
["変更対象",null,null,null,null,null,{"$f":"変更入力シート!Q12","v":0},null,null,null,null,null,null,"(","準会員の場合、支店等名称：",null,null,null,null,null,null,null,null,null,null,null,{"$f":"変更入力シート!AH12","v":0},null,null,null,null,null,null,null,null,null,null,null,null,null,null,null,null,null,null,")"]
[]
["変更事項",null,null,null,null,null,"変更前",null,null,null,null,null,null,null,null,null,null,null,null,null,null,null,"変更後",null,null,null,null,null,null,null,null,null,null,null,null,null,null,null,"変更日"]
["商号又は名称",null,null,null,null,null,"(ﾌﾘｶﾞﾅ)",null,null,null,{"$f":"IF(変更入力シート!Q12=\"正会員\",変更入力シート!U27,IF(変更入力シート!Q12=\"準会員\",変更入力シート!AO27,\"\"))","v":""},null,null,null,null,null,null,null,null,null,null,null,"(ﾌﾘｶﾞﾅ)",null,null,null,{"$f":"IF(変更入力シート!Q12=\"正会員\",変更入力シート!U29,IF(変更入力シート!Q12=\"準会員\",変更入力シート!AO29,\"\"))","v":""},null,null,null,null,null,null,null,null,null,null,null,null,"令和",null,null,{"$f":"変更入力シート!V26","v":0},null,"年"]
[null,null,null,null,null,null,{"$f":"IF(変更入力シート!Q12=\"正会員\",変更入力シート!Q28,IF(変更入力シート!Q12=\"準会員\",変更入力シート!AK28,\"\"))","v":""},null,null,null,null,null,null,null,null,null,null,null,null,null,null,null,{"$f":"IF(変更入力シート!Q12=\"正会員\",変更入力シート!Q30,IF(変更入力シート!Q12=\"準会員\",変更入力シート!AK30,\"\"))","v":""},null,null,null,null,null,null,null,null,null,null,null,null,null,null,null,{"$f":"変更入力シート!Z26","v":0},null,"月",null,{"$f":"変更入力シート!AD26","v":0},null,"日"]
["代表者(支店等代表・\n政令使用人)",null,"氏名",null,null,null,"(ﾌﾘｶﾞﾅ)",null,null,null,{"$f":"変更入力シート!W48","v":0},null,null,null,null,null,null,null,null,null,null,null,"(ﾌﾘｶﾞﾅ)",null,null,null,{"$f":"変更入力シート!W51","v":0}]
[null,null,null,null,null,null,{"$f":"変更入力シート!Q49","v":0},null,null,null,null,null,null,null,null,null,null,"性別",null,{"$f":"変更入力シート!AO50","v":0},null,null,{"$f":"変更入力シート!Q52","v":0},null,null,null,null,null,null,null,null,null,null,"性別",null,{"$f":"変更入力シート!Q58","v":0},null,null,"(従事しなくなった日)"]
[null,null,"生年月日",null,null,null,{"$f":"変更入力シート!T50","v":0},null,null,null,{"$f":"変更入力シート!W50","v":0},null,"年",null,{"$f":"変更入力シート!AA50","v":0},null,"月",null,{"$f":"変更入力シート!AF50","v":0},null,"日",null,{"$f":"変更入力シート!T53","v":0},null,null,null,{"$f":"変更入力シート!W53","v":0},null,"年",null,{"$f":"変更入力シート!AA53","v":0},null,"月",null,{"$f":"変更入力シート!AF53","v":0},null,"日",null,null,"令和",null,null,{"$f":"変更入力シート!V47","v":0},null,"年"]
[null,null,"現住所\n(自宅)",null,null,null,null,null,null,null,null,null,null,null,null,null,null,null,null,null,null,null,"〒",null,{"$f":"変更入力シート!Q54","v":0},null,null,"-",{"$f":"変更入力シート!V54","v":0},null,null,null,null,null,null,null,null,null,{"$f":"変更入力シート!Z47","v":0},null,"月",null,{"$f":"変更入力シート!AD47","v":0},null,"日"]
[null,null,null,null,null,null,null,null,null,null,null,null,null,null,null,null,null,null,null,null,null,null,{"$f":"変更入力シート!Q55","v":0}]
[null,null,"電話",null,null,null,null,null,null,null,null,null,null,null,null,null,null,null,null,null,null,null,"TEL",null,null,"(",{"$f":"変更入力シート!Q56","v":0},null,null,")",{"$f":"変更入力シート!V56","v":0},null,null,"-",{"$f":"変更入力シート!AA56","v":0},null,null,null,"(従事した日)"]
[null,null,null,null,null,null,null,null,null,null,null,null,null,null,null,null,null,null,null,null,null,null,"携帯",null,null,"(",{"$f":"変更入力シート!Q57","v":0},null,null,")",{"$f":"変更入力シート!V57","v":0},null,null,"-",{"$f":"変更入力シート!AA57","v":0},null,null,null,null,"令和",null,null,{"$f":"変更入力シート!AW47","v":0},null,"年"]
[null,null,"取引士\n登録",null,null,null,{"$f":"変更入力シート!W59","v":0},null,"登録番号",null,null,null,null,"(",{"$f":"変更入力シート!AI59","v":0},null,null,")","登録日",null,null,null,{"$f":"変更入力シート!W60","v":0},null,null,null,{"$f":"変更入力シート!Y60","v":0},null,"年",null,{"$f":"変更入力シート!AC60","v":0},null,"月",null,{"$f":"変更入力シート!AG60","v":0},null,"日",null,{"$f":"変更入力シート!BA47","v":0},null,"月",null,{"$f":"変更入力シート!BE47","v":0},null,"日"]
[null,null,null,null,null,null,null,null,"第",null,{"$f":"変更入力シート!AR59","v":0},null,null,null,null,null,"号",null,"有効期限",null,null,null,{"$f":"変更入力シート!AS60","v":0},null,null,null,{"$f":"変更入力シート!AU60","v":0},null,"年",null,{"$f":"変更入力シート!AY60","v":0},null,"月",null,{"$f":"変更入力シート!BC60","v":0},null,"日"]
["事務所",null,"所在地",null,null,null,"〒",null,{"$f":"変更入力シート!AA33","v":0},null,null,"-",{"$f":"変更入力シート!AF33","v":0},null,null,null,null,null,null,null,null,null,"〒",null,{"$f":"変更入力シート!AA37","v":0},null,null,"-",{"$f":"変更入力シート!AF37","v":0}]
[null,null,null,null,null,null,{"$f":"変更入力シート!AA34","v":0},null,null,null,null,null,null,null,null,null,null,null,null,null,null,null,{"$f":"変更入力シート!AA38","v":0},null,null,null,null,null,null,null,null,null,null,null,null,null,null,null,null,"令和",null,null,{"$f":"変更入力シート!V32","v":0},null,"年"]
[null,null,"電話",null,null,null,"(",{"$f":"変更入力シート!AA35","v":0},null,null,")",{"$f":"変更入力シート!AF35","v":0},null,null,"-",{"$f":"変更入力シート!AK35","v":0},null,null,null,null,null,null,"(",{"$f":"変更入力シート!AA39","v":0},null,null,")",{"$f":"変更入力シート!AF39","v":0},null,null,"-",{"$f":"変更入力シート!AK39","v":0},null,null,null,null,null,null,{"$f":"変更入力シート!Z32","v":0},null,"月",null,{"$f":"変更入力シート!AD32","v":0},null,"日"]
[null,null,"FAX",null,null,null,"(",{"$f":"変更入力シート!AA36","v":0},null,null,")",{"$f":"変更入力シート!AF36","v":0},null,null,"-",{"$f":"変更入力シート!AK36","v":0},null,null,null,null,null,null,"(",{"$f":"変更入力シート!AA40","v":0},null,null,")",{"$f":"変更入力シート!AF40","v":0},null,null,"-",{"$f":"変更入力シート!AK40","v":0}]
[null,null,"事務所",null,null,null,null,null,null,null,null,null,null,null,null,null,null,null,null,null,null,null,"[形態]",null,null,{"$f":"IF(変更入力シート!AA41=\"その他\",変更入力シート!AM41,変更入力シート!AA41)","v":0},null,null,null,"[使用権原]",null,null,null,null,{"$f":"IF(変更入力シート!AA42=\"その他\",変更入力シート!AM42,変更入力シート!AA42)","v":0}]
["筆頭の専任取引士",null,"氏名",null,null,null,"(ﾌﾘｶﾞﾅ)",null,null,null,{"$f":"変更入力シート!W63","v":0},null,null,null,null,null,null,null,null,null,null,null,"(ﾌﾘｶﾞﾅ)",null,null,null,{"$f":"変更入力シート!W66","v":0}]
[null,null,null,null,null,null,{"$f":"変更入力シート!Q64","v":0},null,null,null,null,null,null,null,null,null,null,"性別",null,{"$f":"変更入力シート!AO65","v":0},null,null,{"$f":"変更入力シート!Q67","v":0},null,null,null,null,null,null,null,null,null,null,"性別",null,{"$f":"変更入力シート!Q73","v":0},null,null,"(従事しなくなった日)"]
[null,null,"生年月日",null,null,null,{"$f":"変更入力シート!T65","v":0},null,null,null,{"$f":"変更入力シート!W65","v":0},null,"年",null,{"$f":"変更入力シート!AA65","v":0},null,"月",null,{"$f":"変更入力シート!AF65","v":0},null,"日",null,{"$f":"変更入力シート!T68","v":0},null,null,null,{"$f":"変更入力シート!W68","v":0},null,"年",null,{"$f":"変更入力シート!AA68","v":0},null,"月",null,{"$f":"変更入力シート!AF68","v":0},null,"日",null,null,"令和",null,null,{"$f":"変更入力シート!V62","v":0},null,"年"]
[null,null,"現住所\n(自宅)",null,null,null,null,null,null,null,null,null,null,null,null,null,null,null,null,null,null,null,"〒",null,{"$f":"変更入力シート!Q69","v":0},null,null,"-",{"$f":"変更入力シート!V69","v":0},null,null,null,null,null,null,null,null,null,{"$f":"変更入力シート!Z62","v":0},null,"月",null,{"$f":"変更入力シート!AD62","v":0},null,"日"]
[null,null,null,null,null,null,null,null,null,null,null,null,null,null,null,null,null,null,null,null,null,null,{"$f":"変更入力シート!Q70","v":0}]
[null,null,"電話",null,null,null,null,null,null,null,null,null,null,null,null,null,null,null,null,null,null,null,"TEL",null,null,"(",{"$f":"変更入力シート!Q71","v":0},null,null,")",{"$f":"変更入力シート!V71","v":0},null,null,"-",{"$f":"変更入力シート!AA71","v":0},null,null,null,"(従事した日)"]
[null,null,null,null,null,null,null,null,null,null,null,null,null,null,null,null,null,null,null,null,null,null,"携帯",null,null,"(",{"$f":"変更入力シート!Q72","v":0},null,null,")",{"$f":"変更入力シート!V72","v":0},null,null,"-",{"$f":"変更入力シート!AA72","v":0},null,null,null,null,"令和",null,null,{"$f":"変更入力シート!AW62","v":0},null,"年"]
[null,null,"取引士\n登録",null,null,null,{"$f":"変更入力シート!W74","v":0},null,"登録番号",null,null,null,null,"(",{"$f":"変更入力シート!AI74","v":0},null,null,")","登録日",null,null,null,{"$f":"変更入力シート!W75","v":0},null,null,null,{"$f":"変更入力シート!Y75","v":0},null,"年",null,{"$f":"変更入力シート!AC75","v":0},null,"月",null,{"$f":"変更入力シート!AG75","v":0},null,"日",null,{"$f":"変更入力シート!BA62","v":0},null,"月",null,{"$f":"変更入力シート!BE62","v":0},null,"日"]
[null,null,null,null,null,null,null,null,"第",null,{"$f":"変更入力シート!AR74","v":0},null,null,null,null,null,"号",null,"有効期限",null,null,null,{"$f":"変更入力シート!AS75","v":0},null,null,null,{"$f":"変更入力シート!AU75","v":0},null,"年",null,{"$f":"変更入力シート!AY75","v":0},null,"月",null,{"$f":"変更入力シート!BC75","v":0},null,"日"]
[]
["支部処理欄",null,null,null,null,null,"審査要否",null,null,null,null,"要",null,"・","否",null,"決裁日",null,null,null,null,null,null,null,null,null,"年",null,null,null,"月",null,null,null,"日"]
[null,null,null,null,null,null,"入力",null,null,null,null,null,null,null,null,null,"本部FAX",null,null,null,null,null,null,null,null,null,"本店の所属支部へのFAX"]
["※本部処理欄",null,null,null,null,null,"受付日",null,null,null,null,null,null,null,null,null,"年",null,null,null,"月",null,null,null,"日",null,"入力確認"]
[]
["（注）"]
["　① この変更届の提出部数は１枚です。記入箇所は“変更する事項のみ”で結構です。"]
["　② 準会員（支店等）に係る変更を行った場合の届出者は正会員（本店）ですが、提出先は準会員（支店等）が所属する支部です。"]
["　③ 従業者（代表者・専任取引士も含む）の変更については、別に定める「従業者 変更届」を提出してください。"]
["　④ この変更届と同時に全宅保証協会の「正会員名簿登録事項 変更届」提出してください。"]
["　⑤ 宅建業法で定められた「変更届出書」も所管の県土木事務所（建築住宅課）に提出してください。"]

{"sheet":"【2】変更届②","index":5,"n_rows":60,"n_cols":46,"rows_kept":60,"cut":false,"hidden":false,"merged":[[55,38,55,41],[55,42,55,45],[55,0,55,5],[55,6,55,8],[55,9,55,10],[55,11,55,12],[55,14,55,15],[55,17,55,18],[55,20,55,22],[55,23,55,29],[55,30,55,37],[52,42,52,43],[52,44,52,45],[53,9,53,11],[53,13,53,16],[53,18,53,21],[53,22,53,24],[53,25,53,27],[53,29,53,32],[53,34,53,37],[53,38,53,39],[53,40,53,41],[53,42,53,43],[53,44,53,45],[37,0,46,1],[48,0,48,5],[48,6,48,18],[48,19,48,37],[49,0,50,5],[49,6,49,9],[49,10,49,18],[49,19,49,22],[49,23,49,37],[50,6,50,18],[50,19,50,37],[38,26,38,37],[39,6,39,16],[39,17,39,18],[39,19,39,21],[39,22,39,32],[39,33,39,34],[39,35,39,37],[40,18,40,19],[40,20,40,21],[40,22,40,25],[40,26,40,27],[40,28,40,29],[40,30,40,31],[0,9,0,11],[0,13,0,14],[0,31,0,34],[0,35,0,37],[0,38,0,41],[0,42,0,44],[2,1,2,13],[2,15,2,30],[2,37,2,40],[2,41,2,42],[0,0,0,8],[12,0,12,45],[4,42,4,43],[4,44,4,45],[6,21,6,24],[6,25,6,28],[6,29,6,32],[6,34,6,35],[6,37,6,38],[6,39,6,43],[6,44,6,45],[4,26,4,29],[4,31,4,33],[4,34,4,35],[4,36,4,37],[4,38,4,39],[4,40,4,41],[7,29,8,45],[8,21,8,28],[9,29,10,34],[9,35,10,45],[10,21,10,28],[17,38,19,45],[31,35,31,36],[31,29,31,30],[28,35,28,36],[30,16,30,17],[28,27,28,28],[25,35,25,36],[27,16,27,17],[25,29,25,30],[22,35,22,36],[24,16,24,17],[21,18,21,19],[30,35,30,36],[29,16,29,17],[27,35,27,36],[24,35,24,36],[23,16,23,17],[20,18,20,19],[20,27,20,29],[28,29,28,30],[27,18,27,19],[27,21,27,25],[26,16,26,17],[21,44,21,45],[22,42,22,43],[22,44,22,45],[17,27,17,29],[17,30,17,37],[18,27,18,37],[19,27,19,37],[21,42,21,43],[17,2,17,11],[18,2,18,11],[19,2,19,11],[20,2,20,11],[21,2,21,11],[22,2,22,11],[22,12,22,19],[20,20,20,26],[22,20,22,21],[22,25,22,26],[21,21,21,25],[22,22,22,24],[22,27,22,28],[17,20,17,26],[18,20,19,26],[17,12,18,19],[19,12,19,19],[24,44,24,45],[25,2,25,11],[25,12,25,19],[25,20,25,21],[25,22,25,24],[25,25,25,26],[25,27,25,28],[24,2,24,11],[24,12,24,13],[24,14,24,15],[24,18,24,19],[24,21,24,25],[24,27,24,28],[27,44,27,45],[28,2,28,11],[28,12,28,19],[28,20,28,21],[28,22,28,24],[28,25,28,26],[25,38,25,39],[25,40,25,41],[25,42,25,43],[25,44,25,45],[26,2,26,11],[26,12,26,15],[26,18,26,19],[26,20,26,26],[26,27,26,29],[26,30,26,37],[27,2,27,11],[27,12,27,13],[27,14,27,15],[28,38,28,39],[28,40,28,41],[28,42,28,43],[28,44,28,45],[31,44,31,45],[31,32,31,33],[30,44,30,45],[31,2,31,11],[31,12,31,19],[31,20,31,21],[31,22,31,24],[31,25,31,26],[31,27,31,28],[30,2,30,11],[30,12,30,13],[30,14,30,15],[30,18,30,19],[30,21,30,25],[30,27,30,28],[30,32,30,33],[31,38,31,39],[17,0,31,1],[32,2,32,10],[30,29,30,30],[30,38,30,41],[30,42,30,43],[21,35,21,36],[24,32,24,33],[25,32,25,33],[27,32,27,33],[28,32,28,33],[27,38,27,41],[27,42,27,43],[24,38,24,41],[24,42,24,43],[21,38,21,41],[23,2,23,11],[23,12,23,15],[23,18,23,19],[23,20,23,26],[23,27,23,29],[31,40,31,41],[31,42,31,43],[22,38,22,39],[22,40,22,41],[32,0,35,1],[38,2,39,5],[38,6,38,9],[38,10,38,21],[38,22,38,25],[45,22,45,25],[32,27,32,33],[32,34,32,45],[33,2,33,10],[33,11,33,19],[33,20,33,26],[33,27,33,33],[33,37,33,38],[33,43,33,44],[33,40,33,41],[33,34,33,36],[40,38,40,41],[39,38,39,45],[40,2,40,5],[40,6,40,9],[40,10,40,11],[40,12,40,13],[40,14,40,15],[40,16,40,17],[40,42,40,43],[40,44,40,45],[41,44,41,45],[42,22,42,37],[43,2,44,5],[43,6,44,21],[43,22,43,24],[43,26,43,28],[43,30,43,32],[43,34,43,37],[43,38,43,45],[44,22,44,24],[44,38,44,41],[44,26,44,28],[44,30,44,32],[44,34,44,37],[44,42,44,43],[44,44,44,45],[41,2,42,5],[41,6,42,21],[41,22,41,23],[41,24,41,26],[41,28,41,31],[41,38,41,39],[41,40,41,41],[41,42,41,43],[46,28,46,29],[46,30,46,31],[46,32,46,33],[46,34,46,35],[46,36,46,37],[45,2,46,5],[45,6,46,7],[45,14,45,16],[45,18,45,21],[46,8,46,9],[46,10,46,15],[46,16,46,17],[46,18,46,21],[46,22,46,25],[45,38,45,39],[45,40,45,41],[45,42,45,43],[45,8,45,12],[59,0,59,45],[53,6,53,8],[50,42,50,43],[50,44,50,45],[51,42,51,43],[51,44,51,45],[56,0,56,45],[57,0,57,45],[58,0,58,45],[50,38,50,39],[50,40,50,41],[51,0,53,5],[51,6,51,14],[51,15,51,19],[51,20,51,27],[51,28,51,29],[51,30,51,32],[51,34,51,37],[51,38,51,41],[52,9,52,14],[52,15,52,16],[52,17,52,37],[52,38,52,41],[52,6,52,8],[45,44,45,45],[46,26,46,27],[45,26,45,27],[45,28,45,29],[45,30,45,31],[45,32,45,33],[45,34,45,35],[45,36,45,37],[49,42,49,43],[49,44,49,45],[48,38,48,45],[49,38,49,41],[34,20,34,26],[34,27,34,33],[29,2,29,11],[29,12,29,15],[29,18,29,19],[29,20,29,26],[29,27,29,29],[29,30,29,37],[32,11,32,19],[32,20,32,26],[34,11,34,19],[34,34,34,36],[34,37,34,38],[14,14,14,25],[21,32,21,33],[22,32,22,33],[27,27,27,28],[27,29,27,30],[24,29,24,30],[15,24,15,26],[15,21,15,23],[15,8,15,20],[23,30,23,37],[22,29,22,30],[20,30,20,37],[20,12,20,15],[21,14,21,15],[21,16,21,17],[21,12,21,13],[21,27,21,28],[21,29,21,30],[20,16,20,17],[40,32,40,33],[40,34,40,35],[40,36,40,37],[37,6,37,21],[37,22,37,37],[15,0,15,7],[14,0,14,5],[14,6,14,12],[14,26,14,44],[15,44,15,45],[15,41,15,43],[15,30,15,40],[15,27,15,28],[34,40,34,41],[34,43,34,44],[35,2,35,10],[35,11,35,19],[35,20,35,26],[35,27,35,33],[35,34,35,36],[35,37,35,38],[35,40,35,41],[35,43,35,44],[34,2,34,10]]}
["【業協会 変更様式②】",null,null,null,null,null,null,null,null,"R４",null,null,".",3,null,null,null,null,null,null,null,null,null,null,null,null,null,null,null,null,"[",{"$f":"変更入力シート!AD3","v":0},null,null,null,"支部",null,null,{"$f":"変更入力シート!AN3","v":0},null,null,null,"地区",null,null,"]"]
[]
[null,"従　業　者",null,null,null,null,null,null,null,null,null,null,null,null,null,"変　　更　　届"]
[]
["(公社)静岡県宅地建物取引業協会 会長",null,null,null,null,null,null,null,null,null,null,null,null,null,null,null,null,null,"殿",null,null,null,null,null,null,"［","提出日",null,null,null,"]",{"$f":"変更入力シート!I3","v":"令和"},null,null,{"$f":"変更入力シート!N3","v":0},null,"年",null,{"$f":"変更入力シート!R3","v":0},null,"月",null,{"$f":"変更入力シート!V3","v":0},null,"日"]
[]
[null,null,null,null,null,null,null,null,null,null,null,null,null,null,null,null,null,null,null,null,null,"(届出者）",null,null,null,"免許番号",null,null,null,{"$f":"変更入力シート!Q10","v":0},null,null,null,"(",{"$f":"変更入力シート!W10","v":0},null,")","第",null,{"$f":"変更入力シート!AB10","v":0},null,null,null,null,"号"]
[null,null,null,null,null,null,null,null,null,null,null,null,null,null,null,null,null,null,null,null,null,null,null,null,null,null,null,null,null,{"$f":"変更入力シート!Q9","v":0}]
[null,null,null,null,null,null,null,null,null,null,null,null,null,null,null,null,null,null,null,null,null,"商号又は名称(本店)"]
[null,null,null,null,null,null,null,null,null,null,null,null,null,null,null,null,null,null,null,null,null,null,null,null,null,null,null,null,null,{"$f":"変更入力シート!AY11","v":0},null,null,null,null,null,{"$f":"変更入力シート!Q11","v":0}]
[null,null,null,null,null,null,null,null,null,null,null,null,null,null,null,null,null,null,null,null,null,"代表者氏名(本店)"]
[]
["　この度、下記事項について変更が生じましたので、宅建協会「定款施行細則第５条」の規定により届け出ます。"]
[]
["変更対象",null,null,null,null,null,{"$f":"変更入力シート!Q12","v":0},null,null,null,null,null,null,"(","準会員の場合、支店等名称：",null,null,null,null,null,null,null,null,null,null,null,{"$f":"変更入力シート!AH12","v":0},null,null,null,null,null,null,null,null,null,null,null,null,null,null,null,null,null,null,")"]
["変更後の事務所内の",null,null,null,null,null,null,null,"宅地建物取引業に従事する者の",null,null,null,null,null,null,null,null,null,null,null,null,"総数",null,null,{"$f":"変更入力シート!AE16","v":0},null,null,"名",null,"、","うち 専任の宅地建物取引士",null,null,null,null,null,null,null,null,null,null,{"$f":"変更入力シート!BA16","v":0},null,null,"名"]
[]
["新たに従事する者",null,"フリガナ",null,null,null,null,null,null,null,null,null,"生年月日",null,null,null,null,null,null,null,"主たる職務",null,null,null,null,null,null,"有・無",null,null,"専任か否か",null,null,null,null,null,null,null,"従事した日"]
[null,null,"氏名",null,null,null,null,null,null,null,null,null,null,null,null,null,null,null,null,null,"取引士資格",null,null,null,null,null,null,"取引士登録日(和暦)"]
[null,null,"従業者証明番号",null,null,null,null,null,null,null,null,null,"性別",null,null,null,null,null,null,null,null,null,null,null,null,null,null,"取引士有効期限(和暦)"]
[null,null,{"$f":"変更入力シート!W107","v":0},null,null,null,null,null,null,null,null,null,{"$f":"変更入力シート!T109","v":0},null,null,null,{"$f":"変更入力シート!W109","v":0},null,"年",null,{"$f":"変更入力シート!AZ107","v":0},null,null,null,null,null,null,{"$f":"変更入力シート!W110","v":0},null,null,{"$f":"変更入力シート!BD110","v":0}]
[null,null,{"$f":"変更入力シート!Q108","v":0},null,null,null,null,null,null,null,null,null,{"$f":"変更入力シート!AA109","v":0},null,"月",null,{"$f":"変更入力シート!AF109","v":0},null,"日",null,"(",{"$f":"変更入力シート!AI110","v":0},null,null,null,null,")",{"$f":"変更入力シート!W111","v":0},null,{"$f":"変更入力シート!Y111","v":0},null,"年",{"$f":"変更入力シート!AC111","v":0},null,"月",{"$f":"変更入力シート!AG111","v":0},null,"日",{"$f":"変更入力シート!Q106","v":"令和"},null,null,null,{"$f":"変更入力シート!V106","v":0},null,"年"]
[null,null,{"$f":"変更入力シート!AN107","v":0},null,null,null,null,null,null,null,null,null,{"$f":"変更入力シート!AZ109","v":0},null,null,null,null,null,null,null,"第",null,{"$f":"変更入力シート!AR110","v":0},null,null,"号",null,{"$f":"変更入力シート!AS111","v":0},null,{"$f":"変更入力シート!AU111","v":0},null,"年",{"$f":"変更入力シート!AY111","v":0},null,"月",{"$f":"変更入力シート!BC111","v":0},null,"日",{"$f":"変更入力シート!Z106","v":0},null,"月",null,{"$f":"変更入力シート!AD106","v":0},null,"日"]
[null,null,{"$f":"変更入力シート!W113","v":0},null,null,null,null,null,null,null,null,null,{"$f":"変更入力シート!T115","v":0},null,null,null,{"$f":"変更入力シート!W115","v":0},null,"年",null,{"$f":"変更入力シート!AZ113","v":0},null,null,null,null,null,null,{"$f":"変更入力シート!W116","v":0},null,null,{"$f":"変更入力シート!BD116","v":0}]
[null,null,{"$f":"変更入力シート!Q114","v":0},null,null,null,null,null,null,null,null,null,{"$f":"変更入力シート!AA115","v":0},null,"月",null,{"$f":"変更入力シート!AF115","v":0},null,"日",null,"(",{"$f":"変更入力シート!AI116","v":0},null,null,null,null,")",{"$f":"変更入力シート!W117","v":0},null,{"$f":"変更入力シート!Y117","v":0},null,"年",{"$f":"変更入力シート!AC117","v":0},null,"月",{"$f":"変更入力シート!AG117","v":0},null,"日",{"$f":"変更入力シート!Q112","v":"令和"},null,null,null,{"$f":"変更入力シート!V112","v":0},null,"年"]
[null,null,{"$f":"変更入力シート!AN113","v":0},null,null,null,null,null,null,null,null,null,{"$f":"変更入力シート!AZ115","v":0},null,null,null,null,null,null,null,"第",null,{"$f":"変更入力シート!AR116","v":0},null,null,"号",null,{"$f":"変更入力シート!AS117","v":0},null,{"$f":"変更入力シート!AU117","v":0},null,"年",{"$f":"変更入力シート!AY117","v":0},null,"月",{"$f":"変更入力シート!BC117","v":0},null,"日",{"$f":"変更入力シート!Z112","v":0},null,"月",null,{"$f":"変更入力シート!AD112","v":0},null,"日"]
[null,null,{"$f":"変更入力シート!W119","v":0},null,null,null,null,null,null,null,null,null,{"$f":"変更入力シート!T121","v":0},null,null,null,{"$f":"変更入力シート!W121","v":0},null,"年",null,{"$f":"変更入力シート!AZ119","v":0},null,null,null,null,null,null,{"$f":"変更入力シート!W122","v":0},null,null,{"$f":"変更入力シート!BD122","v":0}]
[null,null,{"$f":"変更入力シート!Q120","v":0},null,null,null,null,null,null,null,null,null,{"$f":"変更入力シート!AA121","v":0},null,"月",null,{"$f":"変更入力シート!AF121","v":0},null,"日",null,"(",{"$f":"変更入力シート!AI122","v":0},null,null,null,null,")",{"$f":"変更入力シート!W123","v":0},null,{"$f":"変更入力シート!Y123","v":0},null,"年",{"$f":"変更入力シート!AC123","v":0},null,"月",{"$f":"変更入力シート!AG123","v":0},null,"日",{"$f":"変更入力シート!Q118","v":"令和"},null,null,null,{"$f":"変更入力シート!V118","v":0},null,"年"]
[null,null,{"$f":"変更入力シート!AN119","v":0},null,null,null,null,null,null,null,null,null,{"$f":"変更入力シート!AZ121","v":0},null,null,null,null,null,null,null,"第",null,{"$f":"変更入力シート!AR122","v":0},null,null,"号",null,{"$f":"変更入力シート!AS123","v":0},null,{"$f":"変更入力シート!AU123","v":0},null,"年",{"$f":"変更入力シート!AY123","v":0},null,"月",{"$f":"変更入力シート!BC123","v":0},null,"日",{"$f":"変更入力シート!Z118","v":0},null,"月",null,{"$f":"変更入力シート!AD118","v":0},null,"日"]
[null,null,{"$f":"変更入力シート!W125","v":0},null,null,null,null,null,null,null,null,null,{"$f":"変更入力シート!T127","v":0},null,null,null,{"$f":"変更入力シート!W127","v":0},null,"年",null,{"$f":"変更入力シート!AZ125","v":0},null,null,null,null,null,null,{"$f":"変更入力シート!W128","v":0},null,null,{"$f":"変更入力シート!BD128","v":0}]
[null,null,{"$f":"変更入力シート!Q126","v":0},null,null,null,null,null,null,null,null,null,{"$f":"変更入力シート!AA127","v":0},null,"月",null,{"$f":"変更入力シート!AF127","v":0},null,"日",null,"(",{"$f":"変更入力シート!AI128","v":0},null,null,null,null,")",{"$f":"変更入力シート!W129","v":0},null,{"$f":"変更入力シート!Y129","v":0},null,"年",{"$f":"変更入力シート!AC129","v":0},null,"月",{"$f":"変更入力シート!AG129","v":0},null,"日",{"$f":"変更入力シート!Q124","v":"令和"},null,null,null,{"$f":"変更入力シート!V124","v":0},null,"年"]
[null,null,{"$f":"変更入力シート!AN125","v":0},null,null,null,null,null,null,null,null,null,{"$f":"変更入力シート!AZ127","v":0},null,null,null,null,null,null,null,"第",null,{"$f":"変更入力シート!AR128","v":0},null,null,"号",null,{"$f":"変更入力シート!AS129","v":0},null,{"$f":"変更入力シート!AU129","v":0},null,"年",{"$f":"変更入力シート!AY129","v":0},null,"月",{"$f":"変更入力シート!BC129","v":0},null,"日",{"$f":"変更入力シート!Z124","v":0},null,"月",null,{"$f":"変更入力シート!AD124","v":0},null,"日"]
["従事しなくなった者",null,"氏名",null,null,null,null,null,null,null,null,"フリガナ",null,null,null,null,null,null,null,null,"従業者番号",null,null,null,null,null,null,"職務",null,null,null,null,null,null,"従事しなくなった日"]
[null,null,{"$f":"変更入力シート!Q133","v":0},null,null,null,null,null,null,null,null,{"$f":"変更入力シート!W132","v":0},null,null,null,null,null,null,null,null,{"$f":"変更入力シート!AN132","v":0},null,null,null,null,null,null,{"$f":"変更入力シート!AY132","v":0},null,null,null,null,null,null,{"$f":"変更入力シート!Q131","v":"令和"},null,null,{"$f":"変更入力シート!V131","v":0},null,"年",{"$f":"変更入力シート!Z131","v":0},null,"月",{"$f":"変更入力シート!AD131","v":0},null,"日"]
[null,null,{"$f":"変更入力シート!Q136","v":0},null,null,null,null,null,null,null,null,{"$f":"変更入力シート!W135","v":0},null,null,null,null,null,null,null,null,{"$f":"変更入力シート!AN135","v":0},null,null,null,null,null,null,{"$f":"変更入力シート!AY135","v":0},null,null,null,null,null,null,{"$f":"変更入力シート!Q134","v":"令和"},null,null,{"$f":"変更入力シート!V134","v":0},null,"年",{"$f":"変更入力シート!Z134","v":0},null,"月",{"$f":"変更入力シート!AD134","v":0},null,"日"]
[null,null,{"$f":"変更入力シート!Q139","v":0},null,null,null,null,null,null,null,null,{"$f":"変更入力シート!W138","v":0},null,null,null,null,null,null,null,null,{"$f":"変更入力シート!AN138","v":0},null,null,null,null,null,null,{"$f":"変更入力シート!AY138","v":0},null,null,null,null,null,null,{"$f":"変更入力シート!Q137","v":"令和"},null,null,{"$f":"変更入力シート!V137","v":0},null,"年",{"$f":"変更入力シート!Z137","v":0},null,"月",{"$f":"変更入力シート!AD137","v":0},null,"日"]
[]
["筆頭以外の専任取引士変更",null,null,null,null,null,"変更前",null,null,null,null,null,null,null,null,null,null,null,null,null,null,null,"変更後"]
[null,null,"氏名",null,null,null,"(ﾌﾘｶﾞﾅ)",null,null,null,{"$f":"変更入力シート!W78","v":0},null,null,null,null,null,null,null,null,null,null,null,"(ﾌﾘｶﾞﾅ)",null,null,null,{"$f":"変更入力シート!W81","v":0}]
[null,null,null,null,null,null,{"$f":"変更入力シート!Q79","v":0},null,null,null,null,null,null,null,null,null,null,"性別",null,{"$f":"変更入力シート!AO80","v":0},null,null,{"$f":"変更入力シート!Q82","v":0},null,null,null,null,null,null,null,null,null,null,"性別",null,{"$f":"変更入力シート!Q88","v":0},null,null,"(従事しなくなった日)"]
[null,null,"生年月日",null,null,null,{"$f":"変更入力シート!T80","v":0},null,null,null,{"$f":"変更入力シート!W80","v":0},null,"年",null,{"$f":"変更入力シート!AA80","v":0},null,"月",null,{"$f":"変更入力シート!AF80","v":0},null,"日",null,{"$f":"変更入力シート!T83","v":0},null,null,null,{"$f":"変更入力シート!W83","v":0},null,"年",null,{"$f":"変更入力シート!AA83","v":0},null,"月",null,{"$f":"変更入力シート!AF83","v":0},null,"日",null,"令和",null,null,null,{"$f":"変更入力シート!V77","v":0},null,"年"]
[null,null,"現住所\n(自宅)",null,null,null,null,null,null,null,null,null,null,null,null,null,null,null,null,null,null,null,"〒",null,{"$f":"変更入力シート!Q84","v":0},null,null,"-",{"$f":"変更入力シート!V84","v":0},null,null,null,null,null,null,null,null,null,{"$f":"変更入力シート!Z77","v":0},null,"月",null,{"$f":"変更入力シート!AD77","v":0},null,"日"]
[null,null,null,null,null,null,null,null,null,null,null,null,null,null,null,null,null,null,null,null,null,null,{"$f":"変更入力シート!Q85","v":0}]
[null,null,"電話",null,null,null,null,null,null,null,null,null,null,null,null,null,null,null,null,null,null,null,"TEL",null,null,"(",{"$f":"変更入力シート!Q86","v":0},null,null,")",{"$f":"変更入力シート!V86","v":0},null,null,"-",{"$f":"変更入力シート!AA86","v":0},null,null,null,"(従事した日)"]
[null,null,null,null,null,null,null,null,null,null,null,null,null,null,null,null,null,null,null,null,null,null,"携帯",null,null,"(",{"$f":"変更入力シート!Q87","v":0},null,null,")",{"$f":"変更入力シート!V87","v":0},null,null,"-",{"$f":"変更入力シート!AA87","v":0},null,null,null,"令和",null,null,null,{"$f":"変更入力シート!AW77","v":0},null,"年"]
[null,null,"取引士\n登録",null,null,null,{"$f":"変更入力シート!W89","v":0},null,"登録番号",null,null,null,null,"(",{"$f":"変更入力シート!AI89","v":0},null,null,")","登録日",null,null,null,{"$f":"変更入力シート!W90","v":0},null,null,null,{"$f":"変更入力シート!Y90","v":0},null,"年",null,{"$f":"変更入力シート!AC90","v":0},null,"月",null,{"$f":"変更入力シート!AG90","v":0},null,"日",null,{"$f":"変更入力シート!BA77","v":0},null,"月",null,{"$f":"変更入力シート!BE77","v":0},null,"日"]
[null,null,null,null,null,null,null,null,"第",null,{"$f":"変更入力シート!AR89","v":0},null,null,null,null,null,"号",null,"有効期限",null,null,null,{"$f":"変更入力シート!AS90","v":0},null,null,null,{"$f":"変更入力シート!AU90","v":0},null,"年",null,{"$f":"変更入力シート!AY90","v":0},null,"月",null,{"$f":"変更入力シート!BC90","v":0},null,"日"]
[]
["変更事項",null,null,null,null,null,"変更前",null,null,null,null,null,null,null,null,null,null,null,null,"変更後",null,null,null,null,null,null,null,null,null,null,null,null,null,null,null,null,null,null,"変更日"]
["氏名",null,null,null,null,null,"(ﾌﾘｶﾞﾅ)",null,null,null,{"$f":"変更入力シート!W101","v":0},null,null,null,null,null,null,null,null,"(ﾌﾘｶﾞﾅ)",null,null,null,{"$f":"変更入力シート!W103","v":0},null,null,null,null,null,null,null,null,null,null,null,null,null,null,"令和",null,null,null,{"$f":"変更入力シート!V100","v":0},null,"年"]
[null,null,null,null,null,null,{"$f":"変更入力シート!Q102","v":0},null,null,null,null,null,null,null,null,null,null,null,null,{"$f":"変更入力シート!Q104","v":0},null,null,null,null,null,null,null,null,null,null,null,null,null,null,null,null,null,null,{"$f":"変更入力シート!Z100","v":0},null,"月",null,{"$f":"変更入力シート!AD100","v":0},null,"日"]
["代表者・専任\n住所",null,null,null,null,null,"※変更後のみ入力",null,null,null,null,null,null,null,null,"対象者氏名",null,null,null,null,{"$f":"変更入力シート!Q94","v":0},null,null,null,null,null,null,null,"〒",null,{"$f":"変更入力シート!Q95","v":0},null,null,"-",{"$f":"変更入力シート!V95","v":0}]
[null,null,null,null,null,null,"対象者",null,null,{"$f":"変更入力シート!AT94","v":0},null,null,null,null,null,"住所",null,{"$f":"変更入力シート!Q96","v":0},null,null,null,null,null,null,null,null,null,null,null,null,null,null,null,null,null,null,null,null,"令和",null,null,null,{"$f":"変更入力シート!V93","v":0},null,"年"]
[null,null,null,null,null,null,"TEL",null,null,{"$f":"変更入力シート!Q97","v":0},null,null,"-",{"$f":"変更入力シート!V97","v":0},null,null,null,"-",{"$f":"変更入力シート!AA97","v":0},null,null,null,"携帯",null,null,{"$f":"変更入力シート!Q98","v":0},null,null,"-",{"$f":"変更入力シート!V98","v":0},null,null,null,"-",{"$f":"変更入力シート!AA98","v":0},null,null,null,{"$f":"変更入力シート!Z93","v":0},null,"月",null,{"$f":"変更入力シート!AD93","v":0},null,"日"]
[]
["支部処理欄",null,null,null,null,null,"処理日",null,null,"令和",null,null,null,"年",null,null,"月",null,null,"日","入力",null,null,null,null,null,null,null,null,null,"本店所属支部へのFAX",null,null,null,null,null,null,null,null,null,null,null,"←速やかに"]
["　➀ この変更届の提出部数は、１枚（支部保管）です。この変更届に変更後の「従業者名簿１枚」を添付してください。"]
["　② 準会員（支店等）に係る変更を行った場合の届出者は正会員（本店）ですが、提出先は準会員（支店等）が所属する支部です。"]
["　③ 代表者・業協会名簿記載の専任取引士の変更については、この変更届とともに「会員名簿登載事項変更届」を提出してください。"]
["　④ 宅建業法で定められた「変更届出書」も所管の県土木事務所（建築住宅課）に提出してください。"]

{"sheet":"【3】入会誓約書","index":6,"n_rows":45,"n_cols":41,"rows_kept":45,"cut":false,"hidden":false,"merged":[[10,27,10,37],[10,38,10,40],[41,38,41,40],[42,27,42,31],[42,32,42,40],[0,15,0,16],[40,25,42,26],[40,27,40,31],[40,32,40,33],[40,34,40,35],[41,27,41,31],[41,32,41,37],[9,21,9,40],[10,11,10,20],[10,21,10,26],[36,0,38,41],[8,11,8,15],[0,28,0,31],[0,32,0,33],[0,34,0,37],[0,38,0,39],[1,43,2,43],[2,0,2,40],[4,37,4,38],[8,16,8,21],[8,23,8,25],[8,27,8,28],[8,29,8,32],[8,33,8,34],[4,23,4,26],[4,28,4,30],[4,31,4,32],[4,34,4,35]]}
["【業協会　入会様式②】",null,null,null,null,null,null,null,null,null,null,null,"R",4,".",3,null,null,null,null,null,null,null,null,null,null,null,"[",{"$f":"変更入力シート!AD3","v":0},null,null,null,"支部",null,{"$f":"変更入力シート!AN3","v":0},null,null,null,"地区",null,"]"]
[]
["入　会　誓　約　書"]
[]
[null,null,null,null,null,null,null,null,null,null,null,null,null,null,null,null,null,null,null,null,null,null,"[","提出日",null,null,null,"]","令和",null,null,{"$f":"変更入力シート!N3","v":0},null,"年",{"$f":"変更入力シート!R3","v":0},null,"月",{"$f":"変更入力シート!V3","v":0},null,"日"]
["(公社)静岡県宅地建物取引業協会 会長",null,null,null,null,null,null,null,null,null,null,null,null,null,null,null,null,null,"殿"]
[]
[null,null,null,null,null,null,null,null,null,null,"【申込者】"]
[null,null,null,null,null,null,null,null,null,null,null,"免許番号",null,null,null,null,{"$f":"変更入力シート!Q10","v":0},null,null,null,null,null,"（",{"$f":"変更入力シート!W10","v":0},null,null,"）","第",null,{"$f":"変更入力シート!AB10","v":0},null,null,null,"号"]
[null,null,null,null,null,null,null,null,null,null,null,"商号又は名称（本店）",null,null,null,null,null,null,null,null,null,{"$f":"変更入力シート!Q9","v":0}]
[null,null,null,null,null,null,null,null,null,null,null,"代表者氏名（本店）",null,null,null,null,null,null,null,null,null,{"$f":"変更入力シート!AY11","v":0},null,null,null,null,null,{"$f":"変更入力シート!Q11","v":0},null,null,null,null,null,null,null,null,null,null,"㊞"]
[]
["私（当社）は、貴会への入会を承認された場合は、次の事項を遵守します。"]
[]
[null,null,"１．宅地建物取引業法及び関連法規について一切違反しないこと。"]
[]
[null,null,"２．協会の定款及び諸規程を順守すること。"]
[]
[null,null,"３．取引に関し信義誠実にその業務を行うこと。"]
[]
[null,null,"４．免許のない者との取引は行わないこと。"]
[]
[null,null,"５．取引に係る苦情紛争を生じさせたときは協会の解決指導に従うこと。"]
[]
[null,null,"６．協会組織の団結と融和を乱す行為をしないこと。"]
[]
[null,null,"７．協会の諸事業に積極的に参加すること。"]
[]
[null,null,"８．協会の「初級実務研修会」に出席すること。"]
[]
[null,null,"９．全宅連 通信教育「不動産キャリアパーソン講座」を受講すること。"]
[]
[null,null,"１０．国土交通大臣 指定流通機構に加入すること。"]
[]
[null,null,"１１．入会時等の届出内容に変更が生じた場合、30日以内に協会支部に変更届を提出すること。"]
[]
["　上記事項に違反し退会勧告もしくは除名処分を受けたときは、これに従います。\n　また協会と表裏一体の組織である（公社）全国宅地建物取引業保証協会の会員資格について“喪失”の取り扱いを受けても、何等異議申し立ては致しません。"]
[]
[]
[]
[null,null,null,null,null,null,null,null,null,null,null,null,null,null,null,null,null,null,null,null,null,null,null,null,null,"支部\n処理欄",null,"入会承認日",null,null,null,null,"令和",null,null,null,"年",null,"月",null,"日"]
[null,null,null,null,null,null,null,null,null,null,null,null,null,null,null,null,null,null,null,null,null,null,null,null,null,null,null,"所属",null,null,null,null,{"$f":"変更入力シート!AD3","v":0},null,null,null,null,null,"支部"]
[null,null,null,null,null,null,null,null,null,null,null,null,null,null,null,null,null,null,null,null,null,null,null,null,null,null,null,"支部長"]
["（注）  ①この誓約書の提出部数は１部です。"]
[null,null,null,"②支部は入会承認後、支部処理欄を記載したコピーを入会申込者に交付する。（本書は支部保管)"]

{"sheet":"【4】個人情報","index":7,"n_rows":74,"n_cols":42,"rows_kept":74,"cut":false,"hidden":false,"merged":[[32,24,33,39],[35,24,36,31],[35,32,36,39],[40,0,40,41],[72,20,72,37],[0,15,0,16],[3,64,5,66],[7,0,7,41],[24,26,24,28],[24,29,24,30],[24,31,24,32],[24,33,24,34],[24,35,24,36],[24,37,24,38],[24,39,24,40],[0,29,0,32],[0,33,0,34],[0,35,0,38],[0,39,0,40],[1,43,2,43],[2,0,2,41]]}
["【業協会　入会様式④　】",null,null,null,null,null,null,null,null,null,null,null,"R",3,".",6,null,null,null,null,null,null,null,null,null,null,null,null,"[",{"$f":"変更入力シート!AD3","v":0},null,null,null,"支部",null,{"$f":"変更入力シート!AN3","v":0},null,null,null,"地区",null,"]"]
[]
["個人情報の利用目的及び承諾について"]
[]
[null,"ご提供いただいた「個人情報」「会員情報」の取扱いについては、下記の通り使用・"]
["利用させていただきます。"]
[]
["記"]
[]
["１．個人情報"]
[null,null,"（1） 法定・法令研修会のご案内に際して、希に使用する場合があります。"]
[null,null,"（2） 保証協会の弁済業務保証金分担金の返還等に際して、使用する場合が"]
[null,null,null,null,null,"あります。"]
[null,null,"（3） その他、法律・法令による場合、公的機関等に提供する場合があります。"]
[]
["２．会員情報（商号・連絡先・代表者・宅地建物取引士）"]
[null,null,"（1） 協会から貴社への連絡の際に利用します。"]
[null,null,"（2）［会員情報を］協会のホームページに掲載します。"]
[null,null,"（3）［会員情報を］会員名簿に掲載します。"]
[null,null,"（4）［会員情報を］書籍販売の案内につき、出版者に提供する場合があります。"]
[null,null,"（5） その他、会員に有益と認められる場合に利用します。"]
[]
[]
[]
[null,null,null,null,null,null,null,null,null,null,null,null,null,null,null,null,null,null,null,null,null,null,null,null,null,null,"令和",null,null,{"$f":"変更入力シート!N3","v":0},null,"年",null,{"$f":"変更入力シート!R3","v":0},null,"月",null,{"$f":"変更入力シート!V3","v":0},null,"日"]
[]
["(公社)静岡県宅地建物取引業協会々長　殿"]
[]
[]
[null,null,"私(当社)が提供した個人情報及び会員情報の上記使用・利用について承諾します。"]
[]
[null,null,null,null,null,null,null,null,null,null,null,null,null,null,null,null,"［承諾者］"]
[null,null,null,null,null,null,null,null,null,null,null,null,null,null,null,null,null,null,null,null,null,null,null,null,{"$f":"変更入力シート!Q9","v":0}]
[null,null,null,null,null,null,null,null,null,null,null,null,null,null,null,null,null,"商号又は名称"]
[]
[null,null,null,null,null,null,null,null,null,null,null,null,null,null,null,null,null,null,null,null,null,null,null,null,{"$f":"変更入力シート!AY11","v":0},null,null,null,null,null,null,null,{"$f":"変更入力シート!Q11","v":0}]
[null,null,null,null,null,null,null,null,null,null,null,null,null,null,null,null,null,"代表者氏名"]
[]
[]
[]
["個人情報保護方針"]
[]
[]
[null,null,null,"公益社団法人静岡県宅地建物取引業協会（以下「協会」という。）は、高度"]
[null,null,"情報通信社会における個人情報保護の重要性を認識し、以下の方針に基づき会"]
[null,null,"員等の個人情報の保護に努めます。"]
[]
[null,null,"１. 協会は、個人情報を適正かつ公正な手段によって取得し、その利用目的、"]
[null,null,null,"第三者提供する場合のその項目等を通知または公表等によってお知らせいた"]
[null,null,null,"します。"]
[]
[null,null,"２. 協会は、提供された個人情報について、取得の際に示した利用目的の範囲"]
[null,null,null,"内で必要な限りにおいて利用します。"]
[]
[null,null,"３. 協会は、取得した個人情報について、適切な安全管理措置を講じることに"]
[null,null,null,"より、個人情報の漏えい、滅失、き損および個人情報へのアクセス等を防止"]
[null,null,null,"することに努めます。"]
[]
[null,null,"４. 協会は、提供された個人情報について、法令に定める場合や会員にとって"]
[null,null,null,"有益な場合など正当な理由のあるときを除き、本人の同意を得ることなく、"]
[null,null,null,"第三者に提供・開示することはいたしません。また、個人情報を業務委託に"]
[null,null,null,"より提供する場合は、個人情報を漏えい、滅失、き損等しないよう、委託先"]
[null,null,null,"に対する必要かつ適切な監督を行います。"]
[]
[null,null,"５. 協会は、提供された個人情報について、本人が確認、訂正等を希望される"]
[null,null,null,"場合は、合理的な範囲で対応いたします。"]
[]
[null,null,"６. 協会は、個人情報の保護に関係する法令その他の規範を遵守するとともに、"]
[null,null,null,"本方針の内容を継続的に見直し、その改善に努めます。"]
[]
[null,null,null,null,null,null,null,null,null,null,null,null,null,null,null,null,null,null,null,null,null,null,null,null,null,null,null,null,null,null,null,null,null,null,null,null,"以　上"]
[]
[null,null,null,null,null,null,null,null,null,null,null,null,null,null,null,null,null,null,null,null,"2012-10-01"]
[null,null,null,null,null,null,null,null,null,null,null,null,null,null,null,null,null,null,null,null,"公益社団法人 静岡県宅地建物取引業協会"]

{"sheet":"【5】保証協会変更届","index":8,"n_rows":43,"n_cols":47,"rows_kept":43,"cut":false,"hidden":false,"merged":[[38,1,42,8],[13,17,13,23],[40,32,40,33],[42,13,42,19],[42,23,42,27],[42,29,42,33],[42,35,42,43],[42,44,42,46],[35,33,35,35],[35,36,35,37],[35,38,35,40],[35,41,35,42],[35,43,35,46],[40,20,40,23],[40,24,40,25],[40,28,40,29],[40,26,40,27],[40,30,40,31],[34,33,34,35],[34,36,34,37],[34,38,34,40],[34,41,34,42],[34,43,34,46],[35,9,35,11],[32,33,32,34],[32,35,32,38],[33,9,33,27],[33,28,33,46],[34,9,34,11],[34,14,34,16],[34,17,34,18],[34,19,34,21],[34,22,34,23],[32,1,35,8],[32,9,32,10],[32,11,32,13],[32,14,32,15],[32,16,32,19],[32,28,32,29],[34,24,34,27],[34,28,34,30],[35,24,35,27],[35,28,35,30],[35,14,35,16],[35,17,35,18],[35,19,35,21],[35,22,35,23],[32,30,32,32],[29,33,29,35],[29,36,29,37],[29,38,29,40],[29,41,29,42],[29,43,29,46],[30,1,31,8],[30,9,31,27],[30,28,31,46],[26,30,26,32],[26,33,26,34],[26,35,26,38],[27,28,27,46],[28,28,28,30],[28,33,28,35],[28,36,28,37],[28,38,28,40],[28,41,28,42],[28,43,28,46],[29,14,29,16],[29,17,29,18],[29,19,29,21],[29,22,29,23],[29,24,29,27],[26,28,26,29],[29,28,29,30],[28,14,28,16],[28,17,28,18],[28,19,28,21],[28,22,28,23],[28,24,28,27],[26,1,29,8],[26,9,26,10],[26,11,26,13],[26,14,26,15],[26,16,26,19],[27,9,27,27],[28,9,28,11],[29,9,29,11],[23,9,23,12],[23,13,23,27],[23,28,23,31],[23,32,23,46],[24,9,24,27],[24,28,24,46],[23,1,25,8],[25,9,25,11],[25,12,25,13],[25,31,25,32],[25,33,25,34],[25,35,25,36],[25,37,25,38],[25,39,25,40],[25,41,25,42],[25,14,25,15],[25,16,25,17],[25,18,25,19],[25,20,25,21],[25,22,25,23],[25,28,25,30],[25,43,25,44],[25,45,25,46],[25,24,25,25],[20,43,20,46],[21,1,22,8],[21,9,21,12],[21,13,21,27],[22,9,22,27],[21,28,21,31],[21,32,21,46],[22,28,22,46],[19,39,19,40],[19,41,19,42],[19,43,19,46],[20,28,20,30],[20,31,20,32],[20,33,20,34],[20,35,20,36],[20,37,20,38],[20,39,20,40],[20,41,20,42],[20,24,20,27],[19,28,19,30],[19,31,19,32],[19,33,19,34],[19,35,19,36],[19,37,19,38],[19,1,20,8],[19,9,19,11],[19,12,19,13],[19,14,19,15],[19,16,19,17],[19,18,19,19],[18,28,18,30],[18,31,18,33],[18,35,18,36],[19,20,19,21],[19,22,19,23],[19,24,19,27],[20,9,20,11],[20,12,20,13],[20,14,20,15],[20,16,20,17],[20,18,20,19],[20,20,20,21],[20,22,20,23],[18,38,18,39],[18,40,18,44],[18,45,18,46],[18,1,18,8],[18,26,18,27],[18,21,18,25],[18,19,18,20],[18,16,18,17],[18,12,18,14],[18,9,18,11],[17,9,17,27],[17,28,17,46],[14,17,14,23],[15,17,15,23],[13,40,13,44],[13,35,13,36],[14,25,14,46],[13,45,13,46],[13,25,13,29],[13,30,13,33],[13,38,13,39],[15,25,15,32],[15,33,15,46],[25,26,25,27],[2,30,2,35],[2,41,2,42],[2,44,2,45],[2,36,2,37],[2,38,2,39],[0,30,0,35],[0,36,0,44],[0,45,0,46],[1,30,1,35],[1,36,1,46],[4,1,5,46],[7,1,7,46],[9,1,9,46],[10,1,10,46],[12,3,12,5],[12,6,12,7],[12,9,12,10],[12,12,12,13],[12,22,12,25],[14,1,14,6],[15,1,15,6],[15,8,15,14],[17,1,17,8]]}
[null,null,null,null,null,null,null,null,null,null,null,null,null,null,null,null,null,null,null,null,null,null,null,null,null,null,null,null,null,null,"地方本部名",null,null,null,null,null,"静岡",null,null,null,null,null,null,null,null,"本部"]
[null,null,null,null,null,null,null,null,null,null,null,null,null,null,null,null,null,null,null,null,null,null,null,null,null,null,null,null,null,null,"番　　　号"]
[null,null,null,null,null,null,null,null,null,null,null,null,null,null,null,null,null,null,null,null,null,null,null,null,null,null,null,null,null,null,"受　付　日",null,null,null,null,null,"令和",null,null,null,"年",null,null,"月",null,null,"日"]
[]
[null,"会員名簿登録事項変更届"]
[]
[]
[null,"　　公益社団法人　全国宅地建物取引業保証協会　会長　殿"]
[]
[null,"　　このほど、会員名簿の登録事項に変更がありましたので届出します。"]
[null,"　　なお、別掲の「本会会員の個人情報の取扱いについて」を承認します。"]
[]
[null,null,null,{"$f":"変更入力シート!I3","v":"令和"},null,null,{"$f":"変更入力シート!N3","v":0},null,"年",{"$f":"変更入力シート!R3","v":0},null,"月",{"$f":"変更入力シート!V3","v":0},null,"日"]
[null,null,null,null,null,null,null,null,null,null,null,null,null,null,null,null,null,"免許番号",null,null,null,null,null,null,"：",{"$f":"IF(AE14=\"知事\",\"静岡県\",\"\")","v":""},null,null,null,null,{"$f":"変更入力シート!Q10","v":0},null,null,null,"(",{"$f":"変更入力シート!W10","v":0},null,")","第",null,{"$f":"変更入力シート!AB10","v":0},null,null,null,null,"号"]
[null,null,null,null,null,null,null,null,null,null,null,null,null,null,null,null,null,"商号又は名称",null,null,null,null,null,null,"：",{"$f":"変更入力シート!Q9","v":0}]
[null,"事務所区分",null,null,null,null,null,"：",{"$f":"IF(変更入力シート!Q12=\"正会員\",\"主たる事務所\",IF(変更入力シート!Q12=\"準会員\",\"従たる事務所\",IF(変更入力シート!Q12=\"\",\"\")))","v":""},null,null,null,null,null,null,null,null,"代表者・氏名",null,null,null,null,null,null,"：",{"$f":"変更入力シート!AY11","v":0},null,null,null,null,null,null,null,{"$f":"変更入力シート!Q11","v":0}]
[]
[null,null,null,null,null,null,null,null,null,"変更前",null,null,null,null,null,null,null,null,null,null,null,null,null,null,null,null,null,null,"変更後"]
[null,"免許番号",null,null,null,null,null,null,null,{"$f":"IF(M19=変更入力シート!BL10,\"静岡県\",\"\")","v":""},null,null,null,null,null,"(",null,null,")","第",null,null,null,null,null,null,"号",null,{"$f":"IF(AF19=変更入力シート!BL10,\"静岡県\",\"\")","v":""},null,null,null,null,null,"(",null,null,")","第",null,null,null,null,null,null,"号"]
[null,"免許有効期間",null,null,null,null,null,null,null,null,null,null,null,null,"年",null,null,null,"月",null,null,null,"日",null,"から",null,null,null,null,null,null,null,null,"年",null,null,null,"月",null,null,null,"日",null,"から"]
[null,null,null,null,null,null,null,null,null,null,null,null,null,null,"年",null,null,null,"月",null,null,null,"日",null,"まで",null,null,null,null,null,null,null,null,"年",null,null,null,"月",null,null,null,"日",null,"まで"]
[null,"商号または名称",null,null,null,null,null,null,null,"ﾌﾘｶﾞﾅ",null,null,null,{"$f":"IF(変更入力シート!Q12=\"正会員\",変更入力シート!U27,\"\")","v":""},null,null,null,null,null,null,null,null,null,null,null,null,null,null,"ﾌﾘｶﾞﾅ",null,null,null,{"$f":"IF(変更入力シート!Q12=\"正会員\",変更入力シート!U29,\"\")","v":""}]
[null,null,null,null,null,null,null,null,null,{"$f":"IF(変更入力シート!Q12=\"正会員\",変更入力シート!Q28,\"\")","v":""},null,null,null,null,null,null,null,null,null,null,null,null,null,null,null,null,null,null,{"$f":"IF(変更入力シート!Q12=\"正会員\",変更入力シート!Q30,\"\")","v":""}]
[null,"代表者氏名\n\n生年月日",null,null,null,null,null,null,null,"ﾌﾘｶﾞﾅ",null,null,null,{"$f":"IF(変更入力シート!Q12=\"正会員\",変更入力シート!W48,\"\")","v":""},null,null,null,null,null,null,null,null,null,null,null,null,null,null,"ﾌﾘｶﾞﾅ",null,null,null,{"$f":"IF(変更入力シート!Q12=\"正会員\",変更入力シート!W51,\"\")","v":""}]
[null,null,null,null,null,null,null,null,null,{"$f":"IF(変更入力シート!Q12=\"正会員\",変更入力シート!Q49,\"\")","v":""},null,null,null,null,null,null,null,null,null,null,null,null,null,null,null,null,null,null,{"$f":"IF(変更入力シート!Q12=\"正会員\",変更入力シート!Q52,\"\")","v":""}]
[null,null,null,null,null,null,null,null,null,{"$f":"IF(変更入力シート!Q12=\"正会員\",変更入力シート!T50,\"\")","v":""},null,null,{"$f":"IF(変更入力シート!Q12=\"正会員\",変更入力シート!W50,\"\")","v":""},null,"年",null,{"$f":"IF(変更入力シート!Q12=\"正会員\",変更入力シート!AA50,\"\")","v":""},null,"月",null,{"$f":"IF(変更入力シート!Q12=\"正会員\",変更入力シート!AF50,\"\")","v":""},null,"日",null,"性別",null,{"$f":"変更入力シート!AO50","v":0},null,{"$f":"IF(変更入力シート!Q12=\"正会員\",変更入力シート!T53,\"\")","v":""},null,null,{"$f":"IF(変更入力シート!Q12=\"正会員\",変更入力シート!W53,\"\")","v":""},null,"年",null,{"$f":"IF(変更入力シート!Q12=\"正会員\",変更入力シート!AA53,\"\")","v":""},null,"月",null,{"$f":"IF(変更入力シート!Q12=\"正会員\",変更入力シート!AF53,\"\")","v":""},null,"日",null,"性別",null,{"$f":"変更入力シート!Q58","v":0}]
[null,"主たる事務所\n所在地",null,null,null,null,null,null,null,"〒",null,{"$f":"IF(変更入力シート!Q12=\"正会員\",変更入力シート!AA33,\"\")","v":""},null,null,"－",null,{"$f":"IF(変更入力シート!Q12=\"正会員\",変更入力シート!AF33,\"\")","v":""},null,null,null,null,null,null,null,null,null,null,null,"〒",null,{"$f":"IF(変更入力シート!Q12=\"正会員\",変更入力シート!AA37,\"\")","v":""},null,null,"－",null,{"$f":"IF(変更入力シート!Q12=\"正会員\",変更入力シート!AF37,\"\")","v":""}]
[null,null,null,null,null,null,null,null,null,{"$f":"IF(変更入力シート!Q12=\"正会員\",変更入力シート!AA34,\"\")","v":""},null,null,null,null,null,null,null,null,null,null,null,null,null,null,null,null,null,null,{"$f":"IF(変更入力シート!Q12=\"正会員\",変更入力シート!AA38,\"\")","v":""}]
[null,null,null,null,null,null,null,null,null,"TEL",null,null,"：",null,{"$f":"IF(変更入力シート!Q12=\"正会員\",変更入力シート!AA35,\"\")","v":""},null,null,"－",null,{"$f":"IF(変更入力シート!Q12=\"正会員\",変更入力シート!AF35,\"\")","v":""},null,null,"－",null,{"$f":"IF(変更入力シート!Q12=\"正会員\",変更入力シート!AK35,\"\")","v":""},null,null,null,"TEL",null,null,"：",null,{"$f":"IF(変更入力シート!Q12=\"正会員\",変更入力シート!AA39,\"\")","v":""},null,null,"－",null,{"$f":"IF(変更入力シート!Q12=\"正会員\",変更入力シート!AF39,\"\")","v":""},null,null,"－",null,{"$f":"IF(変更入力シート!Q12=\"正会員\",変更入力シート!AK39,\"\")","v":""}]
[null,null,null,null,null,null,null,null,null,"FAX",null,null,"：",null,{"$f":"IF(変更入力シート!Q12=\"正会員\",変更入力シート!AA36,\"\")","v":""},null,null,"－",null,{"$f":"IF(変更入力シート!Q12=\"正会員\",変更入力シート!AF36,\"\")","v":""},null,null,"－",null,{"$f":"IF(変更入力シート!Q12=\"正会員\",変更入力シート!AK36,\"\")","v":""},null,null,null,"FAX",null,null,"：",null,{"$f":"IF(変更入力シート!Q12=\"正会員\",変更入力シート!AA40,\"\")","v":""},null,null,"－",null,{"$f":"IF(変更入力シート!Q12=\"正会員\",変更入力シート!AF40,\"\")","v":""},null,null,"－",null,{"$f":"IF(変更入力シート!Q12=\"正会員\",変更入力シート!AK40,\"\")","v":""}]
[null,"従たる事務所\n名称等",null,null,null,null,null,null,null,{"$f":"変更入力シート!AK28","v":0},null,null,null,null,null,null,null,null,null,null,null,null,null,null,null,null,null,null,{"$f":"変更入力シート!AK30","v":0}]
[]
[null,"従たる事務所\n所在地",null,null,null,null,null,null,null,"〒",null,{"$f":"IF(変更入力シート!Q12=\"準会員\",変更入力シート!AA33,\"\")","v":""},null,null,"－",null,{"$f":"IF(変更入力シート!Q12=\"準会員\",変更入力シート!AF33,\"\")","v":""},null,null,null,null,null,null,null,null,null,null,null,"〒",null,{"$f":"IF(変更入力シート!Q12=\"準会員\",変更入力シート!AA37,\"\")","v":""},null,null,"－",null,{"$f":"IF(変更入力シート!Q12=\"準会員\",変更入力シート!AF37,\"\")","v":""}]
[null,null,null,null,null,null,null,null,null,{"$f":"IF(変更入力シート!Q12=\"準会員\",変更入力シート!AA34,\"\")","v":""},null,null,null,null,null,null,null,null,null,null,null,null,null,null,null,null,null,null,{"$f":"IF(変更入力シート!Q12=\"準会員\",変更入力シート!AA38,\"\")","v":""}]
[null,null,null,null,null,null,null,null,null,"TEL",null,null,"：",null,{"$f":"IF(変更入力シート!Q12=\"準会員\",変更入力シート!AA35,\"\")","v":""},null,null,"－",null,{"$f":"IF(変更入力シート!Q12=\"準会員\",変更入力シート!AF35,\"\")","v":""},null,null,"－",null,{"$f":"IF(変更入力シート!Q12=\"準会員\",変更入力シート!AK35,\"\")","v":""},null,null,null,"TEL",null,null,"：",null,{"$f":"IF(変更入力シート!Q12=\"準会員\",変更入力シート!AA39,\"\")","v":""},null,null,"－",null,{"$f":"IF(変更入力シート!Q12=\"準会員\",変更入力シート!AF39,\"\")","v":""},null,null,"－",null,{"$f":"IF(変更入力シート!Q12=\"準会員\",変更入力シート!AK39,\"\")","v":""}]
[null,null,null,null,null,null,null,null,null,"FAX",null,null,"：",null,{"$f":"IF(変更入力シート!Q12=\"準会員\",変更入力シート!AA36,\"\")","v":""},null,null,"－",null,{"$f":"IF(変更入力シート!Q12=\"準会員\",変更入力シート!AF36,\"\")","v":""},null,null,"－",null,{"$f":"IF(変更入力シート!Q12=\"準会員\",変更入力シート!AK36,\"\")","v":""},null,null,null,"FAX",null,null,"：",null,{"$f":"IF(変更入力シート!Q12=\"準会員\",変更入力シート!AA40,\"\")","v":""},null,null,"－",null,{"$f":"IF(変更入力シート!Q12=\"準会員\",変更入力シート!AF40,\"\")","v":""},null,null,"－",null,{"$f":"IF(変更入力シート!Q12=\"準会員\",変更入力シート!AK40,\"\")","v":""}]
[]
[]
[null,"地方本部確認",null,null,null,null,null,null,null,null,"上記の変更内容を確認いたしました。"]
[]
[null,null,null,null,null,null,null,null,null,null,null,null,null,null,null,null,null,null,null,null,null,null,null,null,"年",null,null,null,"月",null,null,null,"日"]
[]
[null,null,null,null,null,null,null,null,null,null,null,null,null,"地方本部名",null,null,null,null,null,null,null,null,null,"静岡 本部",null,null,null,null,null,"本部長名",null,null,null,null,null,"宇野　篤哉",null,null,null,null,null,null,null,null,"㊞"]

{"sheet":"【6】連帯保証書","index":9,"n_rows":41,"n_cols":8,"rows_kept":41,"cut":false,"hidden":false,"merged":[[2,1,2,7],[8,1,8,7],[9,1,9,7],[10,1,10,7],[11,1,11,7],[7,5,7,7],[7,2,7,4],[6,2,6,4],[14,1,14,7],[15,1,15,7],[16,1,16,7],[17,1,17,7],[18,1,18,7],[27,2,27,4],[5,10,7,15],[35,3,35,4],[36,3,36,4],[29,1,29,7],[30,1,30,7],[31,1,31,7],[28,2,28,4],[28,5,28,7],[19,1,19,7],[20,1,20,7],[21,1,21,7],[22,1,22,7],[23,1,23,7],[25,5,26,8],[12,1,12,7]]}
[null,null,null,null,null,null,"整理番号","第　　　　号"]
[]
[null,"連　帯　保　証　書"]
[null,"　公益社団法人　全国宅地建物取引業保証協会"]
[null,"　　　会　長　　坂　本　　久 　　殿"]
[]
[null,"　　　　　　　　　","（法　人　名）"]
[null,"１　私は",{"$f":"変更入力シート!Q9","v":0},null,null,"に関し、同社の取引の相手方等からの請求により、宅地　"]
[null," 建物取引業法第64条の8の規定に基づいて弁済業務保証金の還付がなされた場合には、"]
[null," 同法第64条の10の規定に基づいて同社が貴協会に支払うべき還付充当金納付債務に"]
[null," ついて、連帯して保証いたします。　　　　　　　　　　　　　　　　　　　　　　　。"]
[null,"　私は、次の①～③の場合においても、上記連帯保証の履行責任を負うことを確認・"]
[null," 理解いたしました。　　　　　　　　　　　　　　　　　　　　　　　　　　　　　　。"]
[]
[null,"　①　私が同社の代表取締役（代表者）を退任し、新任の代表取締役（代表者）が選任され"]
[null,"　　ない場合における還付充当金納付債務の一切。　　　　　　　　　　　　　　　　　　。"]
[null,"　②　私が同社の代表取締役（代表者）を退任し、新任の代表取締役（代表者）が選任され"]
[null,"　　た場合でも、新任の代表取締役（代表者）が貴協会に対し還付充当金納付債務について"]
[null,"　　の連帯保証書を差し入れない場合における還付充当金納付債務の一切（なお、私が同社"]
[null,"　　の代表取締役（代表者）を退任した後の同社の還付充当金納付債務を含みます。）。　　"]
[null,"　③　私が同社の代表取締役（代表者）を退任し、新任の代表取締役（代表者）が選任さ"]
[null,"　　れ、新任の代表取締役（代表者）が貴協会に対し還付充当金納付債務についての連帯"]
[null,"　　保証書を差し入れて連帯保証をした場合において、私が同社の代表取締役（代表者）"]
[null,"　　を退任する以前の同社の行為に関する還付充当金納付債務の一切。　　　　　　　　。"]
[]
[null,"極度額：",null,"万 円",null,"（極度額は、宅地建物取引業法第64条の８第１項の規定により①主たる事務所分として1,000万円、②設置する従たる事務所の数に500万円を乗じた額を算出し、①と②の合計額を記入。）"]
[]
[null,null,"（法　人　名）"]
[null,"２　私は、",{"$f":"変更入力シート!Q9","v":0},null,null,"から、民法第465条の10所定の(1)財産及び収支"]
[null," の状況(2)主たる債務以外に負担している債務の有無並びにその額及び履行状況"]
[null," (3)主たる債務の担保として他に提供し又は提供しようとするものがあるときは"]
[null," その旨及びその内容について、情報提供を受け、理解しています。　　　　　　　　。"]
[]
[null,"　　　令和　 　年　 　月　　 日"]
[]
[null,null,null,"住　　　所"]
[null,null,null,"連帯保証人",null,null,"㊞"]
[]
[null,null,null,null,null,null,null,"（求償№4民改)"]
[]
[null," "]

{"sheet":"【7】誓約書(全宅保)","index":10,"n_rows":18,"n_cols":5,"rows_kept":18,"cut":false,"hidden":false,"merged":[[2,7,3,12],[9,1,9,4],[15,1,15,2],[1,1,1,4],[5,1,5,4],[6,1,6,4],[7,1,7,4],[8,1,8,4],[10,1,10,4],[11,1,11,4],[12,1,12,4]]}
[null,null,null,"整理番号"," 第　　　　号"]
[null,"誓　　　　約　　　　書"]
[null,"　公益社団法人　全国宅地建物取引業保証協会"]
[null,"　 　会長　　 坂　　本　　　久  　殿"]
[]
[null,"　弊社の代表取締役（代表者）変更の場合には、直ちに貴協会宛に変更届出書を提出"]
[null,"するとともに、新任代表取締役（代表者）による別添の連帯保証書を提出いたします。　　"]
[null,"　また、弊社において事務所を新設した場合や宅地建物取引業法第25条第2項の政令"]
[null,"で定める額が増額になり、宅地建物取引業法第64条の8第1項の営業保証金額に相当"]
[null,"する額が増額となった場合、その増額後の政令で定める営業保証金相当額を極度額"]
[null,"とする連帯保証書を改めて提出いたします。なお、本誓約に違背した場合は直ちに退会"]
[null,"いたします。　　　　　　　　　　　　　　　　　　　　　　　　　　　　　　　　　。　　"]
[]
[null,"　　　令和　　年　　月　　日"]
[null,"　　　　　　　　　　　（会　社　名）　"]
[null,"　　　　　　　　　　　　代表取締役\n                       (代  表  者)",null,null,"㊞"]
[]
[null,null,null,null,"（求償№5民改)"]